{"text_format":"1","workbook":"xlsx","n_sheets":7,"sheets":["Startseite","Berechnung","Grunddaten","Programmversionen","Daten","Hilfe","Backups"],"not_rendered":{"charts":0,"images":22,"macros":1,"external_links":0,"defined_names":134,"comments":3,"pivot_tables":0},"unopened":[],"bounds":{"document_bytes":16777216,"sheet_cells":100000,"rows_first":2000,"rows_last":500,"rows_between":2000,"halvings":0,"cell_chars":16384,"cell_head_chars":4096},"cells_cut":0,"cells_raw":0,"read":"whole","date_system":"1900"}

{"sheet":"Startseite","index":0,"n_rows":64,"n_cols":25,"rows_kept":64,"cut":false,"hidden":false,"merged":[[41,12,41,13],[43,12,43,13],[45,12,45,13],[9,3,9,20],[5,2,5,5],[5,6,6,17],[6,2,6,5]]}
[null,"-","-","-","-","-","-","-","-","-","-","-","-","-","-","-","-","-","-","-","-","-","-",null,false]
[null,"-","-","-","-","-","-","-","-","-","-","-","-","-","-","-","-","-","-","-","-","-","-",null,false]
[null,"-","-","-","-","-","-","-","-","-","-","-","-","-","-","-","-","-","-","-","-","-","-",null,false]
[null,null,null,null,null,null,null,null,null,null,null,null,null,null,null,null,null,null,null,null,null,null,null,null,true]
[null,null,null,null,null,null,null,null,null,null,null,null,null,null,null,null,null,null,null,null,null,null,null,null,true]
[null,null,{"$f":"Programmversionen!J5","v":"Version: 24.03 "},null,null,null,{"$f":"\"Förderrechner - Mietwohnraumförderung\"","v":"Förderrechner - Mietwohnraumförderung"},null,null,null,null,null,null,null,null,null,null,null,null,null,null,null,null,null,true]
[null,null,{"$f":"Programmversionen!B5","v":"2024-01-31"},null,null,null,null,null,null,null,null,null,null,null,null,null,null,null,null,null,null,null,null,null,true]
[null,null,null,null,null,null,null,null,null,null,null,null,null,null,null,null,null,null,null,null,null,null,null,null,true]
[null,null,null,"Sehr geehrte Kunden, sehr geehrte Interessenten,",null,null,null,null,null,null,null,null,null,null,null,null,null,null,null,null,{"$f":"IF(Daten!C2<>\"\",\"Achtung: Testversion bis zum \"&TEXT(Daten!C2,\"TT.MM.JJJJ\")&\"!\",\"\")","v":""},null,null,null,true]
[null,null,null,{"$f":"\"der Förderrechner soll Ihnen einen Überblick zu den möglichen Förderhöhen geben.\"&\" Grundlage ist die Richtlinie zur Förderung der generationengerechten und barrierefreien Anpassung von Mietwohngebäuden durch Modernisierung und Instandsetzung und des Mietwohnungsneubaus (MietwohnungsbauförderR) vom \"&TEXT(Daten!$J$12,\"TT.MM.JJJJ\")&IF(COUNTIF(Daten!$L$12:$L$19,TRUE)<>1,\"\",IF(INDEX(Daten!$N$12:$N$19,MATCH(TRUE,Daten!$L$12:$L$19,0),1)=\"\",\"\",\" (\"&INDEX(Daten!$N$12:$N$19,MATCH(TRUE,Daten!$L$12:$L$19,0),1)&\")\"))&\". Abgebildet werden Förderungen für folgende Maßnahmen:\"","v":"der Förderrechner soll Ihnen einen Überblick zu den möglichen Förderhöhen geben. Grundlage ist die Richtlinie zur Förderung der generationengerechten und barrierefreien Anpassung von Mietwohngebäuden durch Modernisierung und Instandsetzung und des Mietwohnungsneubaus (MietwohnungsbauförderR) vom 01.12.2023. Abgebildet werden Förderungen für folgende Maßnahmen:"},null,null,null,null,null,null,null,null,null,null,null,null,null,null,null,null,null,null,null,null,true]
[null,null,null,"-","Modernisierung und Instandsetzung nach § 3 Absatz 6 BbgWoFG",null,null,null,null,null,null,null,null,null,null,null,null,null,null,null,null,null,null,null,true]
[null,null,null,null,null,null,null,null,null,null,null,null,null,null,null,null,null,null,null,null,null,null,null,null,true]
[null,null,null,"-","Mietwohnungsneubau gemäß § 3 Absatz 5 Nr. 1  BbgWoFG sowie",null,null,null,null,null,null,null,null,null,null,null,null,null,null,null,null,null,null,null,true]
[null,null,null,null,null,null,null,null,null,null,null,null,null,null,null,null,null,null,null,null,null,null,null,null,true]
[null,null,null,"-","Maßnahmen der Wiederherstellung, Erweiterung, Nutzungsänderung und Anpassung (Umnutzung)",null,null,null,null,null,null,null,null,null,null,null,null,null,null,null,null,null,null,null,true]
[null,null,null,null,"gemäß § 3 Absatz 5 Nummer 2 - 4 BbgWoFG.",null,null,null,null,null,null,null,null,null,null,null,null,null,null,null,null,null,null,null,true]
[null,null,null,"-","Nachträglicher An- / Einbau von Aufzügen",null,null,null,null,null,null,null,null,null,null,null,null,null,null,null,null,null,null,null,true]
[null,null,null,null,null,null,null,null,null,null,null,null,null,null,null,null,null,null,null,null,null,null,null,null,true]
[null,null,null,"Benutzerhinweise:",null,null,null,null,null,null,null,null,null,null,null,null,null,null,null,null,null,null,null,null,true]
[null,null,null,"-","Bitte aktivieren / erlauben Sie die Makros (entweder gleich beim Öffnen bzw. mittels Schalter \"Inhalte aktivieren\").",null,null,null,null,null,null,null,null,null,null,null,null,null,null,null,null,null,null,null,true]
[null,null,null,null,null,null,null,null,null,null,null,null,null,null,null,null,null,null,null,null,null,null,null,null,true]
[null,null,null,"-",{"$f":"\"Diese Version \"&VLOOKUP(TODAY(),Programmversionen!$B$10:$C$109,2)&\" des Förderrechners vom \"&TEXT(VLOOKUP(TODAY(),Programmversionen!$B$10:$C$109,1),\"TT.MM.JJJJ\")&\" ist für folgende Anwender vorgesehen: \"&Daten!M2&\".\"","v":"Diese Version 24.03 des Förderrechners vom 31.01.2024 ist für folgende Anwender vorgesehen: LBV / MIL (Extern)."},null,null,null,null,null,null,null,null,null,null,null,null,null,null,null,null,null,null,null,true]
[null,null,null,null,null,null,null,null,null,null,null,null,null,null,null,null,null,null,null,null,null,null,null,null,true]
[null,null,null,"-","Wählen Sie die zu fördernde Maßnahme auf Grundlage von Nr. 2.1 a - d der MietwohnungsbauförderR.",null,null,null,null,null,null,null,null,null,null,null,null,null,null,null,null,null,null,null,true]
[null,null,null,null,null,null,null,null,null,null,null,null,null,null,null,null,null,null,null,null,null,null,null,null,true]
[null,null,null,"-","Füllen Sie alle markierten Felder aus. Erst anschließend wird ein mögliches Förderdarlehen errechnet. Sollten Angaben",null,null,null,null,null,null,null,null,null,null,null,null,null,null,null,null,null,null,null,true]
[null,null,null,null,"fehlen oder nicht plausibel sein, wird Ihnen dies dadurch angezeigt, dass der Text vor den Eingabefeldern",null,null,null,null,null,null,null,null,null,null,null,null,null,null,null,null,null,null,null,true]
[null,null,null,null,"bzw. in deren Bereich rot erscheint und / oder die Eingabezelle farblich hervorgehoben wird.",null,null,null,null,null,null,null,null,null,null,null,null,null,null,null,null,null,null,null,true]
[null,null,null,null,null,null,null,null,null,null,null,null,null,null,null,null,null,null,null,null,null,null,null,null,true]
[null,null,null,"-","Nehmen Sie möglichst realistische Eintragungen vor. Um so genauer wird das Ergebnis sein.",null,null,null,null,null,null,null,null,null,null,null,null,null,null,null,null,null,null,null,true]
[null,null,null,null,null,null,null,null,null,null,null,null,null,null,null,null,null,null,null,null,null,null,null,null,true]
[null,null,null,"-","In der Berechnung finden Sie in der Überschriftenzeile auch eine Hilfefunktion (?), in der ggf. vorhandene Unplausibilitäten",null,null,null,null,null,null,null,null,null,null,null,null,null,null,null,null,null,null,null,true]
[null,null,null,null,"bzw. unvollständige Eingaben erläutert werden.",null,null,null,null,null,null,null,null,null,null,null,null,null,null,null,null,null,null,null,true]
[null,null,null,null,null,null,null,null,null,null,null,null,null,null,null,null,null,null,null,null,null,null,null,null,true]
[null,null,null,"-","Bei diesem Förderrechner handelt es sich um eine Berechnungshilfe. Das Ergebnis ist nicht verbindlich.",null,null,null,null,null,null,null,null,null,null,null,null,null,null,null,null,null,null,null,true]
[null,null,null,null,"Bitte setzen sie sich zur Antragstellung mit den zuständigen Ansprechpartnern bei der ILB in Verbindung.",null,null,null,null,null,null,null,null,null,null,null,null,null,null,null,null,null,null,null,true]
[null,null,null,null,"Hier erhalten sie auch weitere Hilfe beim Umgang mit dem Förderrechner.",null,null,null,null,null,null,null,null,null,null,null,null,null,null,null,null,null,null,null,true]
[null,null,null,null,null,null,null,null,null,null,null,null,null,null,null,null,null,null,null,null,null,null,null,null,true]
[null,null,null,"Feldbeschreibungen:",null,null,null,null,null,null,null,null,null,null,null,null,null,null,null,null,null,null,null,null,true]
[null,null,null,"-","Felder, welche eine manuelle Eingabe zulassen, sind immer mit einem entsprechendem Rahmen versehen!",null,null,null,null,null,null,null,null,null,null,null,null,null,null,null,null,null,null,null,true]
[null,null,null,null,null,null,null,null,null,null,null,null,null,null,null,null,null,null,null,null,null,null,null,null,true]
[null,null,null,"-","Felder mit fehlender Pflichteingabe:",null,null,null,null,null,null,null,null,null,null,null,null,null,null,null,null,null,null,null,true]
[null,null,null,null,null,null,null,null,null,null,null,null,null,null,null,null,null,null,null,null,null,null,null,null,true]
[null,null,null,"-","Optionale Felder ohne Eingabe:",null,null,null,null,null,null,null,null,null,null,null,null,null,null,null,null,null,null,null,true]
[null,null,null,null,null,null,null,null,null,null,null,null,null,null,null,null,null,null,null,null,null,null,null,null,true]
[null,null,null,"-","Feld mit erfolgter manueller Eingabe (Pflicht / Optional):",null,null,null,null,null,null,null,null,null,null,null,null,null,null,null,null,null,null,null,true]
[null,null,null,null,null,null,null,null,null,null,null,null,null,null,null,null,null,null,null,null,null,null,null,null,true]
[null,null,null,"-","Berechnete und / oder gesperrte Felder:",null,null,null,null,null,null,null,null,null,null,null,null,null,null,null,null,null,null,null,true]
[null,null,null,null,null,null,null,null,null,null,null,null,null,null,null,null,null,null,null,null,null,null,null,null,true]
[null,null,null,null,null,null,null,null,null,null,null,null,null,null,null,null,null,null,null,null,null,null,null,null,true]
[null,null,null,null,null,null,null,null,null,null,null,null,null,null,null,null,null,null,null,null,null,null,null,null,true]
[null,null,null,null,null,null,null,null,null,null,null,null,null,null,null,null,null,null,null,null,null,null,null,null,true]
[null,null,null,"Erklärung / Bedeutung der Schaltflächen (unten dargestellte Schaltflächen nur beispielhaft und inaktiv):",null,null,null,null,null,null,null,null,null,null,null,null,null,null,null,null,null,null,null,null,true]
[null,null,null,null,"Sprung zum Reiter \"Programmversionen\"",null,null,null,null,null,null,null,null,null,null,null,null,null,null,null,null,null,null,null,{"$f":"IF(OR(Daten!$C$4=TRUE,Daten!$M$3=TRUE),TRUE,FALSE)","v":false}]
[null,null,null,null,"Sprung zum Reiter \"Startseite\"",null,null,null,null,null,null,null,null,null,null,null,null,null,null,null,null,null,null,null,true]
[null,null,null,null,"Sprung zum Reiter \"Grunddaten\"",null,null,null,null,null,null,null,null,null,null,null,null,null,null,null,null,null,null,null,{"$f":"Y54","v":false}]
[null,null,null,null,"Aufruf des Dialogfeldes \"Informationen\"",null,null,null,null,null,null,null,null,null,null,null,null,null,null,null,null,null,null,null,true]
[null,null,null,null,"Aufruf des Dialogfeldes \"Hilfe\"",null,null,null,null,null,null,null,null,null,null,null,null,null,null,null,null,null,null,null,true]
[null,null,null,null,"Aufruf des Dialogfeldes \"Datensicherung\"",null,null,null,null,null,null,null,null,null,null,null,null,null,null,null,null,null,null,null,{"$f":"Y54","v":false}]
[null,null,null,null,"Aufruf des Dialogfeldes \"PDF Export / Ausdruck\"",null,null,null,null,null,null,null,null,null,null,null,null,null,null,null,null,null,null,null,{"$f":"Y54","v":false}]
[null,null,null,null,"Auslösen einer Neuberechnung des Förderrechners (mit optionaler Anpassung der Basis für Eigenkapitalverzinsung)",null,null,null,null,null,null,null,null,null,null,null,null,null,null,null,null,null,null,null,{"$f":"Y54","v":false}]
[null,null,null,null,"Auslösen der Löschung aller oder einzelner Eingaben",null,null,null,null,null,null,null,null,null,null,null,null,null,null,null,null,null,null,null,true]
[null,null,null,null,null,null,null,null,null,null,null,null,null,null,null,null,null,null,null,null,null,null,null,null,true]
[null,null,null,null,null,null,null,null,null,null,null,null,null,null,null,null,null,null,null,null,null,null,null,null,true]

{"sheet":"Berechnung","index":1,"n_rows":159,"n_cols":32,"rows_kept":159,"cut":false,"hidden":false,"merged":[[131,29,132,31],[134,29,134,31],[136,29,136,31],[138,29,138,31],[140,29,140,31],[142,29,142,31],[146,29,146,31],[28,6,28,8],[113,29,114,31],[118,29,118,31],[120,29,120,31],[116,29,116,31],[122,29,122,31],[124,29,124,31],[128,29,128,31],[110,7,111,16],[106,29,107,31],[55,3,55,11],[64,3,65,17],[40,6,40,7],[41,6,41,7],[39,8,39,10],[47,29,47,31],[42,6,42,7],[24,6,24,8],[26,6,26,8],[27,6,27,8],[27,21,27,23],[28,21,28,23],[24,21,24,23],[42,8,42,10],[43,8,43,10],[129,29,129,30],[29,5,29,7],[34,21,34,23],[29,22,29,23],[40,19,40,20],[41,19,41,20],[42,19,42,20],[43,19,43,20],[26,12,26,13],[27,12,27,13],[28,12,28,13],[29,12,29,13],[31,12,31,13],[40,21,40,23],[40,8,40,10],[41,8,41,10],[90,3,91,23],[87,6,87,8],[87,12,87,15],[83,21,83,23],[97,9,97,10],[67,6,67,8],[82,3,82,19],[62,3,62,10],[66,6,66,8],[95,21,97,23],[73,21,73,23],[84,21,84,23],[82,21,82,23],[79,9,79,11],[76,21,76,23],[96,9,96,10],[75,21,75,23],[93,9,93,10],[95,9,95,10],[87,21,87,23],[39,19,39,20],[43,21,43,23],[42,21,42,23],[50,8,50,10],[51,15,51,18],[51,19,51,20],[43,6,43,7],[47,6,47,7],[51,21,51,23],[51,8,51,10],[47,8,47,10],[52,6,52,7],[33,12,33,13],[26,21,26,23],[34,12,34,13],[39,21,39,23],[47,15,47,18],[48,15,48,18],[49,15,49,18],[47,19,47,20],[50,15,50,18],[50,19,50,20],[48,21,48,23],[50,21,50,23],[30,21,30,23],[41,21,41,23],[39,6,39,7],[47,21,47,23],[51,6,51,7],[48,8,48,10],[49,8,49,10],[48,6,48,7],[49,6,49,7],[50,6,50,7],[49,21,49,23],[55,13,55,15],[58,3,58,10],[57,3,57,20],[58,16,58,17],[68,6,68,8],[73,3,73,20],[66,21,66,23],[55,16,55,17],[69,21,69,23],[60,16,60,17],[60,18,60,20],[60,3,60,10],[59,3,59,10],[62,16,62,17],[58,11,58,15],[58,21,58,23],[55,18,55,20],[60,11,60,15],[63,21,63,23],[106,14,108,23],[106,11,106,13],[107,11,108,13],[103,3,104,23],[100,9,100,10],[120,3,120,23],[107,3,107,4],[115,3,118,23],[110,2,110,5],[111,2,111,5],[101,9,101,10],[99,21,101,23],[99,14,101,20],[99,9,99,10],[5,2,5,5],[6,2,6,5],[16,10,16,11],[17,10,17,11],[18,10,18,11],[19,10,19,11],[16,13,16,23],[20,10,20,11],[5,7,6,16],[13,21,13,23],[14,21,14,23],[13,6,13,18],[14,6,14,18],[20,22,20,23],[20,18,20,19],[20,14,20,15],[52,21,52,23],[58,18,58,20],[60,21,60,23],[70,21,70,23],[77,21,77,23],[156,14,156,21],[122,14,122,16],[124,14,124,16],[126,14,126,16],[128,14,128,16],[132,14,132,16],[132,18,132,21],[134,14,134,21],[144,14,144,16],[146,14,146,16],[148,14,148,16],[150,14,150,16],[130,14,130,16],[152,14,152,16],[151,18,153,21],[137,3,140,23],[129,18,131,21],[154,14,154,16],[154,18,154,21],[145,18,150,23],[142,3,142,23],[123,18,128,23],[59,11,59,15],[11,29,11,31],[93,29,95,31],[3,1,3,25],[65,30,67,30],[68,30,70,30],[63,29,64,31],[83,3,83,20],[84,3,84,20],[61,16,61,17],[61,18,61,20],[61,11,61,15],[61,3,61,10],[61,21,61,23],[69,6,69,8],[62,21,62,23],[62,18,62,20],[79,21,79,23],[63,11,63,15],[67,21,67,23],[68,21,68,23],[21,10,21,11],[52,8,52,10],[111,29,111,30],[149,29,150,31],[96,29,98,31],[57,29,57,31],[18,29,18,31],[39,29,40,31],[34,29,34,31],[95,14,97,20],[93,11,93,13],[48,19,48,20],[49,19,49,20],[78,29,79,31],[26,29,26,31],[59,16,59,17],[59,21,59,23],[62,11,62,15],[57,21,57,23],[59,18,59,20],[55,21,55,23],[21,16,21,22],[52,19,52,20],[17,13,19,23]]}
[null,"-","-",{"$f":"COLUMN()","v":4},"-","-",{"$f":"D1","v":4},"-",{"$f":"D1","v":4},{"$f":"D1","v":4},{"$f":"D1","v":4},{"$f":"D1","v":4},"-","-","-",{"$f":"COLUMN()","v":16},{"$f":"D1","v":4},"-",{"$f":"D1","v":4},"-",{"$f":"COLUMN()","v":21},{"$f":"P1","v":16},"-","-","-","-",null,false]
[null,"-","-",{"$f":"D1","v":4},"-","-",{"$f":"G1","v":4},"-",{"$f":"I1","v":4},{"$f":"J1","v":4},{"$f":"K1","v":4},{"$f":"L1","v":4},"-","-","-",{"$f":"P1","v":16},{"$f":"Q1","v":4},"-",{"$f":"S1","v":4},"-",{"$f":"COLUMN()","v":21},{"$f":"D1","v":4},"-","-","-","-",null,false]
[null,null,null,null,null,null,null,null,null,null,null,null,null,null,null,null,null,null,null,null,null,null,null,null,null,null,null,{"$f":"IF(B4=\"\",FALSE,TRUE)","v":false}]
[null,{"$f":"IF(AND(Daten!$M$3=TRUE,Daten!$U$3=FALSE),\"Achtung: Es findet keine automatische Neuberechnung des Förderdarlehens (Maßnahme) statt; bitte nutzen Sie die entsprechende Schaltfläche für eine Neuberechnung!\",\"\")","v":""},null,null,null,null,null,null,null,null,null,null,null,null,null,null,null,null,null,null,null,null,null,null,null,null,null,true]
[null,null,null,null,null,null,null,null,null,null,null,null,null,null,null,null,null,null,null,null,null,null,null,null,null,null,null,true]
[null,null,{"$f":"Programmversionen!J5","v":"Version: 24.03 "},null,null,null,null,{"$f":"\"Förderrechner - Mietwohnraumförderung\"","v":"Förderrechner - Mietwohnraumförderung"},null,null,null,null,null,null,null,null,null,null,null,null,null,null,null,null,null,null,null,true,null,"Druckvorgang?","3. EK-Grenze?"]
[null,null,{"$f":"Programmversionen!B5","v":"2024-01-31"},null,null,null,null,null,null,null,null,null,null,null,null,null,null,null,null,null,null,null,null,null,null,null,null,true,null,{"$f":"Daten!$J$2","v":false},{"$f":"Daten!L17","v":true}]
[null,null,"Art der Maßnahme",null,null,null,null,null,null,null,null,null,null,null,null,null,null,null,null,null,null,null,null,null,null,null,null,true]
[null,null,null,"Neubau",null,null,null,null,"Umnutzung / Wiederherstellung",null,null,null,null,"Modernisierung / Instandsetzung",null,null,null,null,null,null,{"$f":"IF(OR(Daten!$L$16=TRUE,Daten!$L$17=TRUE),\"Solo-Förderung Aufzug\",\"\")","v":"Solo-Förderung Aufzug"},null,null,null,null,null,null,true,null,"Anpassung Tilgungssatz?","Vollständigkeit?"]
[null,null,null,{"$f":"IF(Daten!$M$5=TRUE,\"Keine Auswahl möglich!\",IF(Daten!$O$75=TRUE,\"Ohne Verlängerung Belegungsbindung\",\"\"))","v":"Keine Auswahl möglich!"},null,null,null,null,{"$f":"IF(Daten!$O$77=TRUE,\"Ohne Verlängerung Belegungsbindung\",\"\")","v":"Ohne Verlängerung Belegungsbindung"},null,null,null,null,{"$f":"IF(Daten!$O$79=TRUE,\"Ohne Verlängerung \"&IF(Daten!$M$79=TRUE,\"Belegungsb.\",\"Belegungsbindung\"),\"\")","v":"Ohne Verlängerung Belegungsbindung"},null,null,null,null,null,null,{"$f":"IF(Daten!O81=TRUE,\"Nachträglicher \"&IF(Daten!M81=TRUE,\"Aufzug\",\"Aufzugsanbau\"),\"\")","v":"Nachträglicher Aufzugsanbau"},null,null,null,null,null,null,true,null,{"$f":"IF(Daten!$D$50<=0,TRUE,FALSE)","v":true},{"$f":"IF(Daten!$L$71=Daten!$M$71,TRUE,FALSE)","v":false}]
[null,null,null,{"$f":"IF(Daten!$M$5=TRUE,\"Angepasste Version für LBV!\",IF(Daten!$O$76=TRUE,\"ZUSCHUSS: Verlängerung \"&IF(Daten!M76=TRUE,\"Belegungsb.\",\"Belegungsbindung\"),\"\"))","v":"Angepasste Version für LBV!"},null,null,null,null,{"$f":"IF(Daten!$O$78=TRUE,\"ZUSCHUSS: Verlängerung \"&IF(Daten!$M$78=TRUE,\"Belegungsb.\",\"Belegungsbindung\"),\"\")","v":"ZUSCHUSS: Verlängerung Belegungsbindung"},null,null,null,null,{"$f":"IF(Daten!$O$80=TRUE,\"ZUSCHUSS: Verlängerung \"&IF(Daten!$M$80=TRUE,\"Belegungsb.\",\"Belegungsbindung\"),\"\")","v":"ZUSCHUSS: Verlängerung Belegungsbindung"},null,null,null,null,null,null,null,null,null,{"$f":"\"Richtlinie vom \"&TEXT(Daten!J12,\"TT.MM.JJJJ\")","v":"Richtlinie vom 01.12.2023"},null,null,null,true]
[null,null,null,{"$f":"IF(OR(Daten!M83=\"\",Daten!M83=0),\"Bitte wählen Sie zuerst die Maßnahmeart aus!\",IF(Daten!L71<>Daten!M71,\"Bitte nutzen Sie den Hilfedialog (obere Schaltfläche mit \"&CHAR(34)&\"?\"&CHAR(34)&\") für weitere Informationen zu den noch fehlenden oder nicht plausibel getätigten Eingaben!\",\"\"))","v":"Bitte nutzen Sie den Hilfedialog (obere Schaltfläche mit \"?\") für weitere Informationen zu den noch fehlenden oder nicht plausibel getätigten Eingaben!"},null,null,null,null,null,null,null,null,null,null,null,null,null,null,null,null,null,null,null,{"$f":"Startseite!U9","v":""},null,null,null,true,null,"Prüfung Einkommensgrenzen"]
[null,null,"Kunde / Objekt",null,null,null,null,null,null,null,null,null,null,null,null,null,null,null,null,null,null,null,null,null,null,null,null,true,null,"1. Einkommensgrenze:",{"$f":"IF(Daten!$L$17=TRUE,O21,Grunddaten!$H$69)","v":45},{"$f":"IF(Daten!$L$17=TRUE,IF(OR(AE13<Grunddaten!$H$69,AE13<0),FALSE,TRUE),TRUE)","v":true}]
[null,null,null,"Partnername:",null,null,null,null,null,null,null,null,null,null,null,null,null,null,null,null,null,"Antragsnummer:",null,null,null,null,null,true,null,"2. Einkommensgrenze:",{"$f":"IF(Daten!$L$17=TRUE,S21,Grunddaten!$H$70)","v":30},{"$f":"IF(Daten!$L$17=TRUE,IF(OR(SUM($AE$13:$AE$15)>100,AE13<0,AE14<0,AE15<0),FALSE,TRUE),TRUE)","v":true}]
[null,null,null,"Objektanschrift:",null,null,null,null,null,null,null,null,null,null,null,null,null,null,null,null,null,"",null,null,null,null,null,true,null,"3. Einkommensgrenze:",{"$f":"IF(Daten!$L$17=TRUE,MAX(0,100-AE13-AE14),Grunddaten!$H$71)","v":25},{"$f":"IF(Daten!$L$17=TRUE,IF(OR($AE$13<>Grunddaten!$H$69,$AE$14<>Grunddaten!$H$70),TRUE,FALSE),FALSE)","v":false}]
[null,null,null,null,null,null,null,null,null,null,null,null,null,null,null,null,null,null,null,null,null,null,null,null,null,null,null,true]
[null,null,null,"Gemeinde gemäß Anlage 2 der Richtlinie:",null,null,null,null,null,null,null,null,null,{"$f":"IF(OR(Daten!$M$83=\"\",Daten!$M$83=0),\"\",IF(Daten!$L$17=TRUE,\"\",\"Mindestens \")&TEXT(Daten!$D$87,\"#0\")&\" % der geförderten WE unterliegen der Belegungsbindung!\")","v":"100 % der geförderten WE unterliegen der Belegungsbindung!"},null,null,null,null,null,null,null,null,null,null,null,null,null,true]
[null,null,null,"Anzahl der Wohneinheiten (WE):",null,null,null,null,null,null,null,null,null,{"$f":"Daten!X28","v":"Die Bindungen orientieren sich an den Einkommensgrenzen des §22 (2) BbgWoFG, unter welche mindestens 45,00% der WE direkt fallen (1. EK-Grenze). In der Regel gilt für 30,00% der WE diese Einkommensgrenze zzgl. 40% (2. EK-Grenze) und für die verbleibenden 25,00% gilt die Einkommensgrenze zzgl. 60% (3. EK-Grenze)."},null,null,null,null,null,null,null,null,null,null,null,null,null,true]
[null,null,null,"Gesamtwohnfläche in m²:",null,null,null,null,null,null,null,null,null,null,null,null,null,null,null,null,null,null,null,null,null,null,null,true,null,"Ansatz Instandhaltungskosten"]
[null,null,null,"Grundstücksfläche in m²:",null,null,null,null,null,{"$f":"IF(OR(Daten!$M$79=TRUE,Daten!$M$80=TRUE,Daten!$M$81=TRUE,K20=\"\",K20=0,I40=\"\",I40=0),\"\",\"≙ \"&TEXT(I40/K20,\"#.##0,00\")&\" € / m² \")","v":""},null,null,null,null,null,null,null,null,null,null,null,null,null,null,null,null,null,true,null,"Einstufung","Fläche / Anzahl","Kosten pro Einheit"]
[null,null,null,{"$f":"IF(AND(OR(Daten!$L$16=TRUE,Daten!$L$17=TRUE),Daten!$M$81=TRUE),\"\",IF(AND(OR(Daten!$L$16=TRUE,Daten!$L$17=TRUE),Daten!$M$81=FALSE),\"Inanspruchnahme Aufzugsförderung:\",\"Aufzug im Förderobjekt vorhanden:\"))","v":"Inanspruchnahme Aufzugsförderung:"},null,null,null,null,null,null,null,null,null,{"$f":"IF(Daten!$L$17=TRUE,\"1. EK:\",\"\")","v":"1. EK:"},{"$f":"Grunddaten!$H$69","v":45},null,null,{"$f":"IF(Daten!$L$17=TRUE,\"2. EK:\",\"\")","v":"2. EK:"},{"$f":"Grunddaten!$H$70","v":30},null,null,{"$f":"IF(Daten!$L$17=TRUE,\"3. EK:\",\"\")","v":"3. EK:"},{"$f":"IF(AE15>100,\"-\",AE15)","v":25},null,null,null,null,{"$f":"IF(AND(OR(Daten!$L$16=TRUE,Daten!$L$17=TRUE),OR(Daten!$L$17=TRUE,AND(Daten!$L$16=TRUE,Daten!$M$81=FALSE))),TRUE,FALSE)","v":true},null,"Mit Aufzug:",{"$f":"IF(J30=0,0,IF(OR($J$34>0,$K$21=\"Ja\",$G$70=\"Ja\"),IF(AND($K$21=\"Nein\",$K$21=\"Ja\",$L$34<>\"\",$L$34>0),$L$34,IF($G$70=\"Ja\",$K$19,IF($J$34<>$J$30,$K$19/$J$30*$J$34,$K$19))),0))","v":0},{"$f":"Daten!D80","v":10.61}]
[null,null,null,{"$f":"IF(Daten!$L$16=FALSE,\"\",IF(Daten!$M$3=TRUE,\"Erreichter Förderstandard \"&CHAR(34)&\"Klimabaustein\"&CHAR(34)&\":\",\"Erreichung Mindeststandard \"&CHAR(34)&\"Klimabaustein\"&CHAR(34)&\":\"))","v":""},null,null,null,null,null,null,null,null,null,{"$f":"IF(OR($K$22=\"\",Daten!$L$16=FALSE),\"\",IF(AND(Daten!$M$3=TRUE,Daten!$Q$89<>Daten!$Q$75,OR(Daten!$M$77=TRUE,Daten!$M$78=TRUE)),\"Fördergegenstand:   \",\"\"))","v":""},null,null,null,null,null,null,null,null,null,{"$f":"IF(OR($N$22=\"\",Daten!$M$3=FALSE,$AB$22=FALSE,Daten!$R$86=FALSE),\"\",IF(AND(Q22<>\"\",Daten!$R$90=TRUE),\"a\",IF(Daten!$Q$89=Daten!$Q$75,\"\",\"r\")))","v":""},null,null,null,{"$f":"IF(AND(Daten!$L$16=TRUE,Daten!$M$81=FALSE,Daten!$R$86=TRUE),TRUE,FALSE)","v":false},null,"Ohne Aufzug:",{"$f":"$K$19-$AE$21","v":0},{"$f":"Daten!D81","v":10.61}]
[null,null,null,null,null,null,null,null,null,null,null,null,null,null,null,null,null,null,null,null,null,null,null,null,null,null,null,true,null,{"$f":"IF(AND(AE21>0,AE22>0),TRUE,FALSE)","v":false},{"$f":"AE21+AE22","v":0},{"$f":"IF(AE23=0,(AF21+AF22)/2,(AE21*AF21+AE22*AF22)/AE23)","v":10.61}]
[null,null,"Aufteilung der geförderten Wohneinheiten (WE) / Einnahmen",null,null,null,null,null,null,null,null,null,null,null,null,null,null,null,null,null,null,null,null,null,null,null,null,true,null,"Garagen:",{"$f":"IF(Daten!L67<>Daten!M67,0,G69)","v":0},{"$f":"Grunddaten!$P$90","v":101.62}]
[null,null,{"$f":"IF(COUNTIF(Grunddaten!T65:T70,TRUE)>0,\"i\",\"\")","v":""},"Aufteilung der WE / m²",null,null,{"$f":"IF(OR($K$17=\"\",$K$18=\"\",$K$19=\"\"),\"\",IF($AF$130=TRUE,\"Mindest WE / m²\",\"Mindest m²\"))","v":""},null,null,"Anzahl WE",null,"Wohnfläche WE",null,null,null,"Mieteinnahmen",null,null,null,null," ",{"$f":"IF(OR(L30=\"\",L30=0),\"\",((L27*V27)+(L28*V28)+(L29*V29))/L30)","v":""},null,null,{"$f":"IF(OR(Y27<>\"\",Y28<>\"\"),\"i\",\"\")","v":""},null,null,true]
[null,null,null,null,null,null,null,null,null,null,null,null,null,null,null,null,null,null,null,null,null,null,null,null,null,null,null,true]
[null,null,{"$f":"IF(Grunddaten!T69=TRUE,\"i\",\"\")","v":""},"WE / m² für 1. EK-Grenze:",null,null,{"$f":"IF(OR($K$17=\"\",$K$18=\"\",$K$19=\"\"),\"\",IF($AF$130=FALSE,\"\",TEXT(AE118,\"#.##0\")&\" WE / \")&TEXT(AE136,\"#.##0,00\")&\" m² \")","v":""},null,null,null,{"$f":"IF(OR(J27=\"\",J27=0,ISERROR(J27*100/$K$18)),0,ROUND(J27*100/$K$18,0))","v":0},null,{"$f":"IF(OR(L27=\"\",L27=0,ISERROR(L27*100/$K$19)),0,L27*100/$K$19)","v":0},null,null,"Miethöhe / m² / Monat:",null,null,null,null,{"$f":"IF($K$17=\"\",\"\",\"max. \"&TEXT(Daten!$D$95,\"#.##0,00\")&\" € / m² \")","v":""},null,null,null,{"$f":"IF(OR(Grunddaten!T74=TRUE,Grunddaten!T77=TRUE),\"i\",\"\")","v":""},null,null,true,null,"Solver Auslesung"]
[null,null,{"$f":"IF(Grunddaten!T70=TRUE,\"i\",\"\")","v":""},"WE / m² für 2. EK-Grenze:",null,null,{"$f":"IF(OR($K$17=\"\",$K$18=\"\",$K$19=\"\"),\"\",IF($AF$130=FALSE,\"\",TEXT(AE120,\"#.##0\")&\" WE / \")&TEXT(AE138,\"#.##0,00\")&\" m² \")","v":""},null,null,null,{"$f":"IF(OR(J28=\"\",J28=0,ISERROR(J28*100/$K$18)),0,ROUND(J28*100/$K$18,0))","v":0},null,{"$f":"IF(OR(L28=\"\",L28=0,ISERROR(L28*100/$K$19)),0,L28*100/$K$19)","v":0},null,null,"Miethöhe / m² / Monat:",null,null,null,null,{"$f":"IF($K$17=\"\",\"\",\"max. \"&TEXT(Daten!$D$97,\"#.##0,00\")&\" € / m² \")","v":""},null,null,null,{"$f":"IF(OR(Grunddaten!T75=TRUE,Grunddaten!T78=TRUE),\"i\",\"\")","v":""},null,null,true,null,"Variable",{"$f":"Daten!$D$56","v":0},"Zelle"]
[null,null,null,{"$f":"IF(Daten!L17=TRUE,\"WE / m² für 3. EK-Grenze:\",\"WE / m² ohne Belegungsbindung:\")","v":"WE / m² für 3. EK-Grenze:"},null,null,{"$f":"IF(OR($K$17=\"\",$K$18=\"\",$K$19=\"\"),\"\",IF($AF$130=FALSE,\"\",TEXT(AE122,\"#.##0\")&\" WE / \")&TEXT(AE140,\"#.##0,00\")&\" m² \")","v":""},null,null,null,{"$f":"IF(OR(J29=\"\",J29=0,ISERROR(J29*100/$K$18)),0,ROUND(J29*100/$K$18,0))","v":0},null,{"$f":"IF(OR(L29=\"\",L29=0,ISERROR(L29*100/$K$19)),0,L29*100/$K$19)","v":0},null,null,"Miethöhe / m² / Monat:",null,null,null,null,{"$f":"IF($K$17=\"\",\"\",IF(Daten!L17=TRUE,\"max. \"&TEXT(Daten!$D$99,\"#.##0,00\")&\" € / m² \",\"mögliche Marktmiete \"))","v":""},null,null,null,null,null,null,true,null,"Referenz A:",{"$f":"Daten!$D$56","v":0},"$D$56"]
[null,null,null,"WE / m² gesamt:",null,null,null,null,null,{"$f":"IF(OR(Daten!L28<>Daten!M28,J27<0,ISTEXT(J27),J28<0,ISTEXT(J28),J29<0,ISTEXT(J29)),0,SUM(J27:J29))","v":0},{"$f":"IF(OR(J30=\"\",J30=0,ISERROR(J30*100/$K$18)),0,SUM(K27:K29))","v":0},{"$f":"IF(OR(Daten!L29<>Daten!M29,L27<0,ISTEXT(L27),L28<0,ISTEXT(L28),L29<0,ISTEXT(L29)),0,SUM(L27:L29))","v":0},{"$f":"IF(OR(L30=\"\",L30=0,ISERROR(L30*100/$K$19)),0,SUM(M27:M29))","v":0},null,null,null,null,null,null,null,null,null,null,null,null,null,null,true,null,"Referenz B:",{"$f":"Daten!G50","v":0},"$G$50"]
[null,null,null,null,null,null,null,null,null,{"$f":"AD129","v":""},null,{"$f":"AD147","v":""},null,null,null,"Sonstige Einnahmen p. a.:",null,null,null,null,null,null,null,null,null,null,null,true,null,"Referenz C:",{"$f":"Daten!G56","v":0},"$G$56"]
[null,null,null,"… davon belegungsgebundene WE / m²:",null,null,null,null,null,{"$f":"IF(OR(AND(J27=\"\",J28=\"\",AND(Daten!$L$17=TRUE,J29=\"\")),J27<0,ISTEXT(J27),J28<0,ISTEXT(J28),ISTEXT(J29),J29<0),0,IF(Daten!$L$17=TRUE,SUM(J27:J29),SUM(J27:J28)))","v":0},{"$f":"IF(OR(J32=\"\",J32=0,ISERROR(J32*100/$K$18)),0,ROUND(J32*100/$K$18,0))","v":0},{"$f":"IF(OR(AND(L27=\"\",L28=\"\",AND(Daten!$L$17=TRUE,L29=\"\")),L27<0,ISTEXT(L27),L28<0,ISTEXT(L28),L29<0,ISTEXT(L29)),0,IF(Daten!$L$17=TRUE,SUM(L27:L29),SUM(L27:L28)))","v":0},{"$f":"IF(OR(L32=\"\",L32=0,ISERROR(L32*100/$K$19)),0,ROUND(L32*100/$K$19,0))","v":0},null,null,"(aus den geförderten WE resultierend; z. B. zugewiesene Stellplätze)",null,null,null,null,null,null,null,null,null,null,null,true,null,"Referenz D:",{"$f":"Daten!D55","v":120},"$D$55"]
[null,null,null,null,null,null,null,null,null,null,null,null,null,null,null,null,null,null,null,null,null,null,null,null,null,null,null,{"$f":"IF(AND(OR(Daten!$L$16=TRUE,Daten!$L$17=TRUE),OR(Daten!$M$81=TRUE,Berechnung!$K$21=\"Ja\")),TRUE,FALSE)","v":false}]
[null,null,null,{"$f":"IF(AND(OR(Daten!$L$16=TRUE,Daten!$L$17=TRUE),OR($K$21=\"Ja\",Daten!$M$81=TRUE)),\"Mit gefördertem Aufzug erreichbare WE:\",\"\")","v":""},null,null,null,null,null,null,{"$f":"IF(AND(Daten!$L$16=TRUE,$K$21=\"Ja\"),IF(OR(J34=\"\",J34=0,ISERROR(J34*100/$K$18)),0,ROUND(J34*100/$K$18,0)),\"\")","v":""},null,{"$f":"IF(AND(Daten!$L$16=TRUE,$K$21=\"Ja\"),IF(OR(L34=\"\",L34=0,ISERROR(L34*100/$K$19)),0,ROUND(L34*100/$K$19,0)),\"\")","v":""},null,null,null,null,null,null,null,null,null,null,null,null,null,null,true]
[null,null,null,{"$f":"IF(AND(OR(Daten!$L$16=TRUE,Daten!$L$17=TRUE),OR($K$21=\"Ja\",Daten!$M$81=TRUE)),\" … davon durch Aufzug barrierefrei erreichbare WE:\",\"\")","v":""},null,null,null,null,null,null,{"$f":"IF(AND(Daten!$L$16=TRUE,$K$21=\"Ja\"),IF(OR(J35=\"\",J35=0,ISERROR(J35*100/$K$18)),0,ROUND(J35*100/$K$18,0)),\"\")","v":""},null,{"$f":"IF(AND(Daten!$L$16=TRUE,$K$21=\"Ja\"),IF(OR(L35=\"\",L35=0,ISERROR(L35*100/$K$19)),0,ROUND(L35*100/$K$19,0)),\"\")","v":""},null,null,{"$f":"UPPER(\"≙ Jährliche Gesamteinnahmen:\")","v":"≙ JÄHRLICHE GESAMTEINNAHMEN:"},null,null,null,null,null,{"$f":"IF(OR(Daten!L27<>Daten!M27,Daten!L28<>Daten!M28,Daten!L29<>Daten!M29,Daten!L36<>Daten!M36,Daten!L37<>Daten!M37,Daten!L38<>Daten!M38,Daten!L39<>Daten!M39,Daten!L42<>Daten!M42,Daten!L43<>Daten!M43,Daten!L44<>Daten!M44,Daten!L45<>Daten!M45),0,((V27*L27+V28*L28+V29*L29)*12)+V31)","v":0},null,null,null,null,null,true,null,"Ansatz Mietausfallwagnis / Betriebskosten Leerstand"]
[null,null,null,null,null,null,null,null,null,null,null,null,null,null,null,null,null,null,null,null,null,null,null,null,null,null,null,true,null,true,{"$f":"IF(AD36=TRUE,\"Mietausfallwagnis (\"&TEXT(Grunddaten!P91,\"#.##0,00\")&\"% p. a.)\",\"\")","v":"Mietausfallwagnis (2,00% p. a.)"}]
[null,null,"Kosten / Finanzierung",null,null,null,null,null,null,null,null,null,null,null,null,null,null,null,null,null,null,null,null,null,null,null,null,true,null,{"$f":"IF(AND(Grunddaten!$P$91>0,Grunddaten!$P$92>0),TRUE,FALSE)","v":false},{"$f":"IF(AD37=TRUE,\" + Betriebskosten (\"&TEXT(Grunddaten!P92,\"#.##0,00\")&\" € / m² / Wfl. Leerstand p. m.):\",\"\")","v":""}]
[null,null,null,"Förderfähige Kosten",null,null,null,null,null,null,null,null,null,null,null,"Eigenleistungen",null,null,null,null,null,null,null,{"$f":"IF(OR(Daten!$L$55=FALSE,I44=\"\",I44=0),\"\",IF(I44>0,\"min. \"&TEXT(Daten!$D$84,\"#.##0\")&\"% der Gesamtkosten ≙ \"&TEXT(ROUND(I44*Daten!$D$84/100,2),\"#.##0,00 €\"),\"mindestens \"&TEXT(Daten!$D$84,\"#.##0\")&\" % der Gesamtkosten\"))","v":""},{"$f":"IF(Grunddaten!T61=TRUE,\"i\",\"\")","v":""},null,null,true]
[null,null,null,null,null,null,null,null,null,null,null,null,null,null,null,null,null,null,null,null,null,null,null,null,null,null,null,true]
[null,null,null,{"$f":"IF(OR(Daten!$M$79=TRUE,Daten!$M$80=TRUE,Daten!$M$81=TRUE),\"Baukosten:\",\"Grundstückskosten:\")","v":"Grundstückskosten:"},null,null,{"$f":"IF(D40=\"\",\"\",IF($I$44=0,0,I40*100/$I$44))","v":0},null,null,null,null,{"$f":"IF(Daten!L47<>Daten!M47,0,IF(OR($K$19=\"\",$K$19=0,I40=\"\",I40=0),0,IF(OR(Daten!$L$16=FALSE,Daten!$M$81=FALSE),ROUND(I40/$K$19,2),IF(OR($J$34=0,$J$34=\"\"),0,ROUND(I40/$J$34,2)))))","v":0},{"$f":"IF(Daten!$M$81=FALSE,\" pro m² Wfl.\",\" pro WE\")","v":" pro m² Wfl."},null,null,"Eigenkapital:",null,null,null,{"$f":"IF(Daten!L51<>Daten!M51,0,IF(OR($I$44=\"\",$I$44=0,V40=\"\",V40=0),0,ROUND(V40*100/$I$44,IF(Daten!$M$81=TRUE,8,1))))","v":0},null,{"$f":"$AE$44","v":0},null,null,null,null,null,true,null,"Nebenrechnung: Eigenkapital"]
[null,null,null,{"$f":"IF(OR(Daten!$M$79=TRUE,Daten!$M$80=TRUE,Daten!$M$81=TRUE),\"Baunebenkosten:\",\"Erwerbskosten / Herrichtung:\")","v":"Erwerbskosten / Herrichtung:"},null,null,{"$f":"IF(D41=\"\",\"\",IF($I$44=0,0,I41*100/$I$44))","v":0},null,null,null,null,{"$f":"IF(Daten!L48<>Daten!M48,0,IF(OR($K$19=\"\",$K$19=0,I41=\"\",I41=0),0,IF(OR(Daten!$L$16=FALSE,Daten!$M$81=FALSE),ROUND(I41/$K$19,2),IF(OR($J$34=0,$J$34=\"\"),0,ROUND(I41/$J$34,2)))))","v":0},{"$f":"$M$40","v":" pro m² Wfl."},null,null,"Selbsthilfeleistungen:",null,null,null,{"$f":"IF(Daten!L52<>Daten!M52,0,IF(OR($I$44=\"\",$I$44=0,V41=\"\",V41=0),0,ROUND(V41*100/$I$44,IF(Daten!$M$81=TRUE,8,1))))","v":0},null,null,null,null,null,null,null,true]
[null,null,null,{"$f":"IF(OR(Daten!$M$79=TRUE,Daten!$M$80=TRUE),\"\",\"Baukosten:\")","v":"Baukosten:"},null,null,0,null,null,null,null,{"$f":"IF(Daten!M79=TRUE,\"\",IF(Daten!L49<>Daten!M49,0,IF(OR($K$19=\"\",$K$19=0,I42=\"\",I42=0),0,IF(OR(Daten!$L$16=FALSE,Daten!$M$81=FALSE),ROUND(I42/$K$19,2),IF(OR($J$34=0,$J$34=\"\"),0,ROUND(I42/$J$34,2))))))","v":0},{"$f":"$M$40","v":" pro m² Wfl."},null,null,{"$f":"IF(Daten!M79=FALSE,\"Wert des Baugrundstückes:\",\"\")","v":"Wert des Baugrundstückes:"},null,null,null,{"$f":"IF(Daten!M79=TRUE,\"\",IF(Daten!L53<>Daten!M53,0,IF(OR($I$44=\"\",$I$44=0,V42=\"\",V42=0),0,ROUND(V42*100/$I$44,1))))","v":0},null,null,null,null,null,null,null,{"$f":"IF(OR(Daten!$M$79=TRUE,Daten!$M$80=TRUE,Daten!$M$81=TRUE),FALSE,TRUE)","v":true},null,"Mindestbetrag",{"$f":"ROUND(I44*Daten!$D$84/100,2)","v":0},{"$f":"ADDRESS(ROW(V40),COLUMN(V40),TRUE)","v":"$V$40"}]
[null,null,null,{"$f":"IF(OR(Daten!$M$79=TRUE,Daten!$M$80=TRUE),\"\",\"Baunebenkosten:\")","v":"Baunebenkosten:"},null,null,0,null,null,null,null,{"$f":"IF(Daten!M79=TRUE,\"\",IF(Daten!L50<>Daten!M50,0,IF(OR($K$19=\"\",$K$19=0,I43=\"\",I43=0),0,IF(OR(Daten!$L$16=FALSE,Daten!$M$81=FALSE),ROUND(I43/$K$19,2),IF(OR($J$34=0,$J$34=\"\"),0,ROUND(I43/$J$34,2))))))","v":0}," pro m² Wfl.",null,null,{"$f":"IF(OR(Daten!$M$77=TRUE,Daten!$M$78=TRUE),\"Wert vorh. Gebäudeteile:\",\"\")","v":"Wert vorh. Gebäudeteile:"},null,null,null,{"$f":"IF(AND(Daten!M77=FALSE,Daten!M78=FALSE),\"\",IF(Daten!L54<>Daten!M54,0,IF(OR($I$44=\"\",$I$44=0,V43=\"\",V43=0),0,ROUND(V43*100/$I$44,1))))","v":0},null,null,null,null,null,null,null,{"$f":"AB42","v":true},null,"Anrechnungen",{"$f":"SUMPRODUCT((P41:P43<>\"\")*(AB41:AB43=TRUE)*(V41:X43))","v":0},"-"]
[null,null,null,"Kosten (Gesamt):",null,null,{"$f":"SUM(G40:G43)","v":0},null,{"$f":"IF(OR(Daten!L47<>Daten!M47,Daten!L48<>Daten!M48,Daten!L49<>Daten!M49,Daten!L50<>Daten!M50,AND(I40=\"\",I41=\"\",I42=\"\",I43=\"\")),0,SUMIF(AB40:AB43,TRUE,I40:K43))","v":0},null,null,{"$f":"IF(OR($K$19=\"\",$K$19=0,I44=\"\",I44=0),0,IF(Daten!$M$81=FALSE,ROUND(I44/$K$19,2),IF(OR($J$34=0,$J$34=\"\"),0,ROUND(I44/$J$34,2))))","v":0}," pro m² Wfl.",null,null,"Eigenleistungen (Gesamt):",null,null,null,{"$f":"IF(OR($I$44=\"\",$I$44=0,V44=\"\",V44=0),0,ROUND(V44*100/$I$44,IF(Daten!$M$81=TRUE,8,1)))","v":0},null,{"$f":"IF(OR(Daten!L51<>Daten!M51,Daten!L52<>Daten!M52,Daten!L53<>Daten!M53,Daten!L54<>Daten!M54,AND(V40=\"\",V41=\"\",V42=\"\",V43=\"\")),0,IF(AND(Daten!$M$77=FALSE,Daten!$M$78=FALSE),SUMIF(AB40:AB42,TRUE,V40:V42),SUMIF(AB40:AB43,TRUE,V40:V43)))","v":0},null,null,{"$f":"IF(Grunddaten!T61=TRUE,\"i\",\"\")","v":""},null,null,true,null,"Restbetrag",{"$f":"MAX(0,AE42-AE43)","v":0},"-"]
[null,null,null,null,null,null,null,null,null,null,null,null,null,null,null,null,null,null,null,null,null,null,null,null,null,null,null,true]
[null,null,null,"Finanzierung",null,null,null,null,null,null,null,null,null,null,null,"Zuschüsse",null,null,null,null,null,null,null,null,null,null,null,true]
[null,null,null,null,null,null,null,null,null,null,null,null,null,null,null,null,null,null,null,null,null,null,null,null,null,null,null,true]
[null,null,null,"Eigenleistungen:",null,null,{"$f":"IF(D48=\"\",\"\",IF($I$44=0,0,I48*100/$I$44))","v":0},null,{"$f":"IF(Daten!L71<>Daten!M71,0,V44)","v":0},null,null,{"$f":"IF(OR($K$19=\"\",$K$19=0,I48=\"\",I48=0),0,IF(OR(Daten!$L$16=FALSE,Daten!$M$81=FALSE),ROUND(I48/$K$19,2),IF(OR($J$34=0,$J$34=\"\"),0,ROUND(I48/$J$34,2))))","v":0},{"$f":"$M$40","v":" pro m² Wfl."},null,null,"Sonstiger Zuschuss I (bitte benennen):",null,null,null,{"$f":"IF(OR($I$44=\"\",$I$44=0,V48=\"\",V48=0),0,ROUND(V48*100/$I$44,IF(Daten!$M$81=TRUE,8,1)))","v":0},null,null,null,null,{"$f":"IF($AE$90=1,\"~\",\"\")","v":""},null,null,true,null,"Zuschussbestandteile"]
[null,null,null,"Zuschüsse (ILB):",null,null,{"$f":"IF(D49=\"\",\"\",IF($I$44=0,0,I49*100/$I$44))","v":0},null,{"$f":"IF(V48+V49>0,SUM(V50:X52),IF(Daten!L71<>Daten!M71,0,V53))","v":0},null,null,{"$f":"IF(OR($K$19=\"\",$K$19=0,I49=\"\",I49=0),0,IF(OR(Daten!$L$16=FALSE,Daten!$M$81=FALSE),ROUND(I49/$K$19,2),IF(OR($J$34=0,$J$34=\"\"),0,ROUND(I49/$J$34,2))))","v":0}," pro m² Wfl.",null,null,"Sonstiger Zuschuss II (bitte benennen):",null,null,null,{"$f":"IF(OR($I$44=\"\",$I$44=0,V49=\"\",V49=0),0,ROUND(V49*100/$I$44,IF(Daten!$M$81=TRUE,8,1)))","v":0},null,null,null,null,{"$f":"IF($AE$90=2,\"~\",\"\")","v":""},null,null,true,null,"Bindung:",{"$f":"Daten!$D$73","v":0},{"$f":"IF(AE49>0,TRUE)","v":false}]
[null,null,null,{"$f":"IF(V48+V49>0,\"Zuschüsse (Sonstige):\",\"Maximal mögliche Förderdarlehen:\")","v":"Maximal mögliche Förderdarlehen:"},null,null,{"$f":"IF(D50=\"\",\"\",IF($I$44=0,0,I50*100/$I$44))","v":0},null,{"$f":"IF(V48+V49>0,V48+V49,IF(Daten!L71<>Daten!M71,0,SUM(L59:P61)))","v":0},null,null,{"$f":"IF(OR($K$19=\"\",$K$19=0,I50=\"\",I50=0),0,IF(OR(Daten!$L$16=FALSE,Daten!$M$81=FALSE),ROUND(I50/$K$19,2),IF(OR($J$34=0,$J$34=\"\"),0,ROUND(I50/$J$34,2))))","v":0}," pro m² Wfl.",null,null,{"$f":"Daten!$K$112","v":""},null,null,null,{"$f":"IF(P50=\"\",\"\",IF(OR($I$44=\"\",$I$44=0,V50=\"\",V50=0),0,ROUND(V50*100/$I$44,IF(Daten!$M$81=TRUE,8,1))))","v":""},null,{"$f":"Daten!$M$112","v":""},null,null,{"$f":"IF(Grunddaten!T47=TRUE,\"i\",\"\")","v":""},null,null,true,null,"Aufzug:",{"$f":"Daten!$H$101","v":0},{"$f":"IF(AE50>0,TRUE)","v":false}]
[null,null,null,{"$f":"IF(V48+V49>0,\"Maximal mögliche Förderdarlehen:\",IF(Daten!$M$3=TRUE,\"Sonstige / Restfinanzierung(en):\",\"Notwendige Restfinanzierung:\"))","v":"Notwendige Restfinanzierung:"},null,null,{"$f":"IF(D51=\"\",\"\",IF($I$44=0,0,I51*100/$I$44))","v":0},null,{"$f":"IF(V48+V49>0,IF(Daten!$L$71<>Daten!$M$71,0,SUM($L$59:$P$60)),IF(Daten!$L$71<>Daten!$M$71,0,$L$63+IF(AND($L$62<>\"\",$L$62>0),$L$62,0)))","v":0},null,null,{"$f":"IF(OR($K$19=\"\",$K$19=0,I51=\"\",I51=0),0,IF(OR(Daten!$L$16=FALSE,Daten!$M$81=FALSE),ROUND(I51/$K$19,2),IF(OR($J$34=0,$J$34=\"\"),0,ROUND(I51/$J$34,2))))","v":0}," pro m² Wfl.",null,null,{"$f":"Daten!$K$113","v":""},null,null,null,{"$f":"IF(P51=\"\",\"\",IF(OR($I$44=\"\",$I$44=0,V51=\"\",V51=0),0,ROUND(V51*100/$I$44,IF(Daten!$M$81=TRUE,8,1))))","v":""},null,{"$f":"Daten!$M$113","v":""},null,null,null,null,null,true,null,{"$f":"IF(Daten!L16=TRUE,\"Klimabaustein:\",\"Grundförderung:\")","v":"Grundförderung:"},{"$f":"IF(Daten!$L$16=TRUE,Daten!$D$128,Daten!$D$136)","v":0},{"$f":"IF(AE51>0,TRUE)","v":false}]
[null,null,null,{"$f":"IF(V48+V49>0,IF(Daten!$M$3=TRUE,\"Sonstige / Restfinanzierung(en):\",\"Notwendige Restfinanzierung:\"),\"\")","v":""},null,null,{"$f":"IF(D52=\"\",\"\",IF($I$44=0,0,I52*100/$I$44))","v":""},null,{"$f":"IF(V48+V49>0,IF(Daten!$L$71<>Daten!$M$71,0,$L$63+IF(AND($L$62<>\"\",$L$62>0),$L$62,0)),\"\")","v":""},null,null,{"$f":"IF(D52=\"\",\"\",IF(OR($K$19=\"\",$K$19=0,I52=\"\",I52=0),0,IF(OR(Daten!$L$16=FALSE,Daten!$M$81=FALSE),ROUND(I52/$K$19,2),IF(OR($J$34=0,$J$34=\"\"),0,ROUND(I52/$J$34,2)))))","v":""},{"$f":"IF(D52=\"\",\"\",$M$40)","v":""},null,null,{"$f":"Daten!$K$114","v":""},null,null,null,{"$f":"IF(P52=\"\",\"\",IF(OR($I$44=\"\",$I$44=0,V52=\"\",V52=0),0,ROUND(V52*100/$I$44,IF(Daten!$M$81=TRUE,8,1))))","v":""},null,{"$f":"Daten!$M$114","v":""},null,null,null,null,null,{"$f":"IF(AND(OR(Daten!$L$17=TRUE,AND($AB$22=TRUE,Daten!$R$90=TRUE)),OR(D52<>\"\",P52<>\"\")),TRUE,FALSE)","v":false},null,"Zuschuss I",{"$f":"V48","v":0},{"$f":"IF(AE52>0,TRUE)","v":false}]
[null,null,null,"Finanzierung (Gesamt):",null,null,{"$f":"SUM(G48:G52)","v":0},null,{"$f":"IF(OR(I48=\"\",I49=\"\",I50=\"\",I51=\"\"),0,SUM(I48:K52))","v":0},null,null,{"$f":"IF(OR($K$19=\"\",$K$19=0,I53=\"\",I53=0),0,IF(OR(Daten!$L$16=FALSE,Daten!$M$81=FALSE),ROUND(I53/$K$19,2),IF(OR($J$34=0,$J$34=\"\"),0,ROUND(I53/$J$34,2))))","v":0}," pro m² Wfl.",null,null,"Zuschüsse (Gesamt):",null,null,null,{"$f":"IF(OR($I$44=\"\",$I$44=0,V53=\"\",V53=0),0,ROUND(V53*100/$I$44,IF(Daten!$M$81=TRUE,8,1)))","v":0},null,{"$f":"IF(Daten!L56<>Daten!M56,0,SUM(V48:X52))","v":0},null,null,null,null,null,true,null,"Zuschuss II:",{"$f":"V49","v":0},{"$f":"IF(AE53>0,TRUE)","v":false}]
[null,null,null,null,null,null,null,null,null,null,null,null,null,null,null,null,null,null,null,null,null,null,null,null,null,null,null,true,null,"Gesamt:",{"$f":"SUM(AE49:AE53)","v":0},"-"]
[null,null,"Darlehen / Laufende Aufwendungen",null,null,null,null,null,null,null,null,null,null,null,null,null,null,null,null,null,null,null,null,null,null,null,null,true]
[null,null,{"$f":"C59","v":""},"Finanzierungsbestandteil",null,null,null,null,null,null,null,null,null,"Darlehenshöhe",null,null,"Zins / LVKB",null,"Tilgung",null,null,"Kapitaldienst p. a.",null,null,{"$f":"Y59","v":""},null,null,true]
[null,null,null,null,null,null,null,null,null,null,null,null,null,null,null,null,null,null,null,null,null,null,null,null,null,null,null,true]
[null,null,null,"Kapitaldienst aus bereits vor Maßnahmebeginn für das Förderobjekt bestehenden Finanzierungen (gesamt):",null,null,null,null,null,null,null,null,null,null,null,null,null,null,null,null,null,null,null,null,null,null,null,true,null,"Anpassung Freie Miete"]
[null,null,{"$f":"IF(COUNTIF(Grunddaten!T57:T58,TRUE)>0,\"i\",\"\")","v":""},{"$f":"Daten!$K$115","v":"Förderdarlehen (Maßnahme; maximal bis zu 3.000,00 € / m²):"},null,null,null,null,null,null,null,{"$f":"Daten!$M$115","v":0},null,null,null,null,{"$f":"Grunddaten!$H$57","v":0.5},null,2,null,null,{"$f":"IF(Daten!L71<>Daten!M71,0,L59*(Q59+S59)/100)","v":0},null,null,{"$f":"IF(COUNTIF(Grunddaten!T57:T58,TRUE)>0,\"i\",\"\")","v":""},null,null,true,null,"Anpassungsbedarf:",{"$f":"ROUND(V63-L63/100*3,2)","v":0},"Mietobergrenze:"]
[null,null,{"$f":"C59","v":""},{"$f":"Daten!$K$116","v":""},null,null,null,null,null,null,null,{"$f":"Daten!$M$116","v":""},null,null,null,null,{"$f":"IF(D60=\"\",\"\",IF(OR(Daten!$L$71<>Daten!$M$71,$D$60=\"\"),$Q$59,$Q$59))","v":""},null,{"$f":"IF(D60=\"\",\"\",S59)","v":""},null,null,{"$f":"IF(D60=\"\",\"\",IF(OR(Daten!$L$71<>Daten!$M$71,$D$60=\"\"),0,L60*(Q60+S60)/100))","v":""},null,null,{"$f":"Y59","v":""},null,null,{"$f":"IF(AND(Daten!$L$16=TRUE,Daten!$M$81=TRUE),FALSE,IF(D60=\"\",FALSE,TRUE))","v":false},null,"Mietreduzierung:",{"$f":"IF(OR(L29=\"\",L29=0),0,ROUNDDOWN(AE59/12/L29,2))","v":0},{"$f":"Daten!D99","v":10}]
[null,null,null,{"$f":"Daten!$K$117","v":""},null,null,null,null,null,null,null,{"$f":"Daten!$M$117","v":""},null,null,null,null,{"$f":"IF(D61=\"\",\"\",IF(OR(Daten!$L$71<>Daten!$M$71,$D$61=\"\"),$Q$59,$Q$59))","v":""},null,{"$f":"IF(D61=\"\",\"\",IF(OR(Daten!$L$71<>Daten!$M$71,$D$61=\"\"),$S$59,$S$59))","v":""},null,null,{"$f":"IF(D61=\"\",\"\",IF(OR(Daten!$L$71<>Daten!$M$71,$D$61=\"\"),0,L61*(Q61+S61)/100))","v":""},null,null,null,null,null,false,null,"Freie Miete:",{"$f":"MAX(AF60,MAX(V28,V29-AE60))","v":10},{"$f":"IF(AND(L63>0,Daten!$L$17=FALSE,Daten!$M$3=TRUE,S59=3,AE61>V28,AE10=TRUE),TRUE,FALSE)","v":false}]
[null,null,null,null,null,null,null,null,null,null,null,null,null,null,null,null,null,null,null,null,null,{"$f":"IF(OR(Daten!$L$71<>Daten!$M$71,$D$62=\"\"),0,L62*(Q62+S62)/100)","v":0},null,null,null,null,null,{"$f":"IF(Daten!$M$3=TRUE,TRUE,FALSE)","v":false}]
[null,null,null,"Notwendige Restfinanzierung (Höhe wird automatisch berechnet):",null,null,null,null,null,null,null,{"$f":"IF(Daten!$L$71<>Daten!$M$71,0,IF(AND(OR(Daten!$L$16=TRUE,Daten!$L$17=TRUE),Daten!$M$81=TRUE),MAX(0,IF(Daten!$H$128=0,0,ROUNDUP(Daten!$H$128,-2))),IF(Daten!$D$46<0,0,IF(Daten!$D$46=0,0,MAX(0,ROUNDUP(Daten!$D$46,-2))))))","v":0},null,null,null,null,null,null,null,null,null,{"$f":"IF(Daten!L71<>Daten!M71,0,IF(OR(Daten!M62=FALSE,Daten!M63=FALSE),0,L63*(Q63+S63)/100))","v":0},null,null,null,null,null,true]
[null,null,null,null,null,null,null,null,null,null,"Darlehen gesamt:",{"$f":"IF(OR(L59=\"\",L63=\"\"),0,SUM(L59:L63))","v":0},null,null,null,null,null,null,null,null,"Kapitaldienst p. a.:",{"$f":"IF(Daten!L71<>Daten!M71,0,SUM(V58:X63))","v":0},null,null,null,null,null,true,null,"Annuitäten-Check"]
[null,null,null,{"$f":"IF(AND(Q63<>\"\",S63<>\"\",(Q59+S59)>=(Q63+S63)),\"Die Kapitalkosten (prozentuale Gesamtannuität) für die \"&CHAR(34)&\"Notwendige Restfinanzierung\"&CHAR(34)&\" müssen größer sein, als für \"&IF(Daten!M109>1,\"die\",\"das\")&\" Förderdarlehen!\",\"\")","v":""},null,null,null,null,null,null,null,null,null,null,null,null,null,null,null,null,null,null,null,null,null,null,null,true]
[null,null,null,null,null,null,null,null,null,null,null,null,null,null,null,null,null,null,null,null,null,null,null,"Bewirtschaftungskosten p. a.",{"$f":"IF(COUNTIF(Grunddaten!T86:T91,TRUE)>0,\"i\",\"\")","v":""},null,null,true,null,"Zinssatz","Förderdarlehen",{"$f":"Q59","v":0.5}]
[null,null,null,{"$f":"IF(Daten!M3=FALSE,\"\",\"Ansatz Bewirtschaftungskosten:\")","v":""},null,null,"Aktuell gültig",null,null,{"$f":"Y66","v":""},null,null,null,null,null,null,null,null,null,null,{"$f":"\"Verwaltungskosten (\"&TEXT(Grunddaten!P86,\"#.##0,00\")&\" € / WE / p. a.\"&IF(OR(Daten!L66<>Daten!M66,Daten!L67<>Daten!M67),\"):\",IF(G68+G69>0,\" + \"&TEXT(Grunddaten!P87,\"#.##0,00\")&\" € / \"&IF(AND($G$68>0,$G$69>0),\"Stellpl. & Garage\",IF($G$68>0,\"Stellplatz\",IF($G$69>0,\"Garage\",\"\")))&\" / p. a.):\",\"):\"))","v":"Verwaltungskosten (343,69 € / WE / p. a.):"},{"$f":"IF(OR(Daten!L28<>Daten!M28,Daten!L66<>Daten!M66,Daten!L67<>Daten!M67),0,Grunddaten!$P$86*$K$18+Grunddaten!$P$87*$G$69+Grunddaten!$P$87*$G$68)","v":0},null,null,{"$f":"IF(COUNTIF(Grunddaten!T86:T87,TRUE)>0,\"i\",\"\")","v":""},null,null,true,null,"Tilgungssatz",null,{"$f":"S59","v":2}]
[null,null,null,"Anzahl Stellplätze:",null,null,null,null,null,null,null,null,null,null,null,null,null,null,null,null,{"$f":"IF(OR(Daten!$L$65<>Daten!$M$65,Daten!$L$66<>Daten!$M$66),\"Instandhaltungskosten:\",\"Instandhaltungskosten (\"&IF(AD23=TRUE,\"Ø \",\"\")&TEXT(AF23,\"#.##0,00\")&\" € / m² / Wfl. / p. a.\"&IF(G69>0,\" + \"&TEXT(Grunddaten!P90,\"#.##0,00\")&\" € / Garage / p. a.):\",\"):\"))","v":"Instandhaltungskosten (10,61 € / m² / Wfl. / p. a.):"},{"$f":"AE21*AF21+AE22*AF22+AE24*AF24","v":0},null,null,{"$f":"IF(COUNTIF(Grunddaten!T88:T90,TRUE)>0,\"i\",\"\")","v":""},null,null,true,null,"Annuität",null,{"$f":"AF66+AF67","v":2.5}]
[null,null,null,"Anzahl Garagen / Carports:",null,null,null,null,null,null,null,null,null,null,null,null,null,null,null,null,{"$f":"AE36&IF(AD37=TRUE,AE37,\"\")","v":"Mietausfallwagnis (2,00% p. a.)"},{"$f":"IF(V35=\"\",\"\",V35*Grunddaten!$P$91/100+((($K$19*Grunddaten!$P$91)/100)*Grunddaten!$P$92*12))","v":0},null,null,{"$f":"IF(Grunddaten!T91=TRUE,\"i\",\"\")","v":""},null,null,true,null,"Zinssatz","Notwendige Fremdfinanzierung",{"$f":"Q63","v":0}]
[null,null,null,{"$f":"IF(AND(OR(Daten!$L$16=TRUE,Daten!$L$17=TRUE),OR(Daten!$M$81=TRUE,K21=\"\",K21=\"Ja\")),\"\",\"Aufzug vorhanden:\")","v":""},null,null,null,null,null,null,null,null,null,null,null,null,null,null,null,null,{"$f":"IF(OR(Daten!M12=FALSE,Daten!M75=TRUE,Daten!M77=TRUE,Daten!M79=TRUE),\"\",\"Pauschalaufwand für Besetzungsrechte:\")","v":""},{"$f":"IF(OR(Daten!M12=FALSE,Daten!M75=TRUE,Daten!M77=TRUE,Daten!M79=TRUE),\"\",Daten!D107)","v":""},null,null,null,null,null,{"$f":"IF(AND(D70=\"\",U70=\"\"),FALSE,TRUE)","v":false},null,"Tilgungssatz",null,{"$f":"S63","v":0}]
[null,null,null,null,null,null,null,null,null,null,null,null,null,null,null,null,null,null,null,null,"Bewirtschaftungskosten p. a.:",{"$f":"SUM(V67:X70)","v":0},null,null,null,null,null,true,null,"Annuität",null,{"$f":"AF69+AF70","v":0}]
[null,null,null,null,null,null,null,null,null,null,null,null,null,null,null,null,null,null,null,null,null,null,null,null,null,null,null,true,null,"Differenz zwischen Annuitäten",null,{"$f":"IF(AF68>AF71,AF68-AF71+0.0001,0)","v":2.5001000000000002}]
[null,null,null,null,null,null,null,null,null,null,null,null,null,null,null,null,null,null,null,null,null,null,null,"Eigenkapitalverzinsung p. a.",{"$f":"IF(COUNTIF(Grunddaten!T81:T82,TRUE)>0,\"i\",\"\")","v":""},null,null,true,null,"Anpassungsbedarf",null,{"$f":"IF(D65<>\"\",TRUE,FALSE)","v":false}]
[null,null,null,{"$f":"\"Zu verzinsende Eigenleistungen (max. \"&TEXT(V44,\"#.##0,00\")&\" €; leer lassen für vollen Ansatz\"&IF($V$74<>\"\",\"; unverzinslich: \"&TEXT(Daten!$D$106,\"#.##0,00\")&\" €\",\"\")&\"):\"","v":"Zu verzinsende Eigenleistungen (max. 0,00 €; leer lassen für vollen Ansatz):"},null,null,null,null,null,null,null,null,null,null,null,null,null,null,null,null,null,null,null,null,null,null,null,{"$f":"IF(Daten!$M$3=TRUE,TRUE,FALSE)","v":false}]
[null,null,null,null,null,null,null,null,null,null,null,null,null,null,null,null,null,null,null,null,null,null,null,null,null,null,null,{"$f":"AB74","v":false}]
[null,null,null,null,null,null,null,null,null,null,null,null,null,null,null,null,null,null,null,null,{"$f":"\"Eigenkapitalverzinsung auf bis zu ≙ \"&TEXT(Grunddaten!E81,\"#.##0\")&\"% der förderfähigen Baukosten (\"&TEXT(Daten!E103/100,\"#.##0,00%\")&\" auf \"&TEXT(Daten!$D$103,\"#.##0,00 €\")&\" p. a.):\"","v":"Eigenkapitalverzinsung auf bis zu ≙ 15% der förderfähigen Baukosten (2,00% auf 0,00 € p. a.):"},{"$f":"IF(Daten!L51<>Daten!M51,\"\",Daten!D103*Grunddaten!H81/100)","v":0},null,null,{"$f":"IF(Grunddaten!T81=TRUE,\"i\",\"\")","v":""},null,null,true]
[null,null,null,null,null,null,null,null,null,null,null,null,null,null,null,null,null,null,null,null,{"$f":"\"Eigenkapitalverzinsung auf darüber hinausgehende Eigenleistungen (\"&TEXT(Daten!E104/100,\"#.##0,00%\")&\" auf \"&TEXT(Daten!$D$104,\"#.##0,00 €\")&\" p. a.):\"","v":"Eigenkapitalverzinsung auf darüber hinausgehende Eigenleistungen (3,00% auf 0,00 € p. a.):"},{"$f":"IF(Daten!L51<>Daten!M51,\"\",Daten!D104*Grunddaten!H82/100)","v":0},null,null,{"$f":"IF(Grunddaten!T82=TRUE,\"i\",\"\")","v":""},null,null,true]
[null,null,null,null,null,null,null,null,null,null,null,null,null,null,null,null,null,null,null,null,{"$f":"\"Eigenkapitalverzinsung (Ø \"&TEXT(Daten!$E$105,\"#.##0,0000\")&\"%; bezogen auf \"&TEXT(V44,\"#.##0,00\")&\" € gesamte Eigenleistungen) p. a.:\"","v":"Eigenkapitalverzinsung (Ø 0,0000%; bezogen auf 0,00 € gesamte Eigenleistungen) p. a.:"},{"$f":"SUM(V76:X77)","v":0},null,null,null,null,null,true]
[null,null,null,null,null,null,null,null,null,null,null,null,null,null,null,null,null,null,null,null,null,null,null,null,null,null,null,true,null,"Nebenrechnung: Spitzenfinanzierung"]
[null,null,null,null,null,null,null,null,null,null,null,null,null,null,null,null,null,null,null,null,{"$f":"UPPER(\"≙ Jährliche Gesamtaufwendungen:\")","v":"≙ JÄHRLICHE GESAMTAUFWENDUNGEN:"},{"$f":"IF(OR(V64=\"\",V67=\"\",V68=\"\",V69=\"\",V76=\"\",V77=\"\"),0,SUM(V64,V71,V78))","v":0},null,null,null,null,null,true]
[null,null,null,null,null,null,null,null,null,null,null,null,null,null,null,null,null,null,null,null,null,null,null,null,null,null,null,true,null,"Fehlbetrag:",{"$f":"V88","v":0},{"$f":"SUM(AF82:AF83)","v":0}]
[null,null,"Objektwirtschaftlichkeit (Alt)",null,null,null,null,null,null,null,null,null,null,null,null,null,null,null,null,null,null,null,null,null,null,null,null,{"$f":"IF(OR(Daten!$M$79=TRUE,Daten!$M$80=TRUE),TRUE,FALSE)","v":false},null,"Restdarlehen:",{"$f":"MIN(V63,ABS(AE81))","v":0},{"$f":"IF((Q63+S63)=0,0,AE82/(Q63+S63)*100)","v":0}]
[null,null,null,"Nutzung eines rückgerechneten Deckungsbeitrages vor Maßnahmebeginn (z. B. bei langfristigem Leerstand / Leerzug):",null,null,null,null,null,null,null,null,null,null,null,null,null,null,null,null,"Nein",{"$f":"IF(OR(U83=\"\",U83=\"Nein\"),0,AF100)","v":0},null,null,null,null,null,{"$f":"IF(AND(Daten!$M$3=TRUE,OR(Daten!$M$79=TRUE,Daten!$M$80=TRUE)),TRUE,FALSE)","v":false},null,"Förderdarlehen:",{"$f":"MIN(ABS(AE81+AE82),V59)","v":0},{"$f":"AE83/(Q59+S59)*100","v":0}]
[null,null,null,{"$f":"IF(OR(Daten!C4=TRUE,Daten!L70=TRUE),\"Jährlicher Deckungsbeitrag vor Maßnahmebeginn (∑ Nettokaltmiete abzgl. ∑ bestehender Kapitaldienst; ILB-Vordruck KE1605200756):\",\"\")","v":""},null,null,null,null,null,null,null,null,null,null,null,null,null,null,null,null,null,null,null,null,null,null,null,{"$f":"IF(AND(OR(Daten!$M$79=TRUE,Daten!$M$80=TRUE),OR(Daten!$M$3=FALSE,U83=\"\",U83=\"Nein\")),TRUE,FALSE)","v":false},null,"Prüfcheck I:","-",{"$f":"IF(AF83>=L59,FALSE,TRUE)","v":false}]
[null,null,null,{"$f":"IF(OR(Daten!$C$4=TRUE,Daten!$L$70=TRUE,Daten!$L$69=TRUE),\"≙ einem jährlichen Deckungsbeitrag, abzüglich pauschaler Bewirtschaftungskosten (\"&TEXT(SUM(V67:X70),\"#.##0,00\")&\" €):\",\"\")","v":""},null,null,null,null,null,null,null,null,null,null,null,null,null,null,null,null,null,{"$f":"IF(OR(Daten!$M$79=TRUE,Daten!$M$80=TRUE),IF($AB$82=FALSE,0,IF(AND(Daten!$M$3=TRUE,$U$83=\"Ja\"),AF100,IF(V84=\"\",0,IF(V84=0,(V71+V78+IF(D60<>\"\",V60,0)+IF(D61<>\"\",V61,0)+IF(D62<>\"\",V62,0)+Daten!$G$61),V84)))-V71),0)","v":0},null,null,null,null,null,{"$f":"IF(OR(Daten!$M$79=TRUE,Daten!$M$80=TRUE),TRUE,FALSE)","v":false},null,"Prüfcheck II:",{"$f":"AE81+AE82+AE83","v":0},{"$f":"IF(AE85<0,FALSE,TRUE)","v":true}]
[null,null,null,null,null,null,null,null,null,null,null,null,null,null,null,null,null,null,null,null,null,null,null,null,null,null,null,{"$f":"IF(OR(Daten!$M$79=TRUE,Daten!$M$80=TRUE),TRUE,FALSE)","v":false},null,"EK-Verzinsung II:",{"$f":"MIN(V77,ABS(SUM(AE81:AE83)))","v":0},{"$f":"IF(Daten!$E$104=0,0,AE86/Daten!$E$104*100)","v":0}]
[null,null,{"$f":"IF(Daten!M79=TRUE,\"Objektwirtschaftlichkeit (Neu)\",\"Objektwirtschaftlichkeit\")","v":"Objektwirtschaftlichkeit"},null,null,null,null,null,null,null,null,null,null,null,null,null,null,null,null,null,null,null,null,null,null,null,null,true,null,"EK-Verzinsung I:",{"$f":"MIN(V76,ABS(SUM(AE81:AE83)))","v":0},{"$f":"IF(Daten!$E$103=0,0,AE87/Daten!$E$103*100)","v":0}]
[null,null,null,null,null,"Einnahmen p. a.:",{"$f":"V35","v":0},null,null,null,null,"Ausgaben p. a.:",{"$f":"V80","v":0},null,null,null,null,null,null,null,{"$f":"IF(AND(OR(Daten!$M$79=TRUE,Daten!$M$80=TRUE),Daten!$G$60=TRUE),\"Nach Reduzierung Förderdarlehen ►\",\"\")","v":""},{"$f":"IF(OR(G88=\"\",M88=\"\"),\"\",ROUND(G88-M88,2))","v":0},null,null,{"$f":"IF(Grunddaten!S48>0,\"i\",\"\")","v":""},null,null,true,null,"Prüfcheck III:","-",{"$f":"IF(SUM(AE86:AE87)<ABS(AE85),FALSE,TRUE)","v":true}]
[null,null,null,null,null,null,null,null,null,null,null,null,null,null,null,null,null,null,null,null,null,null,null,null,null,null,null,true,null,"Prüfcheck IV:",{"$f":"AE85+AE86+AE87","v":0},{"$f":"IF(AE89<0,FALSE,TRUE)","v":true}]
[null,null,"Ergebnis",null,null,null,null,null,null,null,null,null,null,null,null,null,null,null,null,null,null,null,null,null,null,null,null,true,null,"Zuschussfeld:",0,{"$f":"IF(OR(AE90=\"\",AE90=0),0,INDEX(V48:X49,AE90,1)+AF81)","v":0}]
[null,null,null,{"$f":"IF(Daten!$L$71<>Daten!$M$71,\"Die Angaben sind noch nicht vollständig bzw. nicht plausibel. Eine Ergebnisanzeige ist derzeit nicht möglich.\",IF(AND(L59=0,Daten!$G$50>Daten!$D$55),\"Eine Wirtschaftlichkeit des Vorhabens ist bereits ohne weitere Förderung über das \"&CHAR(34)&\"Notwendige Fremddarlehen\"&CHAR(34)&\" darstellbar!\",IF(Daten!$R$5=TRUE,\"Auf Basis der vorliegenden Daten konnte leider keine verläßliche Höhe für das Förderdarlehen (Maßnahme) ermittelt werden!\"&IF(Daten!$M$3=FALSE,UPPER(\" Bitte kontaktieren Sie Ihre ILB für eine weiterführende Beratung!\"),\"\"),IF(ROUNDDOWN($V$88,0)<0,\"Das Vorhaben ist wirtschaftlich leider nicht darstellbar. Eine Förderung kann somit ohne Anpassungen \"&IF(AND(V88+V76+V77<0,Daten!$M$3=TRUE),UPPER(\"(auch unter Verzicht der Eigenkapitalverzinsung) \"),\"\")&\"nicht gewährt werden.\"&IF(Daten!$M$3=FALSE,UPPER(\" Bitte kontaktieren Sie Ihre ILB für eine weiterführende Beratung!\"),\"\")&\" Nachfolgend werden die grundsätzlich möglichen Förderbeträge zur Information ausgewiesen:\",IF(Daten!$C$4=TRUE,\"Feld für Hinweismeldungen ...\",\"\")))))","v":"Die Angaben sind noch nicht vollständig bzw. nicht plausibel. Eine Ergebnisanzeige ist derzeit nicht möglich."},null,null,null,null,null,null,null,null,null,null,null,null,null,null,null,null,null,null,null,null,null,null,null,{"$f":"IF(D91=\"\",FALSE,TRUE)","v":true}]
[null,null,null,null,null,null,null,null,null,null,null,null,null,null,null,null,null,null,null,null,null,null,null,null,null,null,null,{"$f":"AB91","v":true}]
[null,null,null,null,null,null,null,null,null,null,null,null,null,null,null,null,null,null,null,null,null,null,null,null,null,null,null,{"$f":"IF(Daten!$L$71<>Daten!$M$71,FALSE,AB91)","v":false}]
[null,null,null,"Förderbestandteil",null,null,null,null,null,"Max. Betrag",null,"… entspricht ≙",null,null,null,null,null,null,null,null,null,null,null,"Gesamtsummen (aufgerundet)",null,null,null,{"$f":"IF(Daten!$L$71<>Daten!$M$71,FALSE,TRUE)","v":false},null,"Geschätzter Deckungsbeitrag vor Maßnahme (Vollvermietung)"]
[null,null,null,null,null,null,null,null,null,null,null,null,null,null,null,null,null,null,null,null,null,null,null,null,null,null,null,{"$f":"AB94","v":false}]
[null,null,null,{"$f":"\"Mögliche Höhe für \"&IF(Daten!$Q$143=FALSE,D59,LEFT(D59,SEARCH(\";\",D59)-1)&\"):\")","v":"Mögliche Höhe für Förderdarlehen (Maßnahme):"},null,null,null,null,null,{"$f":"IF(OR(Daten!$L$71<>Daten!$M$71),\"\",Daten!$N$115)","v":""},null,{"$f":"IF(OR(Daten!$L$71<>Daten!$M$71),\"\",Daten!$O$115)","v":""},{"$f":"IF(OR(Daten!$L$71<>Daten!$M$71),\"\",Daten!$P$115)","v":""},null,{"$f":"IF(Daten!M109>1,\"∑ der möglichen Förderdarlehen:\",\"∑ des möglichen Förderdarlehens:\")","v":"∑ des möglichen Förderdarlehens:"},null,null,null,null,null,null,{"$f":"IF(J96=\"\",0,ROUNDUP(J96,-2))+IF(J97=\"\",0,ROUNDUP(J97,-2))+IF(J98=\"\",0,ROUNDUP(J98,-2))","v":0},null,null,null,null,null,{"$f":"IF($AB$94=FALSE,FALSE,IF(Daten!$M$109>0,TRUE,FALSE))","v":false}]
[null,null,null,{"$f":"\"Mögliche Höhe für \"&IF(D60=\"\",\"…:\",D60)","v":"Mögliche Höhe für …:"},null,null,null,null,null,{"$f":"IF(OR(Daten!$L$71<>Daten!$M$71),\"\",Daten!$N$116)","v":""},null,{"$f":"IF(OR(Daten!$L$71<>Daten!$M$71),\"\",Daten!$O$116)","v":""},{"$f":"IF(OR(Daten!$L$71<>Daten!$M$71),\"\",Daten!$P$116)","v":""},null,null,null,null,null,null,null,null,null,null,null,null,null,null,{"$f":"IF($AB$94=FALSE,FALSE,IF(Daten!$M$109>1,TRUE,FALSE))","v":false},null,{"$f":"\"Der rückgerechnete (theoretisch) maximale Deckungsbeitrag unterstellt eine Vollvermietung vor Maßnahmebeginn und eine Modernisierungsumlage von \"&TEXT(AF105,\"#.##0,00 €\")&\" pro m² Wohnfläche, basierend auf \"&TEXT(AF104*100,\"#.##0,00\")&\"%  Modernisierungskostenanteil.\"","v":"Der rückgerechnete (theoretisch) maximale Deckungsbeitrag unterstellt eine Vollvermietung vor Maßnahmebeginn und eine Modernisierungsumlage von 0,00 € pro m² Wohnfläche, basierend auf 60,00%  Modernisierungskostenanteil."}]
[null,null,null,{"$f":"\"Mögliche Höhe für \"&IF(D61=\"\",\"…:\",D61)","v":"Mögliche Höhe für …:"},null,null,null,null,null,{"$f":"IF(OR(Daten!$L$71<>Daten!$M$71),\"\",Daten!$N$117)","v":""},null,{"$f":"IF(OR(Daten!$L$71<>Daten!$M$71),\"\",Daten!$O$117)","v":""},{"$f":"IF(OR(Daten!$L$71<>Daten!$M$71),\"\",Daten!$P$117)","v":""},null,null,null,null,null,null,null,null,null,null,null,null,null,null,{"$f":"IF($AB$94=FALSE,FALSE,IF(Daten!$M$109>2,TRUE,FALSE))","v":false}]
[null,null,null,null,null,null,null,null,null,null,null,null,null,null,null,null,null,null,null,null,null,null,null,null,null,null,null,{"$f":"$AB$94","v":false}]
[null,null,null,{"$f":"\"Mögliche Höhe für \"&IF(P50=\"\",\"…:\",P50)","v":"Mögliche Höhe für …:"},null,null,null,null,null,{"$f":"IF(OR(Daten!$L$71<>Daten!$M$71),\"\",Daten!$N$112)","v":""},null,{"$f":"IF(OR(Daten!$L$71<>Daten!$M$71),\"\",Daten!$O$112)","v":""},{"$f":"Daten!$P$112","v":""},null,{"$f":"IF(Daten!$M$108>1,\"∑ der möglichen Förderzuschüsse:\",\"∑ des möglichen Förderzuschusses:\")","v":"∑ des möglichen Förderzuschusses:"},null,null,null,null,null,null,{"$f":"IF(J100=\"\",0,ROUNDUP(J100,-2))+IF(J101=\"\",0,ROUNDUP(J101,-2))+IF(J102=\"\",0,ROUNDUP(J102,-2))","v":0},null,null,null,null,null,{"$f":"IF($AB$94=FALSE,FALSE,IF(Daten!$M$108>0,TRUE,FALSE))","v":false},null,"Mieteinnahmen:",{"$f":"IF(OR(SUM(L27:L29)=0,SUM(V27:X29)=0),0,(((V27*L27+V28*L28+V29*L29)*12)-AF101))","v":0},{"$f":"AE100+AE101-AE102","v":0}]
[null,null,null,{"$f":"\"Mögliche Höhe für \"&IF(P51=\"\",\"…:\",P51)","v":"Mögliche Höhe für …:"},null,null,null,null,null,{"$f":"IF(OR(Daten!$L$71<>Daten!$M$71),\"\",Daten!$N$113)","v":""},null,{"$f":"IF(OR(Daten!$L$71<>Daten!$M$71),\"\",Daten!$O$113)","v":""},{"$f":"Daten!$P$113","v":""},null,null,null,null,null,null,null,null,null,null,null,null,null,null,{"$f":"IF($AB$94=FALSE,FALSE,IF(Daten!$M$108>1,TRUE,FALSE))","v":false},null,"Sonstige Einnahmen:",{"$f":"V31","v":0},{"$f":"AF105*K19*12","v":0}]
[null,null,null,{"$f":"\"Mögliche Höhe für \"&IF(P52=\"\",\"…:\",P52)","v":"Mögliche Höhe für …:"},null,null,null,null,null,{"$f":"IF(OR(Daten!$L$71<>Daten!$M$71),\"\",Daten!$N$114)","v":""},null,{"$f":"IF(OR(Daten!$L$71<>Daten!$M$71),\"\",Daten!$O$114)","v":""},{"$f":"Daten!$P$114","v":""},null,null,null,null,null,null,null,null,null,null,null,null,null,null,{"$f":"IF($AB$94=FALSE,FALSE,IF(Daten!$M$108>2,TRUE,FALSE))","v":false},null,"Alter Kapitaldienst:",{"$f":"V58","v":0},{"$f":"IF(OR(K19=\"\",K19=0),0,AE100/K19/12)","v":0}]
[null,null,null,null,null,null,null,null,null,null,null,null,null,null,null,null,null,null,null,null,null,null,null,null,null,null,null,{"$f":"AB94","v":false}]
[null,null,null,{"$f":"Daten!J133&IF(Daten!$J$134=\"\",\"\",\" \"&Daten!$J$134)","v":"Die Gesamtförderung i. H. v. 0,00 EUR (≙ ,00% der Kosten) entspräche Ø 0,00 EUR pro m² Wohnfläche bzw. Ø 0,00 EUR pro WE."},null,null,null,null,null,null,null,null,null,null,null,null,null,null,null,null,null,null,null,null,null,null,null,{"$f":"AB94","v":false},null,"Modernisierungskosten:",{"$f":"I40*AF104","v":0},{"$f":"Grunddaten!H93/100","v":0.6}]
[null,null,null,null,null,null,null,null,null,null,null,null,null,null,null,null,null,null,null,null,null,null,null,null,null,null,null,{"$f":"IF(AB104=FALSE,FALSE,IF(Daten!$J$134=\"\",FALSE,TRUE))","v":false},null,"… umlagefähig p. a.:",{"$f":"AE104*IF(OR(Daten!$L$14=TRUE,Daten!$L$15=TRUE,Daten!$L$16=TRUE,Daten!$L$17=TRUE),8%,11%)","v":0},{"$f":"IF(AE105=0,0,MIN(AE105/K19/12,IF(OR(Daten!$L$14=TRUE,Daten!$L$15=TRUE,Daten!$L$16=TRUE,Daten!$L$17=TRUE),2,3/1.95583)))","v":0}]
[null,null,null,null,null,null,null,null,null,null,null,null,null,null,null,null,null,null,null,null,null,null,null,null,null,null,null,true]
[null,null,null,null,null,null,null,null,null,null,null,{"$f":"IF(O107<>\"\",\"Hinweis:\",\"\")","v":""},null,null,{"$f":"IF(Grunddaten!$T$98>0,\"Die Grunddaten der Richtlinien wurden in mindestens einem Punkt manuell angepasst. Die Berechnung entspricht nicht mehr den grundsätzlichen Regelungen der geltenden Richtlinie.\",IF(Daten!J101<>\"\",Daten!J101,\"\"))","v":""},null,null,null,null,null,null,null,null,null,null,null,null,true,null,"Nebenrechnung: EK-Verzinsung"]
[null,null,null,{"$f":"TODAY()","v":"2024-03-18"},null,null,null,null,null,null,null,{"$f":"IF(O107<>\"\",\"i\",\"\")","v":""},null,null,null,null,null,null,null,null,null,null,null,null,null,null,null,true]
[null,null,null,"Datum / Unterschrift",null,null,null,null,null,null,null,null,null,null,null,null,null,null,null,null,null,null,null,null,null,null,null,true,null,"EK-Verzinsung:",{"$f":"V78","v":0},{"$f":"IF(AE109>0,TRUE,FALSE)","v":false}]
[null,null,null,null,null,null,null,null,null,null,null,null,null,null,null,null,null,null,null,null,null,null,null,null,null,null,null,true,null,"Unterdeckung:",{"$f":"MIN(0,V88)","v":0},{"$f":"IF(AE110<0,TRUE,FALSE)","v":false}]
[null,null,{"$f":"C6","v":"Version: 24.03 "},null,null,null,null,"Förderrechner - Erläuterungen",null,null,null,null,null,null,null,null,null,null,null,null,null,null,null,null,null,null,null,{"$f":"IF(Daten!$G$60=TRUE,TRUE,FALSE)","v":false},null,"Differenz:",{"$f":"AE109+AE110","v":0},{"$f":"IF(AE111>0,TRUE,FALSE)","v":false}]
[null,null,{"$f":"C7","v":"2024-01-31"},null,null,null,null,null,null,null,null,null,null,null,null,null,null,null,null,null,null,null,null,null,null,null,null,{"$f":"$AB$111","v":false},null,"Anzeige Schaltfläche?",null,{"$f":"IF(AND(V74<>\"\",V74=0),FALSE,IF(OR(V74<>\"\",V88<0),TRUE,FALSE))","v":false}]
[null,null,"Erläuterungen",null,null,null,null,null,null,null,null,null,null,null,null,null,null,null,null,null,null,null,null,null,null,null,null,{"$f":"$AB$111","v":false}]
[null,null,null,{"$f":"IF(AND(Daten!C4=FALSE,Daten!G60=FALSE),\"\",UPPER(\"Zusätzliche Erläuterungen zur Berechnung (Kürzung) des Förderdarlehens\"&IF(AND(Daten!$L$16=TRUE,D60<>\"\"),\" I\",\"\")))","v":""},null,null,null,null,null,null,null,null,null,null,null,null,null,null,null,null,null,null,null,null,null,null,null,{"$f":"$AB$111","v":false},null,"Nebenrechnung: Wohneinheiten"]
[null,null,null,null,null,null,null,null,null,null,null,null,null,null,null,null,null,null,null,null,null,null,null,null,null,null,null,{"$f":"$AB$111","v":false}]
[null,null,null,{"$f":"IF(AND(Daten!$C$4=FALSE,Daten!$G$60=FALSE),\"\",\"Das grundsätzlich mögliche Förderdarlehen von \"&TEXT(Daten!$B$64,\"#.##0,00\")&\" € / m² (\"&TEXT(Daten!$D$61,\"#.##0,00\")&\" €) wurde aufgrund des Vergleichs der jährlichen Deckungsbeiträge (vor Beginn der Maßnahme und hinterher) um \"&TEXT(Daten!$B$64-Daten!$D$56,\"#.##0,00\")&\" € / m² auf \"&TEXT(Daten!$D$56,\"#.##0,00\")&\" € / m² (\"&TEXT(Daten!D47,\"#.##0,00\")&\" €) gekürzt.\"&\" Die Ermittlung der Kürzung stellt sich wie folgt dar:\")","v":""},null,null,null,null,null,null,null,null,null,null,null,null,null,null,null,null,null,null,null,null,null,null,null,false,null,"Ist","Minimum","Soll"]
[null,null,null,null,null,null,null,null,null,null,null,null,null,null,null,null,null,null,null,null,null,null,null,null,null,null,null,false,null,"1. EK-Grenze"]
[null,null,null,null,null,null,null,null,null,null,null,null,null,null,null,null,null,null,null,null,null,null,null,null,null,null,null,false,null,{"$f":"J27","v":0},{"$f":"AF118","v":0},{"$f":"Daten!C91","v":0}]
[null,null,null,null,null,null,null,null,null,null,null,null,null,null,null,null,null,null,null,null,null,null,null,null,null,null,null,false,null,"2. EK-Grenze"]
[null,null,null,null,null,null,null,null,null,null,null,null,null,null,null,null,null,null,null,null,null,null,null,null,null,null,null,false,null,{"$f":"J28","v":0},{"$f":"MIN(AF120,MAX(0,AF118+AF120-AD118))","v":0},{"$f":"Daten!C92","v":0}]
[null,null,null,{"$f":"IF(AND(Daten!C4=FALSE,Daten!G60=FALSE),\"\",\"Darstellung der Objektwirtschaftlichkeit bei maximal möglicher Förderung\")","v":""},null,null,null,null,null,null,null,null,null,null,null,null,null,null,null,null,null,null,null,null,null,null,null,false,null,{"$f":"IF(Daten!$L$17=TRUE,\"3. EK-Grenze\",\"Freie WE\")","v":"3. EK-Grenze"}]
[null,null,null,null,null,null,null,null,null,null,null,null,null,null,null,null,null,null,null,null,null,null,null,null,null,null,null,false,null,{"$f":"J29","v":0},{"$f":"MAX(0,MIN(AF122,MAX(0,AF118+AF120+AF122-AD118-AD120)))","v":0},{"$f":"Daten!C93","v":0}]
[null,null,null,{"$f":"IF(AND(Daten!C4=FALSE,Daten!G60=FALSE),\"\",\"Mieteinnahmen p. a.:\")","v":""},null,null,null,null,null,null,null,null,null,null,{"$f":"IF(AND(Daten!$C$4=FALSE,Daten!$G$60=FALSE),\"\",Daten!$G$38)","v":""},null,null,null,{"$f":"IF(AND(Daten!C4=FALSE,Daten!G60=FALSE),\"\",\"Vergleich\")","v":""},null,null,null,null,null,null,null,null,false,null,"Gesamt"]
[null,null,null,null,null,null,null,null,null,null,null,null,null,null,null,null,null,null,{"$f":"IF(OR(AB82=FALSE,AND(Daten!C4=FALSE,Daten!G60=FALSE)),\"\",\"Jährlicher Deckungsbeitrag vor Beginn der Maßnahme:\"&CHAR(10)&TEXT(IF(AND(Daten!$M$3=TRUE,$U$83=\"Ja\"),AF100,V84),\"#.##0,00\")&\" EUR\"&CHAR(10)&CHAR(10)&\"Abzgl. pauschaler Bewirtschaftungskosten:\"&CHAR(10)&TEXT(SUM(V67:X70),\"#.##0,00\")&\" EUR\")","v":""},null,null,null,null,null,null,null,null,false,null,{"$f":"AD118+AD120+AD122","v":0},{"$f":"AF124","v":0},{"$f":"IF(AF130=FALSE,K18,AF118+AF120+AF122)","v":0}]
[null,null,null,{"$f":"IF(AND(Daten!C4=FALSE,Daten!G60=FALSE),\"\",\"./. abzgl. Kapitaldienst p. a. aus bereits bestehenden Finanzierungen:\")","v":""},null,null,null,null,null,null,null,null,null,null,{"$f":"IF(AND(Daten!$C$4=FALSE,Daten!$G$60=FALSE),\"\",Daten!$G$44)","v":""},null,null,null,null,null,null,null,null,null,null,null,null,false,null,"Prüfungen"]
[null,null,null,null,null,null,null,null,null,null,null,null,null,null,null,null,null,null,null,null,null,null,null,null,null,null,null,false,null,{"$f":"AD117","v":"1. EK-Grenze"},{"$f":"AD119","v":"2. EK-Grenze"},{"$f":"AD121","v":"3. EK-Grenze"}]
[null,null,null,{"$f":"IF(AND(Daten!C4=FALSE,Daten!G60=FALSE),\"\",\"./. abzgl. Kapitaldienst p. a. neu (bei voller Förderung i. H. v. \"&TEXT(Daten!$D$61,\"#.##0,00\")&\" €):\")","v":""},null,null,null,null,null,null,null,null,null,null,{"$f":"IF(AND(Daten!$C$4=FALSE,Daten!$G$60=FALSE),\"\",SUM(Daten!$G$61:$G$63))","v":""},null,null,null,null,null,null,null,null,null,null,null,null,false,null,{"$f":"IF(AND(AD118>=AF118,AE118>=0),TRUE,FALSE)","v":true},{"$f":"IF(AND(AE120=0,OR(J28=0,J28=\"\")),TRUE,IF(AND(AD118+AD120>=AF118+AF120,AE120>=0),TRUE,FALSE))","v":true},{"$f":"IF(OR(AF130=FALSE,AND(AD124=AF124,AE122>=0)),TRUE,FALSE)","v":true}]
[null,null,null,null,null,null,null,null,null,null,null,null,null,null,null,null,null,null,null,null,null,null,null,null,null,null,null,false,null,{"$f":"IF(OR($K$17=\"\",$K$18=\"\",$K$19=\"\"),\"\",TEXT(AE118,\"#.##0\")&\" WE\")","v":""},{"$f":"IF(OR($K$17=\"\",$K$18=\"\",$K$19=\"\"),\"\",TEXT(AE120,\"#.##0\")&\" WE\")","v":""},{"$f":"IF(OR($K$17=\"\",$K$18=\"\",$K$19=\"\"),\"\",TEXT(AE122,\"#.##0\")&\" WE\")","v":""}]
[null,null,null,{"$f":"IF(AND(Daten!C4=FALSE,Daten!G60=FALSE),\"\",\"./. abzgl. Eigenkapitalverzinsung p. a.:\")","v":""},null,null,null,null,null,null,null,null,null,null,{"$f":"IF(AND(Daten!$C$4=FALSE,Daten!$G$60=FALSE),\"\",Daten!$G$48)","v":""},null,null,null,null,null,null,null,null,null,null,null,null,false,null,{"$f":"IF(AND(AF130=TRUE,AF124>AD124),IF(AF124-AD124=1,\"… es fehlt 1 WE!\",\"… es fehlen \"&TEXT(AF124-AD124,\"#.##\")&\" WE!\"),IF(AD124>AF124,IF(AD124-AF124=1,\" … es ist 1 WE zuviel!\",\"… es sind \"&TEXT(AD124-AF124,\"#.##\")&\" WE zuviel!\"),\"\"))","v":""}]
[null,null,null,null,null,null,null,null,null,null,null,null,null,null,null,null,null,null,{"$f":"IF(AND(Daten!C4=FALSE,Daten!G60=FALSE),\"\",\"ò\")","v":""},null,null,null,null,null,null,null,null,false,null,"Erfüllung Bindungsquoten für WE:",null,{"$f":"IF(OR(Daten!$M$4=TRUE,AND(Daten!$M$3=TRUE,Grunddaten!$H$72=TRUE)),TRUE,FALSE)","v":false}]
[null,null,null,{"$f":"IF(AND(Daten!C4=FALSE,Daten!G60=FALSE),\"\",\"./. abzgl. pauschale Bewirtschaftungskosten p. a.:\")","v":""},null,null,null,null,null,null,null,null,null,null,{"$f":"IF(AND(Daten!C4=FALSE,Daten!G60=FALSE),\"\",SUM(V67:X69))","v":""},null,null,null,null,null,null,null,null,null,null,null,null,false]
[null,null,null,null,null,null,null,null,null,null,null,null,null,null,null,null,null,null,null,null,null,null,null,null,null,null,null,false,null,"Nebenrechnung: Wohnflächen"]
[null,null,null,{"$f":"IF(AND(Daten!C4=FALSE,Daten!G60=FALSE),\"\",\"= Jährlicher Deckungsbeitrag (bei voller Förderung):\")","v":""},null,null,null,null,null,null,null,null,null,null,{"$f":"IF(AND(Daten!C4=FALSE,Daten!G60=FALSE),\"\",O123-SUM(O125,O127,O129,O131))","v":""},null,null,{"$f":"IF(O133=\"\",\"\",\"NEU\")","v":""},{"$f":"IF(AND(Daten!C4=FALSE,Daten!G60=FALSE),\"\",IF(AB82=FALSE,0,IF(AND(Daten!$M$3=TRUE,$U$83=\"Ja\"),AF100,V84)-SUM(V67:X69)))","v":""},null,null,null,{"$f":"IF(S133=\"\",\"\",\"ALT\")","v":""},null,null,null,null,false]
[null,null,null,null,null,null,null,null,null,null,null,null,null,null,null,null,null,null,null,null,null,null,null,null,null,null,null,false,null,"Ist","Minimum","Soll"]
[null,null,null,{"$f":"IF(AND(Daten!C4=FALSE,Daten!G60=FALSE),\"\",\"∆ Differenz jährlicher Deckungsbeitrag ALT zu NEU (≙ monatlicher Kürzungsbetrag):\")","v":""},null,null,null,null,null,null,null,null,null,null,{"$f":"IF(AND(Daten!C4=FALSE,Daten!G60=FALSE),\"\",IF(AB82=FALSE,0,O133-S133))","v":""},null,null,null,null,null,null,null,null,null,null,null,null,false,null,"1. EK-Grenze"]
[null,null,null,null,null,null,null,null,null,null,null,null,null,null,null,null,null,null,null,null,null,null,null,null,null,null,null,false,null,{"$f":"L27","v":0},{"$f":"AF136","v":0},{"$f":"ROUND(Daten!D91,2)","v":0}]
[null,null,null,null,null,null,null,null,null,null,null,null,null,null,null,null,null,null,null,null,null,null,null,null,null,null,null,false,null,"2. EK-Grenze"]
[null,null,null,{"$f":"IF(AND(Daten!$C$4=FALSE,Daten!$G$60=FALSE),\"\",IF(AND(V85<V88,O135<0),\"Der jährliche Deckungsbeitrag nach Maßnahmedurchführung (\"&TEXT(V88,\"#.##0,00\")&\" €) ist bereits ohne Nutzung eines Förderdarlehens größer, als der Deckungsbeitrag vor Beginn der Maßnahme (\"&TEXT(V85,\"#.##0,00\")&\" €). Damit kann kein leider kein entsprechendes Förderdarlehen gewährt werden.\",\"Der jährliche Deckungsbeitrag nach der Förderung (\"&TEXT(O133,\"#.##0,00\")&\" €) muss um ca. \"&TEXT(O133-S133,\"#.##0,00\")&\" € reduziert werden, damit sich die Objektwirtschaftlichkeit nach Abschluss der Maßnahme nicht besser darstellt, als vorher (\"&TEXT(S133,\"#.##0,00\")&\" €).\"&\" Erreicht wird dies durch die Erhöhung der Kapitalkosten zu Lasten der Förderung (Reduzierung Förderdarlehen und Erhöhung \"&CHAR(34)&\"Notwendige Restfinanzierung\"&CHAR(34)&\").\"))","v":""},null,null,null,null,null,null,null,null,null,null,null,null,null,null,null,null,null,null,null,null,null,null,null,false,null,{"$f":"L28","v":0},{"$f":"MIN(AF138,MAX(0,AF136+AF138-AD136))","v":0},{"$f":"ROUND(Daten!D92,2)","v":0}]
[null,null,null,null,null,null,null,null,null,null,null,null,null,null,null,null,null,null,null,null,null,null,null,null,null,null,null,false,null,{"$f":"IF(Daten!$L$17=TRUE,\"3. EK-Grenze\",\"Freie WE\")","v":"3. EK-Grenze"}]
[null,null,null,null,null,null,null,null,null,null,null,null,null,null,null,null,null,null,null,null,null,null,null,null,null,null,null,false,null,{"$f":"L29","v":0},{"$f":"MIN(AF140,MAX(0,AF136+AF138+AF140-AD136-AD138))","v":0},{"$f":"ROUND(Daten!D93,2)","v":0}]
[null,null,null,null,null,null,null,null,null,null,null,null,null,null,null,null,null,null,null,null,null,null,null,null,null,null,null,false,null,"Gesamt"]
[null,null,null,null,null,null,null,null,null,null,null,null,null,null,null,null,null,null,null,null,null,null,null,null,null,null,null,false,null,{"$f":"AD136+AD138+AD140","v":0},{"$f":"AF142","v":0},{"$f":"AF136+AF138+AF140","v":0}]
[null,null,null,{"$f":"IF(AND(Daten!C4=FALSE,Daten!G60=FALSE),\"\",\"Darstellung der Objektwirtschaftlichkeit bei reduzierter Förderung\")","v":""},null,null,null,null,null,null,null,null,null,null,null,null,null,null,null,null,null,null,null,null,null,null,null,false,null,"Prüfungen"]
[null,null,null,null,null,null,null,null,null,null,null,null,null,null,null,null,null,null,null,null,null,null,null,null,null,null,null,false,null,{"$f":"AD135","v":"1. EK-Grenze"},{"$f":"AD137","v":"2. EK-Grenze"},{"$f":"AD139","v":"3. EK-Grenze"}]
[null,null,null,{"$f":"IF(AND(Daten!C4=FALSE,Daten!G60=FALSE),\"\",\"Mieteinnahmen p. a.:\")","v":""},null,null,null,null,null,null,null,null,null,null,{"$f":"IF(AND(Daten!C4=FALSE,Daten!G60=FALSE),\"\",Daten!G38)","v":""},null,null,null,{"$f":"IF(AND(Daten!C4=FALSE,Daten!G60=FALSE),\"\",\"Vergleich\")","v":""},null,null,null,null,null,null,null,null,false,null,{"$f":"IF(AND(AD136>=AF136,AE118>=0),TRUE,FALSE)","v":true},{"$f":"IF(AND(AE138=0,OR(L28=0,L28=\"\")),TRUE,IF(AND(AD136+AD138>=AF136+AF138,AE120>=0),TRUE,FALSE))","v":true},{"$f":"IF(AND(AD142=AF142,AE122>=0),TRUE,FALSE)","v":true}]
[null,null,null,null,null,null,null,null,null,null,null,null,null,null,null,null,null,null,{"$f":"IF(OR(AB82=FALSE,AND(Daten!C4=FALSE,Daten!G60=FALSE)),\"\",\"Jährlicher Deckungsbeitrag vor Beginn der Maßnahme:\"&CHAR(10)&TEXT(IF(AND(Daten!$M$3=TRUE,$U$83=\"Ja\"),AF100,V84),\"#.##0,00\")&\" EUR\"&CHAR(10)&CHAR(10)&\"Abzgl. pauschaler Bewirtschaftungskosten \"&CHAR(10)&TEXT(SUM(V67:X70),\"#.##0,00\")&\" EUR\")","v":""},null,null,null,null,null,null,null,null,false,null,{"$f":"IF(OR($K$17=\"\",$K$18=\"\",$K$19=\"\"),\"\",TEXT(AE136,\"#.##0,00\")&\" m²\")","v":""},{"$f":"IF(OR($K$17=\"\",$K$18=\"\",$K$19=\"\"),\"\",TEXT(AE138,\"#.##0,00\")&\" m²\")","v":""},{"$f":"IF(OR($K$17=\"\",$K$18=\"\",$K$19=\"\"),\"\",TEXT(AE140,\"#.##0,00\")&\" m²\")","v":""}]
[null,null,null,{"$f":"IF(AND(Daten!C4=FALSE,Daten!G60=FALSE),\"\",\"./. abzgl. Kapitaldienst p. a. aus bereits bestehenden Finanzierungen:\")","v":""},null,null,null,null,null,null,null,null,null,null,{"$f":"IF(AND(Daten!C4=FALSE,Daten!G60=FALSE),\"\",Daten!G44)","v":""},null,null,null,null,null,null,null,null,null,null,null,null,false,null,{"$f":"IF(AF142>AD142,\"… es fehlen \"&TEXT(AF142-AD142,\"#.##0,00\")&\" m²!\",IF(AD142>AF142,\"… es sind \"&TEXT(AD142-AF142,\"#.##0,00\")&\" m² zuviel!\",\"\"))","v":""}]
[null,null,null,null,null,null,null,null,null,null,null,null,null,null,null,null,null,null,null,null,null,null,null,null,null,null,null,false]
[null,null,null,{"$f":"IF(AND(Daten!C4=FALSE,Daten!G60=FALSE),\"\",\"./. abzgl. Kapitaldienst p. a. neu (nach Kürzung der Förderung auf \"&TEXT(Daten!D47,\"#.##0,00\")&\" €):\")","v":""},null,null,null,null,null,null,null,null,null,null,{"$f":"IF(AND(Daten!C4=FALSE,Daten!G60=FALSE),\"\",SUM(V59:X63))","v":""},null,null,null,null,null,null,null,null,null,null,null,null,false]
[null,null,null,null,null,null,null,null,null,null,null,null,null,null,null,null,null,null,null,null,null,null,null,null,null,null,null,false,null,"Nebenrechnung: Absenkung Tilgungssatz Baudarlehen"]
[null,null,null,{"$f":"IF(AND(Daten!C4=FALSE,Daten!G60=FALSE),\"\",\"./. abzgl. Eigenkapitalverzinsung p. a.:\")","v":""},null,null,null,null,null,null,null,null,null,null,{"$f":"IF(AND(Daten!C4=FALSE,Daten!G60=FALSE),\"\",V76+V77)","v":""},null,null,null,null,null,null,null,null,null,null,null,null,false]
[null,null,null,null,null,null,null,null,null,null,null,null,null,null,null,null,null,null,{"$f":"IF(AND(Daten!C4=FALSE,Daten!G60=FALSE),\"\",\"ò\")","v":""},null,null,null,null,null,null,null,null,false,null,"Eigenkapitalzinsbasis:",{"$f":"V74","v":0},{"$f":"IF(AE152=0,TRUE,FALSE)","v":true}]
[null,null,null,{"$f":"IF(AND(Daten!C4=FALSE,Daten!G60=FALSE),\"\",\"./. abzgl. pauschale Bewirtschaftungskosten p. a.:\")","v":""},null,null,null,null,null,null,null,null,null,null,{"$f":"IF(AND(Daten!C4=FALSE,Daten!G60=FALSE),\"\",SUM(V67:X69))","v":""},null,null,null,null,null,null,null,null,null,null,null,null,false,null,"Jahresüberschuss:",{"$f":"V88","v":0},{"$f":"IF(AE153>0,FALSE,TRUE)","v":true}]
[null,null,null,null,null,null,null,null,null,null,null,null,null,null,null,null,null,null,null,null,null,null,null,null,null,null,null,false,null,"Spielraum Tilgungssatz:",{"$f":"S59%-Grunddaten!$H$58%","v":0},{"$f":"IF(AE154>0,TRUE,FALSE)","v":false}]
[null,null,null,{"$f":"IF(AND(Daten!C4=FALSE,Daten!G60=FALSE),\"\",\"= Jährlicher Deckungsbeitrag (bei reduzierter Förderung):\")","v":""},null,null,null,null,null,null,null,null,null,null,{"$f":"IF(AND(Daten!C4=FALSE,Daten!G60=FALSE),\"\",O145-SUM(O147,O149,O151,O153))","v":""},null,null,{"$f":"IF(O155=\"\",\"\",\"NEU\")","v":""},{"$f":"IF(AND(Daten!C4=FALSE,Daten!G60=FALSE),\"\",IF(AB82=FALSE,0,IF(AND(Daten!$M$3=TRUE,$U$83=\"Ja\"),AF100,V84)-SUM(V67:X69)))","v":""},null,null,null,{"$f":"IF(S155=\"\",\"\",\"ALT\")","v":""},null,null,null,null,false,null,"Absenkung Tilgungssatz:",{"$f":"IF(OR(SUM(L59:P60)=0,AE154=0),0,MIN(AE154,ABS((AE153/SUM(L59:P60)))))","v":0},{"$f":"IF(AE155>0,TRUE,FALSE)","v":false}]
[null,null,null,null,null,null,null,null,null,null,null,null,null,null,null,null,null,null,null,null,null,null,null,null,null,null,null,false,null,"Finaler Tilgungssatz:",{"$f":"ROUND(S59%-AE155,6)","v":0.02},{"$f":"IF(AND(COUNTIF(AF152:AF155,TRUE)=4,S59/100<>AE156),TRUE,FALSE)","v":false}]
[null,null,null,{"$f":"IF(AND(Daten!C4=FALSE,Daten!G60=FALSE),\"\",\"∆ Differenz jährlicher Deckungsbeitrag alt zu neu (nach reduzierter Förderung):\")","v":""},null,null,null,null,null,null,null,null,null,null,{"$f":"IF(AND(Daten!C4=FALSE,Daten!G60=FALSE),\"\",IF(AB82=FALSE,0,ROUND(O155,2)-ROUND(S155,2)))","v":""},null,null,null,null,null,null,null,null,null,null,null,null,false]
[null,null,null,null,null,null,null,null,null,null,null,null,null,null,null,null,null,null,null,null,null,null,null,null,null,null,null,false]
[null,null,null,null,null,null,null,null,null,null,null,null,null,null,null,null,null,null,null,null,null,null,null,null,null,null,null,true]

{"sheet":"Grunddaten","index":2,"n_rows":98,"n_cols":21,"rows_kept":98,"cut":false,"hidden":true,"merged":[[0,1,0,2],[0,4,0,5],[64,12,67,13],[68,2,68,6],[37,12,37,20],[8,3,8,6],[37,2,37,7],[4,1,5,2],[4,3,5,6],[4,7,5,8],[64,2,67,3],[73,2,75,3],[73,12,75,13],[76,12,78,13],[87,2,89,3],[85,12,86,13],[87,12,89,13],[85,2,86,3],[76,2,78,3]]}
[null,"Daten gesichert:",null,true,"Bewirtschaftungskosten:",null,false,"Grunddaten:",false,null,false]
[null,"-","-","-","-","-","-","-","-",null,false]
[null,"-","-","-","-","-","-","-","-",null,false]
[null,null,null,null,null,null,null,null,null,null,true]
[null,{"$f":"Programmversionen!B5","v":"2024-01-31"},null,"Grunddaten MWB-Förderrechner",null,null,null,{"$f":"Programmversionen!J5","v":"Version: 24.03 "},null,null,true]
[null,null,null,null,null,null,null,null,null,null,true]
[null,null,null,null,null,null,null,null,null,null,true]
[null,null,null,null,null,null,null,null,null,null,true]
[null,null,null,"Bewirtschaftungskosten",null,null,null,null,null,null,true]
[null,"Gültig ab","Instandhaltungs-\nkosten pro \nm² Wfl. p. a. ","Erhöhung bei Aufzug \npro m² Wfl. p. a.","Instandhaltungs-\nkosten pro \nGarage p. a.","Verwaltungs-\nkosten pro \nWohneinheit p. a. ","Verwaltungs-\nkosten pro\nGarage p. a. ","Mietausfallwagnis\n(Wohnraum)","Leerstandkosten pro m² Wfl. P. a.",null,true]
[null,"2014-01-01",8.6199999999999992,1.22,82.6,279.35000000000002,36.43,2,1,null,{"$f":"IF(B11=\"\",FALSE,TRUE)","v":true},null,{"$f":"IF(AND(B11<>\"\",B11<=Daten!$O$5,OR(B12=\"\",B12>Daten!$O$5)),TRUE,FALSE)","v":false}]
[null,"2017-01-01",8.7799999999999994,1.24,84.16,284.63,37.119999999999997,2,1,null,true,null,{"$f":"IF(AND(B12<>\"\",B12<=Daten!$O$5,OR(B13=\"\",B13>Daten!$O$5)),TRUE,FALSE)","v":false}]
[null,"2020-01-01",9.2100000000000009,1.3,88.23,298.41000000000003,38.92,2,1,null,true,null,{"$f":"IF(AND(B13<>\"\",B13<=Daten!$O$5,OR(B14=\"\",B14>Daten!$O$5)),TRUE,FALSE)","v":false}]
[null,"2023-01-01",10.61,1.5,101.62,343.69,44.83,2,1,null,true,null,{"$f":"IF(AND(B14<>\"\",B14<=Daten!$O$5,OR(B15=\"\",B15>Daten!$O$5)),TRUE,FALSE)","v":true}]
[null,null,null,null,null,null,null,null,null,null,false,null,{"$f":"IF(AND(B15<>\"\",B15<=Daten!$O$5,OR(B16=\"\",B16>Daten!$O$5)),TRUE,FALSE)","v":false}]
[null,null,null,null,null,null,null,null,null,null,false,null,{"$f":"IF(AND(B16<>\"\",B16<=Daten!$O$5,OR(B17=\"\",B17>Daten!$O$5)),TRUE,FALSE)","v":false}]
[null,null,null,null,null,null,null,null,null,null,false,null,{"$f":"IF(AND(B17<>\"\",B17<=Daten!$O$5,OR(B18=\"\",B18>Daten!$O$5)),TRUE,FALSE)","v":false}]
[null,null,null,null,null,null,null,null,null,null,false,null,{"$f":"IF(AND(B18<>\"\",B18<=Daten!$O$5,OR(B19=\"\",B19>Daten!$O$5)),TRUE,FALSE)","v":false}]
[null,null,null,null,null,null,null,null,null,null,false,null,{"$f":"IF(AND(B19<>\"\",B19<=Daten!$O$5,OR(B20=\"\",B20>Daten!$O$5)),TRUE,FALSE)","v":false}]
[null,null,null,null,null,null,null,null,null,null,false,null,{"$f":"IF(AND(B20<>\"\",B20<=Daten!$O$5,OR(B21=\"\",B21>Daten!$O$5)),TRUE,FALSE)","v":false}]
[null,null,null,null,null,null,null,null,null,null,false,null,{"$f":"IF(AND(B21<>\"\",B21<=Daten!$O$5,OR(B22=\"\",B22>Daten!$O$5)),TRUE,FALSE)","v":false}]
[null,null,null,null,null,null,null,null,null,null,false,null,{"$f":"IF(AND(B22<>\"\",B22<=Daten!$O$5,OR(B23=\"\",B23>Daten!$O$5)),TRUE,FALSE)","v":false}]
[null,null,null,null,null,null,null,null,null,null,false,null,{"$f":"IF(AND(B23<>\"\",B23<=Daten!$O$5,OR(B24=\"\",B24>Daten!$O$5)),TRUE,FALSE)","v":false}]
[null,null,null,null,null,null,null,null,null,null,false,null,{"$f":"IF(AND(B24<>\"\",B24<=Daten!$O$5,OR(B25=\"\",B25>Daten!$O$5)),TRUE,FALSE)","v":false}]
[null,null,null,null,null,null,null,null,null,null,false,null,{"$f":"IF(AND(B25<>\"\",B25<=Daten!$O$5,OR(B26=\"\",B26>Daten!$O$5)),TRUE,FALSE)","v":false}]
[null,null,null,null,null,null,null,null,null,null,false,null,{"$f":"IF(AND(B26<>\"\",B26<=Daten!$O$5,OR(B27=\"\",B27>Daten!$O$5)),TRUE,FALSE)","v":false}]
[null,null,null,null,null,null,null,null,null,null,false,null,{"$f":"IF(AND(B27<>\"\",B27<=Daten!$O$5,OR(B28=\"\",B28>Daten!$O$5)),TRUE,FALSE)","v":false}]
[null,null,null,null,null,null,null,null,null,null,false,null,{"$f":"IF(AND(B28<>\"\",B28<=Daten!$O$5,OR(B29=\"\",B29>Daten!$O$5)),TRUE,FALSE)","v":false}]
[null,null,null,null,null,null,null,null,null,null,false,null,{"$f":"IF(AND(B29<>\"\",B29<=Daten!$O$5,OR(B30=\"\",B30>Daten!$O$5)),TRUE,FALSE)","v":false}]
[null,null,null,null,null,null,null,null,null,null,false,null,{"$f":"IF(AND(B30<>\"\",B30<=Daten!$O$5,OR(B31=\"\",B31>Daten!$O$5)),TRUE,FALSE)","v":false}]
[null,null,null,null,null,null,null,null,null,null,false,null,{"$f":"IF(AND(B31<>\"\",B31<=Daten!$O$5,OR(B32=\"\",B32>Daten!$O$5)),TRUE,FALSE)","v":false}]
[null,null,null,null,null,null,null,null,null,null,false,null,{"$f":"IF(AND(B32<>\"\",B32<=Daten!$O$5,OR(B33=\"\",B33>Daten!$O$5)),TRUE,FALSE)","v":false}]
[null,null,null,null,null,null,null,null,null,null,false,null,{"$f":"IF(AND(B33<>\"\",B33<=Daten!$O$5,OR(B34=\"\",B34>Daten!$O$5)),TRUE,FALSE)","v":false}]
[null,null,null,null,null,null,null,null,null,null,false,null,{"$f":"IF(AND(B34<>\"\",B34<=Daten!$O$5,OR(B35=\"\",B35>Daten!$O$5)),TRUE,FALSE)","v":false}]
[null,null,null,null,null,null,null,null,null,null,false,null,{"$f":"IF(AND(B35<>\"\",B35<=Daten!$O$5,OR(B36=\"\",B36>Daten!$O$5)),TRUE,FALSE)","v":false}]
[null,null,null,null,null,null,null,null,null,null,true]
[null,null,null,null,null,null,null,null,null,null,true]
[null,null,{"$f":"\"Richtlinienkennzahlen / Grunddaten\"","v":"Richtlinienkennzahlen / Grunddaten"},null,null,null,null,null,null,null,true,null,"Prüfung auf Änderungen der Richtlinienkennzahlen"]
[null,null,{"$f":"IF(Daten!$L$16=FALSE,\"Förderhöhen\",\"Förderhöhen (Maßnahme)\")","v":"Förderhöhen"},null,null,null,null,null,null,null,true,null,"Förderhöhen (Maßnahme)",null,null,null,"Antrag","Richtlinie","Abweichung?","Hinweis?","Freigabe MA?"]
[null,null,{"$f":"\"Darlehenskappung bei Überschreitung der Höchstförderung (bei Nutzung \"&CHAR(34)&IF(Daten!$L$16=TRUE,\"Klimabaustein\",\"Verlängerung Bindung\")&CHAR(34)&\")\"","v":"Darlehenskappung bei Überschreitung der Höchstförderung (bei Nutzung \"Verlängerung Bindung\")"},null,null,null,null,{"$f":"R40","v":true},null,null,{"$f":"IF(OR(Daten!$L$16=TRUE,Daten!$L$17=TRUE),TRUE,FALSE)","v":true},null,{"$f":"C40","v":"Darlehenskappung bei Überschreitung der Höchstförderung (bei Nutzung \"Verlängerung Bindung\")"},null,null,null,true,{"$f":"IF(AND(Daten!$L$16=TRUE,OR(Daten!$M$3=TRUE,Daten!$M$79=TRUE)),FALSE,TRUE)","v":true},{"$f":"IF(AND(Q40=TRUE,H40<>R40),1,0)","v":0},{"$f":"IF(AND(Daten!$M$75=TRUE,S40>0,Daten!$D$56>R40),TRUE,FALSE)","v":false},true]
[null,null,"Höchstförderung Darlehen - Neubau, Umnutzung ohne Zuschuss",null,null,null,null,3000,{"$f":"IF(S41=1,\"i\",\"\")","v":""},null,true,null,"Höchstförderung Darlehen bei Neubau, Umnutzung ohne Zuschuss",null,null,null,{"$f":"IF(OR(Daten!M75=TRUE,Daten!M77=TRUE),TRUE,FALSE)","v":true},{"$f":"Daten!$O$55","v":3000},{"$f":"IF(AND(Q41=TRUE,H41<>R41),1,0)","v":0},{"$f":"IF(AND(Daten!$M$75=TRUE,S41>0,Daten!$D$56>R41),TRUE,FALSE)","v":false},false]
[null,null,"Höchstförderung Darlehen - Neubau, Umnutzung mit Zuschuss",null,null,null,null,3000,{"$f":"IF(S42=1,\"i\",\"\")","v":""},null,true,null,"Höchstförderung Darlehen bei Neubau, Umnutzung mit Zuschuss",null,null,null,{"$f":"IF(OR(Daten!M76=TRUE,Daten!M78=TRUE),TRUE,FALSE)","v":false},{"$f":"Daten!$O$57","v":3000},{"$f":"IF(AND(Q42=TRUE,H42<>R42),1,0)","v":0},{"$f":"IF(AND(Daten!$M$76=TRUE,S42>0,Daten!$D$56>R42),TRUE,FALSE)","v":false},false]
[null,null,"Höchstförderung Darlehen - ModInst",null,null,null,null,2000,{"$f":"IF(S43=1,\"i\",\"\")","v":""},null,true,null,"Höchstförderung Darlehen bei ModInst",null,null,null,{"$f":"IF(Daten!M79=TRUE,TRUE,FALSE)","v":false},{"$f":"Daten!$O$59","v":2000},{"$f":"IF(AND(Q43=TRUE,H43<>R43),1,0)","v":0},{"$f":"IF(AND(Daten!$M$79=TRUE,S43>0,Daten!$D$56>R43),TRUE,FALSE)","v":false},false]
[null,null,{"$f":"IF(Daten!$L$16=TRUE,\"Höchstförderung Zuschuss + Darlehen Aufzug\",\"Höchstförderung Darlehen - Aufzug (nur informativ)\")","v":"Höchstförderung Darlehen - Aufzug (nur informativ)"},null,null,null,null,25000,"",null,{"$f":"NOT(Daten!$L$16)","v":true},null,{"$f":"IF(Daten!$L$16=TRUE,\"Höchstförderung Zuschuss + Darlehen Aufzug\",\"Höchstförderung Darlehen Aufzug (nur informativ)\")","v":"Höchstförderung Darlehen Aufzug (nur informativ)"},null,null,null,{"$f":"IF(Daten!L16=FALSE,TRUE,FALSE)","v":true},25000,0,{"$f":"IF(AND(Daten!$L$16=FALSE,S44>0),TRUE,FALSE)","v":false},false]
[null,null,"Höchstförderung Zuschuss - Grundförderung (Neubau / Umnutzung)",null,null,null,null,500,null,null,{"$f":"Daten!$L$17","v":true},null,{"$f":"C45","v":"Höchstförderung Zuschuss - Grundförderung (Neubau / Umnutzung)"},null,null,null,{"$f":"IF(Daten!$L$17=TRUE,TRUE,FALSE)","v":true},{"$f":"Daten!D134","v":500},{"$f":"IF(AND(Q45=TRUE,H45<>R45),1,0)","v":0},{"$f":"IF(S45>0,TRUE,FALSE)","v":false},false]
[null,null,"Höchstförderung Zuschuss - Grundförderung (ModInst)",null,null,null,null,300,null,null,{"$f":"Daten!$L$17","v":true},null,{"$f":"C46","v":"Höchstförderung Zuschuss - Grundförderung (ModInst)"},null,null,null,{"$f":"IF(Daten!$L$17=TRUE,TRUE,FALSE)","v":true},{"$f":"Daten!D135","v":300},{"$f":"IF(AND(Q46=TRUE,H46<>R46),1,0)","v":0},{"$f":"IF(S46>0,TRUE,FALSE)","v":false},false]
[null,null,"Höchstförderung Zuschuss - Verlängerung Belegungsbindung",null,null,null,null,200,"",null,true,null,"Höchstförderung Zuschuss Verlängerung Belegungsbindung",null,null,null,{"$f":"Q42","v":false},{"$f":"Daten!$O$61","v":200},0,{"$f":"IF(AND(OR(Daten!$M$76=TRUE,Daten!$M$78=TRUE,Daten!$M$80=TRUE),S47>0,Daten!$G$74>R47),TRUE,FALSE)","v":false},false]
[null,null,"Maximale Überdeckung p. a. (nur Neubau und Umnutzung)",null,null,null,null,120,"",null,true,null,"Maximale Überdeckung p. a. (nur Neubau und Umnutzung)",null,null,null,{"$f":"IF(OR(Q41=TRUE,Q42=TRUE),TRUE,FALSE)","v":true},120,0,{"$f":"IF(OR(Daten!$M$79=TRUE,Daten!$M$81=TRUE),FALSE,IF(S48>0,TRUE,FALSE))","v":false},false]
[null,null,"Förderhöhen (Aufzug)",null,null,null,null,null,null,null,{"$f":"IF(Daten!$L$16=TRUE,TRUE,FALSE)","v":false},null,{"$f":"C49","v":"Förderhöhen (Aufzug)"}]
[null,null,"Zuschuss für mit Aufzug NICHT barrierefrei erreichbare Wohneinheiten",null,null,null,null,{"$f":"R50","v":5000},{"$f":"IF(S50=1,\"i\",\"\")","v":""},null,{"$f":"K49","v":false},null,"Zuschuss für NICHT barrierefrei erreichbare Wohneinheiten",null,null,null,{"$f":"IF(AND(OR(Daten!$L$16=TRUE,Daten!$L$17=TRUE),Daten!$H$77=TRUE),TRUE,FALSE)","v":false},5000,{"$f":"IF(AND(Q50=TRUE,H50<>R50),1,0)","v":0},{"$f":"IF(AND(Daten!$H$77=TRUE,Daten!$H$98>0,S50>0,H50>R50),TRUE,FALSE)","v":false},false]
[null,null,"Darlehen für mit Aufzug NICHT barrierefrei erreichbare Wohneinheiten",null,null,null,null,{"$f":"R51","v":20000},{"$f":"IF(S51=1,\"i\",\"\")","v":""},null,{"$f":"K50","v":false},null,"Darlehen für NICHT barrierefrei erreichbare Wohneinheiten",null,null,null,{"$f":"$Q$50","v":false},20000,{"$f":"IF(AND(Q51=TRUE,H51<>R51),1,0)","v":0},{"$f":"IF(AND(Daten!$H$77=TRUE,Daten!$H$98>0,S51>0,H51>R51),TRUE,FALSE)","v":false},false]
[null,null,"Zuschuss für mit Aufzug barrierefrei erreichbare Wohneinheiten",null,null,null,null,{"$f":"R52","v":10000},"",null,false,null,"Zuschuss für barrierefrei erreichbare Wohneinheiten",null,null,null,{"$f":"$Q$50","v":false},10000,{"$f":"IF(AND(Q52=TRUE,H52<>R52),1,0)","v":0},{"$f":"IF(AND(Daten!$H$77=TRUE,Daten!$H$94>0,S52>0,H52>R52),TRUE,FALSE)","v":false},false]
[null,null,"Darlehen für mit Aufzug barrierefrei erreichbare Wohneinheiten",null,null,null,null,{"$f":"R53","v":15000},"",null,false,null,"Darlehen für barrierefrei erreichbare Wohneinheiten",null,null,null,{"$f":"$Q$50","v":false},15000,{"$f":"IF(AND(Q53=TRUE,H53<>R53),1,0)","v":0},{"$f":"IF(AND(Daten!$H$77=TRUE,Daten!$H$94>0,S53>0,H53>R53),TRUE,FALSE)","v":false},false]
[null,null,"Förderhöhen (Klimabaustein)",null,null,null,null,null,null,null,{"$f":"IF(Daten!$L$16=TRUE,TRUE,FALSE)","v":false},null,{"$f":"C54","v":"Förderhöhen (Klimabaustein)"}]
[null,null,"Zuschuss pro m² für Wohnfläche mit erreichten Standard",null,null,null,null,{"$f":"R55","v":300},{"$f":"IF(S55=1,\"i\",\"\")","v":""},null,{"$f":"K54","v":false},null,{"$f":"C55","v":"Zuschuss pro m² für Wohnfläche mit erreichten Standard"},null,null,null,{"$f":"IF(Daten!$L$16=TRUE,TRUE,FALSE)","v":false},300,{"$f":"IF(AND(Q55=TRUE,H55<>R55),1,0)","v":0},{"$f":"IF(S55>0,TRUE,FALSE)","v":false},false]
[null,null,"Konditionen Förderdarlehen",null,null,null,null,null,null,null,true,null,"Konditionen Förderdarlehen"]
[null,null,"Zinssatz bzw. LVKB Förderdarlehen",null,null,null,null,{"$f":"R57","v":0.5},{"$f":"IF(S57=1,\"i\",\"\")","v":""},null,true,null,"Zinssatz bzw. LVKB Förderdarlehen",null,null,null,true,0.5,{"$f":"IF(AND(Q57=TRUE,H57<>R57),1,0)","v":0},{"$f":"IF(S57>0,TRUE,FALSE)","v":false},true]
[null,null,"Mindesttilgungssatz Förderdarlehen",null,null,null,null,{"$f":"R58","v":2},{"$f":"IF(S58=1,\"i\",\"\")","v":""},null,true,null,"Tilgungssatz Förderdarlehen",null,null,null,true,2,{"$f":"IF(AND(Q58=TRUE,H58<>R58),1,0)","v":0},{"$f":"IF(AND(S58>0,Berechnung!S59<R58),TRUE,FALSE)","v":false},true]
[null,null,"Maximale zulässige Annuität bei (deutlich) erhöhtem Einsatz von Eigenmitteln",null,null,null,null,{"$f":"R59","v":5},null,null,true,null,"Maximale zulässige Annuität bei (deutlich) erhöhtem Einsatz von Eigenmitteln",null,null,null,true,5,{"$f":"IF(AND(Q59=TRUE,H59<>R59),1,0)","v":0},{"$f":"IF(AND(S59>0,Berechnung!S60<R59),TRUE,FALSE)","v":false},true]
[null,null,"Eigenleistungen",null,null,null,null,null,null,null,true,null,"Eigenleistungen"]
[null,null,"Mindesteigenleistungen Neubau / Umnutzung",null,null,null,null,{"$f":"R61","v":20},{"$f":"IF(S61=1,\"i\",\"\")","v":""},null,true,null,{"$f":"C61","v":"Mindesteigenleistungen Neubau / Umnutzung"},null,null,null,{"$f":"IF(OR(Q41=TRUE,Q42=TRUE),TRUE,FALSE)","v":true},20,{"$f":"IF(AND(Q61=TRUE,H61<>R61),1,0)","v":0},{"$f":"IF(AND(OR(Q41=TRUE,Q42=TRUE),S61>0,Berechnung!T44<R61),TRUE,FALSE)","v":false},true]
[null,null,"Mindesteigenleistungen Mod / Inst",null,null,null,null,{"$f":"R62","v":15},{"$f":"IF(S62=1,\"i\",\"\")","v":""},null,true,null,{"$f":"C62","v":"Mindesteigenleistungen Mod / Inst"},null,null,null,{"$f":"$Q$43","v":false},15,{"$f":"IF(AND(Q62=TRUE,H62<>R62),1,0)","v":0},{"$f":"IF(AND(Daten!$M$79=TRUE,S62>0),TRUE,FALSE)","v":false},true]
[null,null,"Mindesteigenleistungen Solo-Aufzug",null,null,null,null,{"$f":"R63","v":15},{"$f":"IF(S63=1,\"i\",\"\")","v":""},null,{"$f":"IF(OR(Daten!$L$16=TRUE,Daten!$L$17=TRUE),TRUE,FALSE)","v":true},null,"Mindesteigenleistungen Solo-Aufzug",null,null,null,{"$f":"$Q$50","v":false},15,{"$f":"IF(AND(Q63=TRUE,H63<>R63),1,0)","v":0},{"$f":"IF(AND(Daten!$M$81=TRUE,S63>0),TRUE,FALSE)","v":false},true]
[null,null,"Bindungsquoten",null,null,null,null,null,null,null,true,null,{"$f":"C64","v":"Bindungsquoten"}]
[null,null,"Mindest-Bindungsquote",null,"Neubau sowie Umnutzung / Wiederherstellung",null,null,{"$f":"R65","v":100},{"$f":"IF(S65=1,\"i\",\"\")","v":""},null,true,null,"Mindest-Bindungsquote",null,{"$f":"E65","v":"Neubau sowie Umnutzung / Wiederherstellung"},null,{"$f":"$Q$61","v":true},{"$f":"Daten!$O$63","v":100},{"$f":"IF(AND(Q65=TRUE,H65<>R65,H65<R65),1,0)","v":0},{"$f":"IF(AND($T$48=TRUE,S65>0),TRUE,FALSE)","v":false},true]
[null,null,null,null,"Mod / Inst, wenn BV in Gemeinde gem. Anl. 2 der RL",null,null,100,null,null,true,null,null,null,{"$f":"E66","v":"Mod / Inst, wenn BV in Gemeinde gem. Anl. 2 der RL"},null,{"$f":"IF(AND($Q$43=TRUE,$Q$74=TRUE),TRUE,FALSE)","v":false},{"$f":"Daten!$O$63","v":100},{"$f":"IF(AND(Q66=TRUE,H66<>R66,H66<R66),1,0)","v":0},{"$f":"IF(AND($T$62=TRUE,S66>0),TRUE,FALSE)","v":false},true]
[null,null,null,null,"Mod / Inst, wenn BV in übriger Gemeinde",null,null,100,{"$f":"IF(S67=1,\"i\",\"\")","v":""},null,true,null,null,null,{"$f":"E67","v":"Mod / Inst, wenn BV in übriger Gemeinde"},null,{"$f":"IF(AND($Q$43=TRUE,$Q$77=TRUE),TRUE,FALSE)","v":false},{"$f":"Daten!$O$65","v":100},{"$f":"IF(AND(Q67=TRUE,H67<>R67,H67<R67),1,0)","v":0},{"$f":"IF(AND($T$62=TRUE,S67>0),TRUE,FALSE)","v":false},true]
[null,null,null,null,"Solo-Förderung Aufzüge",null,null,100,{"$f":"IF(S68=1,\"i\",\"\")","v":""},null,{"$f":"Daten!$L$16","v":false},null,null,null,{"$f":"E68","v":"Solo-Förderung Aufzüge"},null,{"$f":"$Q$50","v":false},{"$f":"Daten!$O$65","v":100},{"$f":"IF(AND(Q68=TRUE,H68<>R68,H68<R68),1,0)","v":0},{"$f":"IF(AND(Daten!$M$81=TRUE,S68>0),TRUE,FALSE)","v":false},true]
[null,null,"… davon 1. EK-Grenze (Minimum)",null,null,null,null,45,{"$f":"IF(S69=1,\"i\",\"\")","v":""},null,true,null,"davon 1. EK-Grenze (Minimum)",null,null,null,true,{"$f":"Daten!$O$69","v":45},{"$f":"IF(AND(Q69=TRUE,H69<>R69,H69<R69),1,0)","v":0},{"$f":"IF(S69>0,TRUE,FALSE)","v":false},true]
[null,null,"… davon 2. EK-Grenze (Rest - anhängig von Bindungen in 1. EK-Grenze)",null,null,null,null,30,{"$f":"IF(S70=1,\"i\",\"\")","v":""},null,true,null,"davon 2. EK-Grenze (Rest - anhängig von Bindungen in 1. EK-Grenze)",null,null,null,true,{"$f":"Daten!$O$70","v":30},{"$f":"IF(AND(Q70=TRUE,H70<>R70),1,0)","v":0},{"$f":"IF(S70>0,TRUE,FALSE)","v":false},true]
[null,null,"… davon 3. EK-Grenze (Rest - anhängig von Bindungen in 1. + 2. EK-Grenze)",null,null,null,null,25,{"$f":"IF(S71=1,\"i\",\"\")","v":""},null,{"$f":"Q71","v":true},null,"davon 3. EK-Grenze (Rest - anhängig von Bindungen in 1. EK-Grenze)",null,null,null,{"$f":"IF(Daten!L17=TRUE,TRUE,FALSE)","v":true},{"$f":"Daten!$O$71","v":25},{"$f":"IF(AND(Q71=TRUE,H71<>R71),1,0)","v":0},{"$f":"IF(S71>0,TRUE,FALSE)","v":false},true]
[null,null,"Bindungsquoten müssen auch für die Anzahl der Wohneinheiten erfüllt werden",null,null,null,null,true,"",null,true,null,"Bindungsquoten müssen auch für die Anzahl der Wohneinheiten erfüllt werden",null,null,null,true,true,{"$f":"IF(AND(Q72=TRUE,H72<>R72),1,0)","v":0},{"$f":"IF(S72>0,TRUE,FALSE)","v":false},true]
[null,null,"Höchstmieten",null,null,null,null,null,null,null,true,null,{"$f":"C73","v":"Höchstmieten"}]
[null,null,"Gemeinde gemäß \nAnlage 3 der RL",null,"Max. Miete für 1. EK-Grenze",null,null,{"$f":"R74","v":6.5},{"$f":"IF(S74=1,\"i\",\"\")","v":""},null,true,null,"Gemeinde gemäß Anlage 3 der RL",null,"Max. Miete für 1. EK-Grenze Anlage 3 RL",null,{"$f":"IF(LEFT(Berechnung!$K$17,1)=\"j\",TRUE,FALSE)","v":false},{"$f":"INDEX(Daten!$S$12:$S$19,MATCH(TRUE,Daten!$L$12:$L$19,0),1)","v":6.5},{"$f":"IF(AND(Q74=TRUE,H74<>R74),1,0)","v":0},{"$f":"IF(AND(S74>0,LEFT(Berechnung!$K$17,1)=\"j\",Berechnung!$V$27<>R74),TRUE,FALSE)","v":false},true]
[null,null,null,null,"Max. Miete für 2. EK-Grenze",null,null,9,"",null,true,null,null,null,"Max. Miete für 2. EK-Grenze Anlage 3 RL",null,{"$f":"IF(LEFT(Berechnung!$K$17,1)=\"j\",TRUE,FALSE)","v":false},{"$f":"INDEX(Daten!$T$12:$T$19,MATCH(TRUE,Daten!$L$12:$L$19,0),1)","v":9},0,{"$f":"IF(AND(S75>0,LEFT(Berechnung!$K$17,1)=\"j\",Berechnung!$V$28<>R75),TRUE,FALSE)","v":false},true]
[null,null,null,null,{"$f":"O76","v":"Max. Miete für 3. EK-Grenze Anlage 3 RL"},null,null,12,"",null,{"$f":"K71","v":true},null,null,null,"Max. Miete für 3. EK-Grenze Anlage 3 RL",null,{"$f":"IF(LEFT(Berechnung!$K$17,1)=\"j\",TRUE,FALSE)","v":false},{"$f":"INDEX(Daten!$U$12:$U$19,MATCH(TRUE,Daten!$L$12:$L$19,0),1)","v":12},0,{"$f":"IF(AND(S76>0,LEFT(Berechnung!$K$17,1)=\"j\",Berechnung!$V$29<>R76),TRUE,FALSE)","v":false},true]
[null,null,"Übrige Gemeinden",null,"Max. Miete für 1. EK-Grenze",null,null,6,"",null,true,null,"Übrige Gemeinden",null,"Max. Miete für 1. EK-Grenze Übrige",null,{"$f":"IF(OR(Berechnung!$K$17=\"\",LEFT(Berechnung!$K$17,1)=\"n\"),TRUE,FALSE)","v":true},{"$f":"INDEX(Daten!$V$12:$V$19,MATCH(TRUE,Daten!$L$12:$L$19,0),1)","v":6},0,{"$f":"IF(AND(S77>0,LEFT(Berechnung!$K$17,1)=\"n\",Berechnung!$V$27<>R77),TRUE,FALSE)","v":false},true]
[null,null,null,null,"Max. Miete für 2. EK-Grenze",null,null,8,"",null,true,null,null,null,"Max. Miete für 2. EK-Grenze Übrige",null,{"$f":"IF(OR(Berechnung!$K$17=\"\",LEFT(Berechnung!$K$17,1)=\"n\"),TRUE,FALSE)","v":true},{"$f":"INDEX(Daten!$W$12:$W$19,MATCH(TRUE,Daten!$L$12:$L$19,0),1)","v":8},0,{"$f":"IF(AND(S78>0,LEFT(Berechnung!$K$17,1)=\"n\",Berechnung!$V$28<>R78),TRUE,FALSE)","v":false},true]
[null,null,null,null,"Max. Miete für 3. EK-Grenze",null,null,10,"",null,{"$f":"K76","v":true},null,null,null,"Max. Miete für 3. EK-Grenze Übrige",null,{"$f":"IF(OR(Berechnung!$K$17=\"\",LEFT(Berechnung!$K$17,1)=\"n\"),TRUE,FALSE)","v":true},{"$f":"INDEX(Daten!$X$12:$X$19,MATCH(TRUE,Daten!$L$12:$L$19,0),1)","v":10},0,{"$f":"IF(AND(S79>0,LEFT(Berechnung!$K$17,1)=\"n\",Berechnung!$V$29<>R79),TRUE,FALSE)","v":false},true]
[null,null,"EK-Verzinsung",null,null,null,null,null,{"$f":"IF(S80=1,\"i\",\"\")","v":""},null,true,null,{"$f":"C80","v":"EK-Verzinsung"}]
[null,null,"EK-Verzinsung auf die ersten",null,{"$f":"O81","v":15},"der Gesamtkosten",null,{"$f":"R81","v":2},"",null,true,null,"EK-Verzinsung auf die ersten",null,15,"der Mindesteigenleistungen",true,2,{"$f":"IF(AND(Q81=TRUE,OR(AND(H81<>R81,H81>R81),AND(E81<>O81,E81<O81))),1,0)","v":0},{"$f":"IF(S81>0,TRUE,FALSE)","v":false},false]
[null,null,"EK-Verzinsung auf darüber hinausgehende Eigenleistungen (Abstimmung mit MIL)",null,null,null,null,{"$f":"R82","v":3},"",null,true,null,"EK-Verzinsung auf darüber hinausgehende Eigenleistungen (Abstimmung mit MIL)",null,null,null,true,3,{"$f":"IF(AND(Q82=TRUE,H82<>R82,H82>R82),1,0)","v":0},{"$f":"IF(S82>0,TRUE,FALSE)","v":false},false]
[null,null,"Besetzungsrechte",null,null,null,null,null,"",null,{"$f":"IF(Daten!$M$12=TRUE,TRUE,FALSE)","v":false},null,{"$f":"C83","v":"Besetzungsrechte"}]
[null,null,"Pauschalaufwand für Besetzungsrechte",null,null,null,null,{"$f":"R84","v":25},"",null,{"$f":"K83","v":false},null,"Pauschalaufwand für Besetzungsrechte",null,null,null,{"$f":"Daten!$M$12","v":false},25,{"$f":"IF(AND(Q84=TRUE,H84<>R84),1,0)","v":0},{"$f":"IF(S84>0,TRUE,FALSE)","v":false},false]
[null,null,"Bewirtschaftungskosten",null,null,null,null,null,null,null,true,null,{"$f":"C85","v":"Bewirtschaftungskosten"}]
[null,null,"Verwaltungskosten p. a.",null,"pro Wohneinheit",null,null,{"$f":"R86","v":343.69},"",null,true,null,{"$f":"C86","v":"Verwaltungskosten p. a."},null,{"$f":"E86","v":"pro Wohneinheit"},{"$f":"IF(H86=\"\",R86,H86)","v":343.69},true,{"$f":"VLOOKUP(Daten!$O$3,Grunddaten!$B$11:$I$35,5)","v":343.69},{"$f":"IF(AND(Q86=TRUE,P86<>R86),1,0)","v":0},{"$f":"IF(S86>0,TRUE,FALSE)","v":false},false]
[null,null,null,null,"pro Garage / Carport",null,null,44.83,{"$f":"IF(S87=1,\"i\",\"\")","v":""},null,true,null,null,null,{"$f":"E87","v":"pro Garage / Carport"},44.83,{"$f":"IF(Berechnung!$G$69>0,TRUE,FALSE)","v":false},{"$f":"VLOOKUP(Daten!$O$3,Grunddaten!$B$11:$I$35,6)","v":44.83},{"$f":"IF(AND(Q87=TRUE,P87<>R87),1,0)","v":0},{"$f":"IF(S87>0,TRUE,FALSE)","v":false},false]
[null,null,"Instandhaltungskosten p. a.",null,"pro m² Wohnfläche",null,null,10.61,"",null,true,null,{"$f":"C88","v":"Instandhaltungskosten p. a."},null,"pro m² Wohnfläche",10.61,true,{"$f":"VLOOKUP(Daten!$O$3,Grunddaten!$B$11:$I$35,2)","v":10.61},{"$f":"IF(AND(Q88=TRUE,P88<>R88),1,0)","v":0},false,false]
[null,null,null,null,"pro m² Wohnfläche Zuschlag für Aufzug",null,null,1.5,"",null,true,null,null,null,"Zuschlag Aufzug pro m²",1.5,{"$f":"IF(OR(Daten!$H$77=TRUE,LEFT(Berechnung!$G$70,1)=\"J\"),TRUE,FALSE)","v":false},{"$f":"VLOOKUP(Daten!$O$3,Grunddaten!$B$11:$I$35,3)","v":1.5},0,false,false]
[null,null,null,null,"pro Garage / Carport",null,null,101.62,{"$f":"IF(S90=1,\"i\",\"\")","v":""},null,true,null,null,null,"pro Garage / Carport",101.62,{"$f":"$Q$87","v":false},{"$f":"VLOOKUP(Daten!$O$3,Grunddaten!$B$11:$I$35,4)","v":101.62},{"$f":"IF(AND(Q90=TRUE,P90<>R90),1,0)","v":0},false,false]
[null,null,"Mietausfallwagnis pro Jahr",null,null,null,null,2,"",null,true,null,"Mietausfallwagnis pro Jahr",null,null,2,true,{"$f":"VLOOKUP(Daten!$O$3,Grunddaten!$B$11:$I$35,7)","v":2},0,false,false]
[null,null,"Nicht umlegbare Betriebskosten pro m² Leerstand pro Monat",null,null,null,null,0,null,null,true,null,{"$f":"C92","v":"Nicht umlegbare Betriebskosten pro m² Leerstand pro Monat"},null,null,0,true,0,{"$f":"IF(AND(Q92=TRUE,P92<>R92),1,0)","v":0},{"$f":"IF(S92>0,TRUE,FALSE)","v":false},true]
[null,null,"Pauschaler Ansatz für Anteil von Modernisierungskosten",null,null,null,null,60,null,null,{"$f":"IF(OR(Daten!M79=TRUE,Daten!M80=TRUE),TRUE,FALSE)","v":false},null,"Pauschaler Ansatz für Anteil von Modernisierungskosten",null,null,null,true,60,{"$f":"IF(AND(Q93=TRUE,H93<>R93),1,0)","v":0},{"$f":"IF(S93>0,TRUE,FALSE)","v":false},{"$f":"K93","v":false}]
[null,null,"Zielwertberechnung des Baudarlehens (Maßnahme)",null,null,null,null,null,null,null,{"$f":"IF(Daten!$M$3=TRUE,TRUE,FALSE)","v":false},null,"Zielwertberechnung des Baudarlehens (Maßnahme)"]
[null,null,"Anzahl maximaler Durchläufe (Iterationen) für die Zielwertberechnung",null,null,null,null,{"$f":"R95","v":100},"",null,{"$f":"IF(Daten!$M$3=TRUE,TRUE,FALSE)","v":false},null,"Anzahl maximaler Durchläufe (Iterationen) für die Zielwertberechnung",null,null,100,true,100,{"$f":"IF(AND(Q95=TRUE,H95<>R95),1,0)","v":0},{"$f":"IF(S95>0,TRUE,FALSE)","v":false},false]
[null,null,"Anzahl der automatischen Erhöhungen der Durchläufe (Iterationen) für die Zielwertsuche",null,null,null,null,{"$f":"R96","v":3},"",null,{"$f":"IF(Daten!$M$3=TRUE,TRUE,FALSE)","v":false},null,"Anzahl der automatischen Erhöhungen der Durchläufe (Iterationen) für die Zielwertsuche",null,null,"-",true,3,{"$f":"IF(AND(Q96=TRUE,H96<>R96),1,0)","v":0},{"$f":"IF(S96>0,TRUE,FALSE)","v":false},false]
[null,null,"Berechnungsgenauigkeit der Zielwertberechnung",null,null,null,null,0.01,"",null,{"$f":"IF(Daten!$M$3=TRUE,TRUE,FALSE)","v":false},null,"Berechnungsgenauigkeit der Zielwertberechnung",null,null,1E-3,true,0.01,{"$f":"IF(AND(Q97=TRUE,H97<>R97),1,0)","v":0},{"$f":"IF(S97>0,TRUE,FALSE)","v":false},false]
[null,null,null,null,null,null,null,null,null,null,false,null,"Änderungen erfolgt?",null,null,"-",{"$f":"IF(OR(Daten!$C$5=TRUE,Daten!$H$2=FALSE,$G$1=FALSE),TRUE,FALSE)","v":true},"-",{"$f":"SUM(S41:S48,S57:S58,S61:S63,S50:S53,S65:S70,S74:S79,S81:S82,S84,S86:S93)","v":0},{"$f":"SUMIF(T41:T93,TRUE,S41:S93)","v":0},{"$f":"IF(Daten!$C$5=\"\",FALSE,IF(AND(Daten!$C$5=TRUE,Daten!$M$3=TRUE),TRUE,FALSE))","v":false}]

{"sheet":"Programmversionen","index":3,"n_rows":109,"n_cols":15,"rows_kept":109,"cut":false,"hidden":true,"merged":[[94,4,94,10],[95,4,95,10],[96,4,96,10],[97,4,97,10],[98,4,98,10],[99,4,99,10],[106,4,106,10],[107,4,107,10],[108,4,108,10],[100,4,100,10],[101,4,101,10],[102,4,102,10],[103,4,103,10],[104,4,104,10],[105,4,105,10],[85,4,85,10],[86,4,86,10],[87,4,87,10],[88,4,88,10],[89,4,89,10],[90,4,90,10],[91,4,91,10],[92,4,92,10],[93,4,93,10],[76,4,76,10],[77,4,77,10],[78,4,78,10],[79,4,79,10],[80,4,80,10],[81,4,81,10],[82,4,82,10],[83,4,83,10],[84,4,84,10],[67,4,67,10],[68,4,68,10],[69,4,69,10],[70,4,70,10],[71,4,71,10],[72,4,72,10],[73,4,73,10],[74,4,74,10],[75,4,75,10],[58,4,58,10],[59,4,59,10],[60,4,60,10],[61,4,61,10],[62,4,62,10],[63,4,63,10],[64,4,64,10],[65,4,65,10],[66,4,66,10],[49,4,49,10],[50,4,50,10],[51,4,51,10],[52,4,52,10],[53,4,53,10],[54,4,54,10],[55,4,55,10],[56,4,56,10],[57,4,57,10],[40,4,40,10],[41,4,41,10],[42,4,42,10],[43,4,43,10],[44,4,44,10],[45,4,45,10],[46,4,46,10],[47,4,47,10],[48,4,48,10],[31,4,31,10],[32,4,32,10],[33,4,33,10],[34,4,34,10],[35,4,35,10],[36,4,36,10],[37,4,37,10],[38,4,38,10],[39,4,39,10],[22,4,22,10],[23,4,23,10],[24,4,24,10],[25,4,25,10],[26,4,26,10],[27,4,27,10],[28,4,28,10],[29,4,29,10],[30,4,30,10],[13,4,13,10],[14,4,14,10],[15,4,15,10],[16,4,16,10],[17,4,17,10],[18,4,18,10],[19,4,19,10],[20,4,20,10],[21,4,21,10],[0,1,0,2],[4,1,5,2],[4,3,5,8],[4,9,5,10],[8,4,8,5],[9,4,9,10],[10,4,10,10],[11,4,11,10],[12,4,12,10]]}
[null,"Daten gesichert:",null,true,"-","-","-","-","-","-","-",null,false,null,false]
[null,"-","-","-","-","-","-","-","-","-","-",null,false,null,false]
[null,"-","-","-","-","-","-","-","-","-","-",null,false,null,false]
[null,null,null,null,null,null,null,null,null,null,null,null,true,null,false]
[null,{"$f":"VLOOKUP(TODAY(),$B$10:$C$109,1)","v":"2024-01-31"},null,"Programmversionen: MWB-Förderrechner",null,null,null,null,null,{"$f":"\"Version: \"&VLOOKUP(TODAY(),$B$10:$C$109,2)&\" \"","v":"Version: 24.03 "},null,null,true,null,false]
[null,null,null,null,null,null,null,null,null,null,null,null,true,null,false]
[null,null,null,null,null,null,null,null,null,null,null,null,true,null,false]
[null,null,null,null,null,null,null,null,null,null,null,null,true,null,false]
[null,"Datum\nVersion","Nummer\nVersion","geänderte Tabellen",null,null,null,"Änderungen",null,null,null,null,true,null,false]
[null,"2016-05-10","16.01","Alle","Neuerstellung der Berechnung",null,null,null,null,null,null,null,{"$f":"IF(B10=\"\",FALSE,TRUE)","v":true},null,{"$f":"IF(AND(B10<>\"\",B10<=Daten!$O$5,OR(B11=\"\",B11>Daten!$O$5)),TRUE,FALSE)","v":false}]
[null,"2016-07-22","16.02","Startseite","Einführung Startseite mit Hinweisen für den Nutzer (zur Unterstützung Internetauftritt)",null,null,null,null,null,null,null,{"$f":"IF(B11=\"\",FALSE,TRUE)","v":true},null,{"$f":"IF(AND(B11<>\"\",B11<=Daten!$O$5,OR(B12=\"\",B12>Daten!$O$5)),TRUE,FALSE)","v":false}]
[null,"2016-08-12","16.02","Grunddaten","Einführung Grunddatenseite",null,null,null,null,null,null,null,true,null,{"$f":"IF(AND(B12<>\"\",B12<=Daten!$O$5,OR(B13=\"\",B13>Daten!$O$5)),TRUE,FALSE)","v":false}]
[null,"2016-09-29","16.03","Berechnung","Aufteilung Belegungsbindung jetzt auch nach Wohnfläche",null,null,null,null,null,null,null,true,null,{"$f":"IF(AND(B13<>\"\",B13<=Daten!$O$5,OR(B14=\"\",B14>Daten!$O$5)),TRUE,FALSE)","v":false}]
[null,"2016-10-17","16.04","Berechnung","Erstellung Version fürs LBV",null,null,null,null,null,null,null,true,null,{"$f":"IF(AND(B14<>\"\",B14<=Daten!$O$5,OR(B15=\"\",B15>Daten!$O$5)),TRUE,FALSE)","v":false}]
[null,"2016-12-15","16.05","Grunddaten","Anpassung Bewirtschaftungskosten ab 01.01.2017",null,null,null,null,null,null,null,true,null,{"$f":"IF(AND(B15<>\"\",B15<=Daten!$O$5,OR(B16=\"\",B16>Daten!$O$5)),TRUE,FALSE)","v":false}]
[null,"2017-03-29","17.01","VBA, Verschiedene","Steuerung Anzeige Dialogfelder angepasst. Umstellung Berechung auf jährliche Daten. Abschaltung Solver. Ermittlung Förderhöhe mit Zielwertsuche. Alle errechneten Fördermittel (auch Zuschüsse) werden auf volle Hundert Euro aufgerundet. Berechnung für Vergleich OW vor und nach Maßnahme bei ModInst wurde angepasst.\n\nUmsetzung der ersten Änderung der Richtlinie vom 08.03.2017 (Wegfall der Berechnungen bzgl. der Besetzungsrechte, Tilgung des Förderdarlehens nicht mehr starr auf 2 % festgelegt, sondern als Mindestilgung)",null,null,null,null,null,null,null,true,null,{"$f":"IF(AND(B16<>\"\",B16<=Daten!$O$5,OR(B17=\"\",B17>Daten!$O$5)),TRUE,FALSE)","v":false}]
[null,"2017-09-12","17.02","Berechnung","Redaktionelle Anpassung Bezeichnung sonst. Einnahmen. Umstellung sonst. Einnahmen auf Jahressumme.",null,null,null,null,null,null,null,true,null,{"$f":"IF(AND(B17<>\"\",B17<=Daten!$O$5,OR(B18=\"\",B18>Daten!$O$5)),TRUE,FALSE)","v":false}]
[null,"2017-10-25","17.03","VBA","Erweiterung Berechtigte für RL-Kennzahlen",null,null,null,null,null,null,null,true,null,{"$f":"IF(AND(B18<>\"\",B18<=Daten!$O$5,OR(B19=\"\",B19>Daten!$O$5)),TRUE,FALSE)","v":false}]
[null,"2018-07-24","18.01","Grunddaten","Korrektur BWK (Instandhaltungskosten Garage)",null,null,null,null,null,null,null,true,null,{"$f":"IF(AND(B19<>\"\",B19<=Daten!$O$5,OR(B20=\"\",B20>Daten!$O$5)),TRUE,FALSE)","v":false}]
[null,"2018-09-06","18.02","Grunddaten, Berechnung","Anpassung der RL-Kennziffern an neue RL, Einbau Abfrage Anzahl Garagen",null,null,null,null,null,null,null,true,null,{"$f":"IF(AND(B20<>\"\",B20<=Daten!$O$5,OR(B21=\"\",B21>Daten!$O$5)),TRUE,FALSE)","v":false}]
[null,"2018-12-05","18.03","Berechnung","Alle Formeln aus dieser Seite herausgelöst und ins Sheet \"Daten\" geschrieben",null,null,null,null,null,null,null,true,null,{"$f":"IF(AND(B21<>\"\",B21<=Daten!$O$5,OR(B22=\"\",B22>Daten!$O$5)),TRUE,FALSE)","v":false}]
[null,"2019-04-04","19.01","VBA","Anpassung einer Abfrage an geänderte Formelhinterlegung",null,null,null,null,null,null,null,true,null,{"$f":"IF(AND(B22<>\"\",B22<=Daten!$O$5,OR(B23=\"\",B23>Daten!$O$5)),TRUE,FALSE)","v":false}]
[null,"2019-08-07","19.02","Verschiedene","Entfernung von Referenzen zu Flüchtlingen als Voraussetzung für einen Zuschuss\nNutzung von Bildschirmfixierungen, um Kontrollelemente verfügbar zu halten",null,null,null,null,null,null,null,true,null,{"$f":"IF(AND(B23<>\"\",B23<=Daten!$O$5,OR(B24=\"\",B24>Daten!$O$5)),TRUE,FALSE)","v":false}]
[null,"2019-11-25","19.03","Verschiedene","Anpassung Bewirtschaftungskosten ab 01.012020\nAnpassung von Richtlinienreferenzen an neue Richtlinie vom 10.10.2019\nEinführung einer Auswahloption für den Ansatz der BWK (nur bei ILB interner Version)",null,null,null,null,null,null,null,true,null,{"$f":"IF(AND(B24<>\"\",B24<=Daten!$O$5,OR(B25=\"\",B25>Daten!$O$5)),TRUE,FALSE)","v":false}]
[null,"2019-11-28","19.04","Berechnung","Korrektur von Rechtschreibfehlern\nKorrektur von falscher Berechnung der BWK, wenn eine manuelle Auswahl des Stichtages erfolgte",null,null,null,null,null,null,null,true,null,{"$f":"IF(AND(B25<>\"\",B25<=Daten!$O$5,OR(B26=\"\",B26>Daten!$O$5)),TRUE,FALSE)","v":false}]
[null,"2020-04-29","20.01","Berechnung","Korrektur von bedingten Formatierungen wenn Mod/Inst ausgewählt wurde",null,null,null,null,null,null,null,true,null,{"$f":"IF(AND(B26<>\"\",B26<=Daten!$O$5,OR(B27=\"\",B27>Daten!$O$5)),TRUE,FALSE)","v":false}]
[null,"2021-07-13","21.01","Daten, VBA","Zweitprüfung Höhe Zuschuss wenn Förderdarlehen = 0 und Überschuss > Maximalbetrag\nAnpassung Passwörter gemäß neuer Passwortrichtlinie",null,null,null,null,null,null,null,true,null,{"$f":"IF(AND(B27<>\"\",B27<=Daten!$O$5,OR(B28=\"\",B28>Daten!$O$5)),TRUE,FALSE)","v":false}]
[null,"2022-04-25","22.01","Alle","Anpassungen für neue Richtlinie vom 17.03.2022 (insbesondere Aufnahme Aufzugsförderung)\nVerbesserungen in Benutzerführung\nAnpassungen von VBA-Modulen an IDV-Richtlinie\nKorrekturen in der Berechnung des gekürzten Förderdarlehen bei Mod / Inst\nBereitstellung eines Dialoges zur Löschung / Bereinigung der Eingaben\nAusweis einer Durchschnittsmiete über alle Wohnflächen\nOption, eine manuelle Basis für die Eigenkapitalverzinsung festzulegen\nDie grundsätzlich möglichen Förderbeträge werden jetzt auch bei fehlender Objektwirtschaftlichkeit ausgewiesen\nOption, ausgewählte Grunddaten ohne Passwort für eine manuelle Anpassung freigeben zu können",null,null,null,null,null,null,null,true,null,{"$f":"IF(AND(B28<>\"\",B28<=Daten!$O$5,OR(B29=\"\",B29>Daten!$O$5)),TRUE,FALSE)","v":false}]
[null,"2022-05-02","22.02","Alle","Korrektur der Berechnung, wenn sonstige Zuschüsse vorhanden sind\nAnpassungen bei vollständiger Freigabe der Grunddaten\nMöglichkeit, Förderbeträge ohne Einsatz von Eigenleistungen berechnen zu können",null,null,null,null,null,null,null,true,null,{"$f":"IF(AND(B29<>\"\",B29<=Daten!$O$5,OR(B30=\"\",B30>Daten!$O$5)),TRUE,FALSE)","v":false}]
[null,"2022-05-03","22.03","VBA","Entfernung der Fehlermeldung bei Aufruf des Dialogfeldes zur Mitarbeiterfreigabe der Grunddaten",null,null,null,null,null,null,null,true,null,{"$f":"IF(AND(B30<>\"\",B30<=Daten!$O$5,OR(B31=\"\",B31>Daten!$O$5)),TRUE,FALSE)","v":false}]
[null,"2022-05-09","22.04","Berechnung","Korrektur der Aufrundung der \"Notwendigen Restfinanzierung\" auf volle 100 EUR, sofern diese 0,00 EUR beträgt",null,null,null,null,null,null,null,true,null,{"$f":"IF(AND(B31<>\"\",B31<=Daten!$O$5,OR(B32=\"\",B32>Daten!$O$5)),TRUE,FALSE)","v":false}]
[null,"2022-06-08","22.05","Alle","Option, Antragsnummer in der Berechnung zu hinterlegen\nErweiterung der Plausiprüfung der Höhe des Baudarlehens innerhalb der Zielwertsuche\nAnpassung der Exceleinstellungen für erhöhte Anzahl von möglichen Iterationen innerhalb einer Zielwertsuche\nAnpassung der Exceleinstellungen für Berechnungsgenauigkeit einer Zielwertsuche\nMöglichkeit, manuell eine Neuberechnung der Förderbeträge anzustossen zu können (via Schaltfläche)\nOption, alternative Berechnungsmethode via \"Solver\" zu nutzen (benötigt installiertes und aktiviertes Excel-Add-In)\nOption, Basis für Eigenkapitalverzinsung anpassen zu lassen, um Objektwirtschaftlichkeit herstellen zu können\nAusweis der durchschnittlich erzielten Eigenkapitalverzinsung p. a. (in Prozent)\nMöglichkeit eines dialoggesteuerten Exportes des Förderrechners als PDF-Datei\nAnpassungen / Korrekturen für LBV-spezifische Version des Förderrechners",null,null,null,null,null,null,null,true,null,{"$f":"IF(AND(B32<>\"\",B32<=Daten!$O$5,OR(B33=\"\",B33>Daten!$O$5)),TRUE,FALSE)","v":false}]
[null,"2022-07-22","22.06","Alle","Aufnahme Zuschuss \"Klimabaustein\" (Ausblendung bis Freigabe durch MIL)\nMöglichkeit, bis zu 5 Berechnungen \"zwischenspeichern\" und \"wiederherstellen\" zu können\nAusweis des Anteils der Kosten- und Finanzierungsbestandteile an den Gesamtkosten\nOption, die durch einen geförderten Aufzug erschlossene Wohnfläche erfassen zu können\nOption, das Baudarlehen automatisch kappen zu lassen, sofern Höchstförderung (i. V. m. Aufzug) überschritten wird\nKorrektur, dass für Baudarlehen bei freigeschalteteten Grunddaten ein Tilgungssatz < 2% zugelassen wird\nAusweis des Datums der Berechnung (mit Option, Datum manuell zu überschreiben)",null,null,null,null,null,null,null,true,null,{"$f":"IF(AND(B33<>\"\",B33<=Daten!$O$5,OR(B34=\"\",B34>Daten!$O$5)),TRUE,FALSE)","v":false}]
[null,"2022-08-15","22.07","Berechnung","Korrektur des Ausweises der \"Sonstigen Finanzierung\" in der Übersicht der Gesamtfinanzierung",null,null,null,null,null,null,null,true,null,{"$f":"IF(AND(B34<>\"\",B34<=Daten!$O$5,OR(B35=\"\",B35>Daten!$O$5)),TRUE,FALSE)","v":false}]
[null,"2022-10-07","22.08","Alle","Anpassung und Aktivierung der Förderoption \"Klimabaustein\"",null,null,null,null,null,null,null,true,null,{"$f":"IF(AND(B35<>\"\",B35<=Daten!$O$5,OR(B36=\"\",B36>Daten!$O$5)),TRUE,FALSE)","v":false}]
[null,"2022-12-07","22.09","Alle","Anpassung der Bewirtschaftungskosten ab 01.01.2023\nAufnahme und Berücksichtigung der Betriebskosten für leerstehende Wohnflächen\nGetrennte Ermittlung der Instandhaltungskosten bei mit Aufzug nur teilweise erschlossenen Flächen und Ausweis Durchschnittswert\nKorrektur bei ausgewählter Kappung der Förderbeträge auf Förderhöchstgrenze (Klimabaustein)\nKorrektur Rechtschreib- und Grammatikfehler",null,null,null,null,null,null,null,true,null,{"$f":"IF(AND(B36<>\"\",B36<=Daten!$O$5,OR(B37=\"\",B37>Daten!$O$5)),TRUE,FALSE)","v":false}]
[null,"2023-06-06","23.01","Berechnung","Korrektur des Ausweises des maximal möglichen Förderdarlehens bei Nutzung des Klimabausteines in der externen Version\nOption, einen errechneten Deckungsbeitrag vor Maßnahme zu nutzen, sofern kein verläßlicher bereitgestellt werden konnte (Mod/Inst)\nKorrektur des Ausweises der Instandhaltungskosten bei vorhandenem Aufzug (wenn keine Aufzugsförderung genutzt wird)\nAnpassung der Berechnung der notwendigen Bindungen für Maßnahmen mit 3 oder weniger Wohneinheiten\nOption, notwendiges \"echtes\" Eigenkapital automatisch berechnen zu lassen\nOption, Basis für Eigenkapitalverzinsung automatisch anpassen zu lassen, um jährlichen Fehlbetrag ausgleichen zu können\nOption, Tilgungssatz der Förderdarlehen automatisch anpassen zu lassen, um \"Notwendige Restfinanzierung\" möglichst zu vermeiden",null,null,null,null,null,null,null,true,null,{"$f":"IF(AND(B37<>\"\",B37<=Daten!$O$5,OR(B38=\"\",B38>Daten!$O$5)),TRUE,FALSE)","v":false}]
[null,"2023-07-21","23.02","Alle","Korrektur der Berechnung der Belegungsbindungen bei nur 3 Wohneinheiten",null,null,null,null,null,null,null,true,null,{"$f":"IF(AND(B38<>\"\",B38<=Daten!$O$5,OR(B39=\"\",B39>Daten!$O$5)),TRUE,FALSE)","v":false}]
[null,"2023-11-28","23.03","Alle","Anpassungen für Förderrichtlinie vom 01.12.2023\nAufnahme von Stellplätzen für korrekte Abbildung der Bewirtschaftungskosten\nAnpassung des automatisch berechneten Deckungsbeitrages bei ModInst-Maßnahmen\nDiverse Bereinigungen / Korrekturen in Zell-Referenzierungen",null,null,null,null,null,null,null,true,null,{"$f":"IF(AND(B39<>\"\",B39<=Daten!$O$5,OR(B40=\"\",B40>Daten!$O$5)),TRUE,FALSE)","v":false}]
[null,"2023-12-07","23.04","Berechnung","Reduzierung der Förderobergrenze um Zuschuss für Belegungsbindung für RL vom 01.12.2023",null,null,null,null,null,null,null,true,null,{"$f":"IF(AND(B40<>\"\",B40<=Daten!$O$5,OR(B41=\"\",B41>Daten!$O$5)),TRUE,FALSE)","v":false}]
[null,"2024-01-15","24.01","Berechnung","Korrektur des fehlenden Ausweises der notwendigen Restfinanzierung in der Finanzierungszusammenfassung\nWeitere Anpassung zur Vermeidung einer notwendigen Restfinanzierung von 100,00 EUR oder weniger\nOption, die Anzahl der Wohneinheiten von der Verteilung der Belegungsbindungsquoten auszuschließen (nur interne Version)\nErweiterung der per \"Mitarbeiterfreigabe\" freigeschalteten Einstellungen in den \"Grunddaten\"",null,null,null,null,null,null,null,true,null,{"$f":"IF(AND(B41<>\"\",B41<=Daten!$O$5,OR(B42=\"\",B42>Daten!$O$5)),TRUE,FALSE)","v":false}]
[null,"2024-01-17","24.02","VBA","Anpassung der automatischen Bereinigung von Eingaben wenn eine Änderung der Maßnahmeart erfolgte\nKorrektur der fehlenden Berücksichtigung eines manuellen Bindungssatzes für die 2. EK bei der Ermittlung der Wohnflächen",null,null,null,null,null,null,null,true,null,{"$f":"IF(AND(B42<>\"\",B42<=Daten!$O$5,OR(B43=\"\",B43>Daten!$O$5)),TRUE,FALSE)","v":false}]
[null,"2024-01-31","24.03","Berechnung","Korrektur des fehlenden Ausweises einer notwendigen Restfinnazierung bei reiner Aufzugsförderung\nKorrektur des Ausweises unnötiger Darlehen bei Finanzierung nur aus Eigenkapital und Zuschüssen",null,null,null,null,null,null,null,true,null,{"$f":"IF(AND(B43<>\"\",B43<=Daten!$O$5,OR(B44=\"\",B44>Daten!$O$5)),TRUE,FALSE)","v":true}]
[null,null,"",null,null,null,null,null,null,null,null,null,false,null,{"$f":"IF(AND(B44<>\"\",B44<=Daten!$O$5,OR(B45=\"\",B45>Daten!$O$5)),TRUE,FALSE)","v":false}]
[null,null,"",null,null,null,null,null,null,null,null,null,false,null,{"$f":"IF(AND(B45<>\"\",B45<=Daten!$O$5,OR(B46=\"\",B46>Daten!$O$5)),TRUE,FALSE)","v":false}]
[null,null,"",null,null,null,null,null,null,null,null,null,false,null,{"$f":"IF(AND(B46<>\"\",B46<=Daten!$O$5,OR(B47=\"\",B47>Daten!$O$5)),TRUE,FALSE)","v":false}]
[null,null,"",null,null,null,null,null,null,null,null,null,false,null,{"$f":"IF(AND(B47<>\"\",B47<=Daten!$O$5,OR(B48=\"\",B48>Daten!$O$5)),TRUE,FALSE)","v":false}]
[null,null,"",null,null,null,null,null,null,null,null,null,false,null,{"$f":"IF(AND(B48<>\"\",B48<=Daten!$O$5,OR(B49=\"\",B49>Daten!$O$5)),TRUE,FALSE)","v":false}]
[null,null,"",null,null,null,null,null,null,null,null,null,false,null,{"$f":"IF(AND(B49<>\"\",B49<=Daten!$O$5,OR(B50=\"\",B50>Daten!$O$5)),TRUE,FALSE)","v":false}]
[null,null,"",null,null,null,null,null,null,null,null,null,false,null,{"$f":"IF(AND(B50<>\"\",B50<=Daten!$O$5,OR(B51=\"\",B51>Daten!$O$5)),TRUE,FALSE)","v":false}]
[null,null,"",null,null,null,null,null,null,null,null,null,false,null,{"$f":"IF(AND(B51<>\"\",B51<=Daten!$O$5,OR(B52=\"\",B52>Daten!$O$5)),TRUE,FALSE)","v":false}]
[null,null,"",null,null,null,null,null,null,null,null,null,false,null,{"$f":"IF(AND(B52<>\"\",B52<=Daten!$O$5,OR(B53=\"\",B53>Daten!$O$5)),TRUE,FALSE)","v":false}]
[null,null,"",null,null,null,null,null,null,null,null,null,false,null,{"$f":"IF(AND(B53<>\"\",B53<=Daten!$O$5,OR(B54=\"\",B54>Daten!$O$5)),TRUE,FALSE)","v":false}]
[null,null,"",null,null,null,null,null,null,null,null,null,false,null,{"$f":"IF(AND(B54<>\"\",B54<=Daten!$O$5,OR(B55=\"\",B55>Daten!$O$5)),TRUE,FALSE)","v":false}]
[null,null,"",null,null,null,null,null,null,null,null,null,false,null,{"$f":"IF(AND(B55<>\"\",B55<=Daten!$O$5,OR(B56=\"\",B56>Daten!$O$5)),TRUE,FALSE)","v":false}]
[null,null,"",null,null,null,null,null,null,null,null,null,false,null,{"$f":"IF(AND(B56<>\"\",B56<=Daten!$O$5,OR(B57=\"\",B57>Daten!$O$5)),TRUE,FALSE)","v":false}]
[null,null,"",null,null,null,null,null,null,null,null,null,false,null,{"$f":"IF(AND(B57<>\"\",B57<=Daten!$O$5,OR(B58=\"\",B58>Daten!$O$5)),TRUE,FALSE)","v":false}]
[null,null,"",null,null,null,null,null,null,null,null,null,false,null,{"$f":"IF(AND(B58<>\"\",B58<=Daten!$O$5,OR(B59=\"\",B59>Daten!$O$5)),TRUE,FALSE)","v":false}]
[null,null,"",null,null,null,null,null,null,null,null,null,false,null,{"$f":"IF(AND(B59<>\"\",B59<=Daten!$O$5,OR(B60=\"\",B60>Daten!$O$5)),TRUE,FALSE)","v":false}]
[null,null,"",null,null,null,null,null,null,null,null,null,false,null,{"$f":"IF(AND(B60<>\"\",B60<=Daten!$O$5,OR(B61=\"\",B61>Daten!$O$5)),TRUE,FALSE)","v":false}]
[null,null,"",null,null,null,null,null,null,null,null,null,false,null,{"$f":"IF(AND(B61<>\"\",B61<=Daten!$O$5,OR(B62=\"\",B62>Daten!$O$5)),TRUE,FALSE)","v":false}]
[null,null,"",null,null,null,null,null,null,null,null,null,false,null,{"$f":"IF(AND(B62<>\"\",B62<=Daten!$O$5,OR(B63=\"\",B63>Daten!$O$5)),TRUE,FALSE)","v":false}]
[null,null,"",null,null,null,null,null,null,null,null,null,false,null,{"$f":"IF(AND(B63<>\"\",B63<=Daten!$O$5,OR(B64=\"\",B64>Daten!$O$5)),TRUE,FALSE)","v":false}]
[null,null,"",null,null,null,null,null,null,null,null,null,false,null,{"$f":"IF(AND(B64<>\"\",B64<=Daten!$O$5,OR(B65=\"\",B65>Daten!$O$5)),TRUE,FALSE)","v":false}]
[null,null,"",null,null,null,null,null,null,null,null,null,false,null,{"$f":"IF(AND(B65<>\"\",B65<=Daten!$O$5,OR(B66=\"\",B66>Daten!$O$5)),TRUE,FALSE)","v":false}]
[null,null,"",null,null,null,null,null,null,null,null,null,false,null,{"$f":"IF(AND(B66<>\"\",B66<=Daten!$O$5,OR(B67=\"\",B67>Daten!$O$5)),TRUE,FALSE)","v":false}]
[null,null,"",null,null,null,null,null,null,null,null,null,false,null,{"$f":"IF(AND(B67<>\"\",B67<=Daten!$O$5,OR(B68=\"\",B68>Daten!$O$5)),TRUE,FALSE)","v":false}]
[null,null,"",null,null,null,null,null,null,null,null,null,false,null,{"$f":"IF(AND(B68<>\"\",B68<=Daten!$O$5,OR(B69=\"\",B69>Daten!$O$5)),TRUE,FALSE)","v":false}]
[null,null,"",null,null,null,null,null,null,null,null,null,false,null,{"$f":"IF(AND(B69<>\"\",B69<=Daten!$O$5,OR(B70=\"\",B70>Daten!$O$5)),TRUE,FALSE)","v":false}]
[null,null,"",null,null,null,null,null,null,null,null,null,false,null,{"$f":"IF(AND(B70<>\"\",B70<=Daten!$O$5,OR(B71=\"\",B71>Daten!$O$5)),TRUE,FALSE)","v":false}]
[null,null,"",null,null,null,null,null,null,null,null,null,false,null,{"$f":"IF(AND(B71<>\"\",B71<=Daten!$O$5,OR(B72=\"\",B72>Daten!$O$5)),TRUE,FALSE)","v":false}]
[null,null,"",null,null,null,null,null,null,null,null,null,false,null,{"$f":"IF(AND(B72<>\"\",B72<=Daten!$O$5,OR(B73=\"\",B73>Daten!$O$5)),TRUE,FALSE)","v":false}]
[null,null,"",null,null,null,null,null,null,null,null,null,false,null,{"$f":"IF(AND(B73<>\"\",B73<=Daten!$O$5,OR(B74=\"\",B74>Daten!$O$5)),TRUE,FALSE)","v":false}]
[null,null,"",null,null,null,null,null,null,null,null,null,false,null,{"$f":"IF(AND(B74<>\"\",B74<=Daten!$O$5,OR(B75=\"\",B75>Daten!$O$5)),TRUE,FALSE)","v":false}]
[null,null,"",null,null,null,null,null,null,null,null,null,{"$f":"IF(B75=\"\",FALSE,TRUE)","v":false},null,{"$f":"IF(AND(B75<>\"\",B75<=Daten!$O$5,OR(B76=\"\",B76>Daten!$O$5)),TRUE,FALSE)","v":false}]
[null,null,"",null,null,null,null,null,null,null,null,null,false,null,{"$f":"IF(AND(B76<>\"\",B76<=Daten!$O$5,OR(B77=\"\",B77>Daten!$O$5)),TRUE,FALSE)","v":false}]
[null,null,"",null,null,null,null,null,null,null,null,null,false,null,{"$f":"IF(AND(B77<>\"\",B77<=Daten!$O$5,OR(B78=\"\",B78>Daten!$O$5)),TRUE,FALSE)","v":false}]
[null,null,"",null,null,null,null,null,null,null,null,null,false,null,{"$f":"IF(AND(B78<>\"\",B78<=Daten!$O$5,OR(B79=\"\",B79>Daten!$O$5)),TRUE,FALSE)","v":false}]
[null,null,"",null,null,null,null,null,null,null,null,null,false,null,{"$f":"IF(AND(B79<>\"\",B79<=Daten!$O$5,OR(B80=\"\",B80>Daten!$O$5)),TRUE,FALSE)","v":false}]
[null,null,"",null,null,null,null,null,null,null,null,null,false,null,{"$f":"IF(AND(B80<>\"\",B80<=Daten!$O$5,OR(B81=\"\",B81>Daten!$O$5)),TRUE,FALSE)","v":false}]
[null,null,"",null,null,null,null,null,null,null,null,null,false,null,{"$f":"IF(AND(B81<>\"\",B81<=Daten!$O$5,OR(B82=\"\",B82>Daten!$O$5)),TRUE,FALSE)","v":false}]
[null,null,"",null,null,null,null,null,null,null,null,null,false,null,{"$f":"IF(AND(B82<>\"\",B82<=Daten!$O$5,OR(B83=\"\",B83>Daten!$O$5)),TRUE,FALSE)","v":false}]
[null,null,"",null,null,null,null,null,null,null,null,null,false,null,{"$f":"IF(AND(B83<>\"\",B83<=Daten!$O$5,OR(B84=\"\",B84>Daten!$O$5)),TRUE,FALSE)","v":false}]
[null,null,"",null,null,null,null,null,null,null,null,null,false,null,{"$f":"IF(AND(B84<>\"\",B84<=Daten!$O$5,OR(B85=\"\",B85>Daten!$O$5)),TRUE,FALSE)","v":false}]
[null,null,"",null,null,null,null,null,null,null,null,null,false,null,{"$f":"IF(AND(B85<>\"\",B85<=Daten!$O$5,OR(B86=\"\",B86>Daten!$O$5)),TRUE,FALSE)","v":false}]
[null,null,"",null,null,null,null,null,null,null,null,null,false,null,{"$f":"IF(AND(B86<>\"\",B86<=Daten!$O$5,OR(B87=\"\",B87>Daten!$O$5)),TRUE,FALSE)","v":false}]
[null,null,"",null,null,null,null,null,null,null,null,null,false,null,{"$f":"IF(AND(B87<>\"\",B87<=Daten!$O$5,OR(B88=\"\",B88>Daten!$O$5)),TRUE,FALSE)","v":false}]
[null,null,"",null,null,null,null,null,null,null,null,null,false,null,{"$f":"IF(AND(B88<>\"\",B88<=Daten!$O$5,OR(B89=\"\",B89>Daten!$O$5)),TRUE,FALSE)","v":false}]
[null,null,"",null,null,null,null,null,null,null,null,null,false,null,{"$f":"IF(AND(B89<>\"\",B89<=Daten!$O$5,OR(B90=\"\",B90>Daten!$O$5)),TRUE,FALSE)","v":false}]
[null,null,"",null,null,null,null,null,null,null,null,null,false,null,{"$f":"IF(AND(B90<>\"\",B90<=Daten!$O$5,OR(B91=\"\",B91>Daten!$O$5)),TRUE,FALSE)","v":false}]
[null,null,"",null,null,null,null,null,null,null,null,null,false,null,{"$f":"IF(AND(B91<>\"\",B91<=Daten!$O$5,OR(B92=\"\",B92>Daten!$O$5)),TRUE,FALSE)","v":false}]
[null,null,"",null,null,null,null,null,null,null,null,null,false,null,{"$f":"IF(AND(B92<>\"\",B92<=Daten!$O$5,OR(B93=\"\",B93>Daten!$O$5)),TRUE,FALSE)","v":false}]
[null,null,"",null,null,null,null,null,null,null,null,null,false,null,{"$f":"IF(AND(B93<>\"\",B93<=Daten!$O$5,OR(B94=\"\",B94>Daten!$O$5)),TRUE,FALSE)","v":false}]
[null,null,"",null,null,null,null,null,null,null,null,null,false,null,{"$f":"IF(AND(B94<>\"\",B94<=Daten!$O$5,OR(B95=\"\",B95>Daten!$O$5)),TRUE,FALSE)","v":false}]
[null,null,"",null,null,null,null,null,null,null,null,null,false,null,{"$f":"IF(AND(B95<>\"\",B95<=Daten!$O$5,OR(B96=\"\",B96>Daten!$O$5)),TRUE,FALSE)","v":false}]
[null,null,"",null,null,null,null,null,null,null,null,null,false,null,{"$f":"IF(AND(B96<>\"\",B96<=Daten!$O$5,OR(B97=\"\",B97>Daten!$O$5)),TRUE,FALSE)","v":false}]
[null,null,"",null,null,null,null,null,null,null,null,null,false,null,{"$f":"IF(AND(B97<>\"\",B97<=Daten!$O$5,OR(B98=\"\",B98>Daten!$O$5)),TRUE,FALSE)","v":false}]
[null,null,"",null,null,null,null,null,null,null,null,null,false,null,{"$f":"IF(AND(B98<>\"\",B98<=Daten!$O$5,OR(B99=\"\",B99>Daten!$O$5)),TRUE,FALSE)","v":false}]
[null,null,"",null,null,null,null,null,null,null,null,null,false,null,{"$f":"IF(AND(B99<>\"\",B99<=Daten!$O$5,OR(B100=\"\",B100>Daten!$O$5)),TRUE,FALSE)","v":false}]
[null,null,"",null,null,null,null,null,null,null,null,null,false,null,{"$f":"IF(AND(B100<>\"\",B100<=Daten!$O$5,OR(B101=\"\",B101>Daten!$O$5)),TRUE,FALSE)","v":false}]
[null,null,"",null,null,null,null,null,null,null,null,null,false,null,{"$f":"IF(AND(B101<>\"\",B101<=Daten!$O$5,OR(B102=\"\",B102>Daten!$O$5)),TRUE,FALSE)","v":false}]
[null,null,"",null,null,null,null,null,null,null,null,null,false,null,{"$f":"IF(AND(B102<>\"\",B102<=Daten!$O$5,OR(B103=\"\",B103>Daten!$O$5)),TRUE,FALSE)","v":false}]
[null,null,"",null,null,null,null,null,null,null,null,null,false,null,{"$f":"IF(AND(B103<>\"\",B103<=Daten!$O$5,OR(B104=\"\",B104>Daten!$O$5)),TRUE,FALSE)","v":false}]
[null,null,"",null,null,null,null,null,null,null,null,null,false,null,{"$f":"IF(AND(B104<>\"\",B104<=Daten!$O$5,OR(B105=\"\",B105>Daten!$O$5)),TRUE,FALSE)","v":false}]
[null,null,"",null,null,null,null,null,null,null,null,null,false,null,{"$f":"IF(AND(B105<>\"\",B105<=Daten!$O$5,OR(B106=\"\",B106>Daten!$O$5)),TRUE,FALSE)","v":false}]
[null,null,"",null,null,null,null,null,null,null,null,null,false,null,{"$f":"IF(AND(B106<>\"\",B106<=Daten!$O$5,OR(B107=\"\",B107>Daten!$O$5)),TRUE,FALSE)","v":false}]
[null,null,"",null,null,null,null,null,null,null,null,null,false,null,{"$f":"IF(AND(B107<>\"\",B107<=Daten!$O$5,OR(B108=\"\",B108>Daten!$O$5)),TRUE,FALSE)","v":false}]
[null,null,"",null,null,null,null,null,null,null,null,null,false,null,{"$f":"IF(AND(B108<>\"\",B108<=Daten!$O$5,OR(B109=\"\",B109>Daten!$O$5)),TRUE,FALSE)","v":false}]
[null,null,"",null,null,null,null,null,null,null,null,null,false,null,{"$f":"IF(AND(B109<>\"\",B109<=Daten!$O$5,OR(B110=\"\",B110>Daten!$O$5)),TRUE,FALSE)","v":false}]

{"sheet":"Daten","index":4,"n_rows":145,"n_cols":33,"rows_kept":145,"cut":false,"hidden":true,"merged":[[25,1,31,1],[7,26,7,32],[8,26,10,26],[8,27,10,27],[8,28,10,28],[8,29,8,32],[9,29,10,29],[9,30,10,30],[9,31,10,31],[9,32,10,32],[8,25,10,25],[7,24,7,25],[24,1,24,5],[68,3,70,3],[41,1,41,2],[41,4,41,5],[130,1,130,4],[139,1,139,4],[7,13,10,14],[7,16,10,16],[7,17,10,17],[7,15,10,15],[66,1,66,4],[68,1,70,2],[71,1,71,2],[72,1,72,2],[67,1,67,4],[73,1,73,4],[76,1,76,4],[82,1,82,4],[68,4,69,4],[85,1,85,4],[85,9,87,10],[88,9,89,12],[94,3,95,3],[94,1,95,2],[74,1,74,2],[60,4,60,5],[50,1,50,2],[48,1,48,2],[45,4,45,5],[36,4,36,6],[47,1,47,2],[47,4,47,5],[43,1,44,2],[32,1,32,5],[42,1,42,2],[42,4,42,5],[43,4,43,5],[43,3,44,3],[45,1,45,2],[35,1,35,3],[35,4,35,5],[36,1,36,3],[46,1,46,2],[46,4,46,5],[2,18,2,19],[3,18,3,19],[1,5,1,6],[2,5,2,6],[4,18,4,19],[40,17,40,21],[33,17,33,21],[53,17,53,21],[62,17,62,21],[29,18,29,19],[22,17,22,21],[4,20,4,21],[11,12,18,12],[7,12,10,12],[61,4,61,5],[58,1,58,6],[48,4,48,5],[44,4,44,5],[39,4,39,5],[40,1,40,2],[40,4,40,5],[59,1,59,5],[50,4,50,5],[49,1,49,2],[1,20,1,21],[2,20,2,21],[3,20,3,21],[38,1,38,2],[38,4,38,5],[39,1,39,2],[33,1,33,5],[62,4,62,5],[51,1,51,6],[52,1,52,2],[37,1,37,2],[37,4,37,5],[7,9,10,9],[11,9,18,9],[14,1,14,5],[15,1,15,5],[13,1,13,5],[2,7,2,9],[23,1,23,5],[1,18,1,19],[49,4,49,5],[55,1,55,2],[53,1,53,2],[54,1,54,2],[3,5,3,6],[12,1,12,5],[10,1,10,5],[4,5,4,6],[11,1,11,5],[6,1,6,6],[22,1,22,3],[20,1,20,3],[21,1,21,3],[16,1,16,5],[7,1,7,5],[8,1,8,5],[9,1,9,5],[19,1,19,3],[17,1,17,3],[18,1,18,3],[75,1,75,2],[77,1,78,2],[81,1,81,2],[79,1,80,2],[86,3,88,3],[86,1,88,1],[123,1,123,4],[112,1,112,4],[111,9,113,9],[114,9,116,9],[90,6,90,7],[91,6,91,7],[83,3,84,3],[77,3,78,3],[75,6,75,7],[83,1,84,2],[77,4,81,4],[96,1,97,2],[98,1,99,2],[96,3,97,3],[98,3,99,3],[94,9,94,12],[99,9,99,12],[126,6,126,7],[107,6,107,7],[111,6,111,7],[114,6,114,7],[128,6,128,7],[133,6,133,7],[103,16,103,17],[93,16,94,16],[92,17,92,18],[100,9,103,12],[102,6,102,7],[95,6,95,7],[99,6,99,7],[103,6,103,7],[45,7,46,7],[7,10,9,11],[8,24,10,24],[88,16,88,17],[9,18,10,18],[9,19,10,19],[9,20,10,20],[9,21,10,21],[21,23,21,32],[22,23,26,28],[27,23,29,32],[9,22,10,22],[9,23,10,23],[7,18,7,23],[8,21,8,23],[8,18,8,20]]}
[]
[null,"Testversion gültig bis:",null,"Administrator:",null,"Arbeitsmappenschutz an:",null,true,"Druckmodus",false,null,"Rechner-Version",{"$f":"IF(M3=TRUE,\"ILB (Intern)\",IF(M4=TRUE,\"Kunde (Extern)\",IF(M5=TRUE,\"LBV / MIL (Extern)\",\"Unbekannt\")))","v":"LBV / MIL (Extern)"},null,"Datum BWK",null,"Anzahl Iterationen","Anzahl Erhöhungen","Iterationsanpassung?",null,"Auto-Zielwert?"]
[null,"Einstellungsmodus:",false,false,null,"Leztes Aktives Blatt:",null,"Berechnung",null,null,null,"Intern",false,null,{"$f":"IF(OR(J4=\"\",J4=\"-\",J4=O23,M3=FALSE,J4=O48),O5,J4)","v":"2024-03-18"},null,{"$f":"IF(Grunddaten!H95=\"\",Grunddaten!R95,ROUNDUP(Grunddaten!H95,0))","v":100},{"$f":"IF(Grunddaten!$H$96=\"\",Grunddaten!$R$96,Grunddaten!$H$96)","v":3},true,null,true]
[null,"Programmiermodus:",false,"Kennzahlen:",null,"Laufende Überwachung:",null,true,"Auswahl BWK",{"$f":"IF(O49=\"\",\"-\",O49)","v":"Aktuell gültig"},null,"Extern",false,null,"Tagesdatum",null,"Genauigkeit","Ergebnisproblem?","Solo - Aufzug?",null,"Kappung Förderung?"]
[null,"Mitarbeiterfreigabe:",false,false,null,"Druckbereich:",null,{"$f":"ADDRESS(ROW(Berechnung!C6),COLUMN(Berechnung!C6),1,1)&\":\"&ADDRESS(ROW(Berechnung!Y158),COLUMN(Berechnung!Y158),1,1)","v":"$C$6:$Y$158"},"Seitenanzahl",{"$f":"IF(OR($C$4=TRUE,$G$60=TRUE),2,1)","v":1},null,"LBV",true,null,{"$f":"TODAY()","v":"2024-03-18"},null,{"$f":"IF(Grunddaten!H97=\"\",Grunddaten!R97,Grunddaten!H97)","v":0.01},{"$f":"IF(AND($G$53=FALSE,$D$47>0),TRUE,FALSE)","v":false},{"$f":"O81","v":true},null,{"$f":"Grunddaten!H40","v":true}]
[]
[null,"Zusammenfassung der wesentlichen Daten für die Förderdarlehensberechnung (Zielwertsuche)"]
[null,"Gesamtwohnfläche der gef. Wohnungen",null,null,null,null,{"$f":"Berechnung!K19","v":0},null,null,"Gewählte Version","Richtlinenversionen",null,"Besetzungs-\nrechte","Text Startseite",null,"Höchstförderung Darlehen bei Neubau, Umnutzung ohne Zuschuss","Höchstförderung Darlehen bei Neubau, Umnutzung mit Zuschuss","Höchstförderung Darlehen bei ModInst","Mietobergrenzen",null,null,null,null,null,"Belegungsbindung",null,"Bindungsquoten"]
[null,"Maximalförderung pro m² Wohnfläche",null,null,null,null,{"$f":"D72","v":3000},null,null,null,null,null,null,null,null,null,null,null,"Anlage 2",null,null,"Sonstige",null,null,"Zuschuss","Jahre","Neubau, Umnutzung, Widerherstellung","ModInst, Solo-Aufzüge","Solo-Aufzüge","Einkommensgrenzen"]
[null,"Förderfähige Gesamtkosten (gef. Whg.)",null,null,null,null,{"$f":"IF(Berechnung!I44=\"\",0,Berechnung!I44)","v":0},null,null,null,null,null,null,null,null,null,null,null,"1. EK","2. EK","3. EK","1. EK","2. EK","3. EK",null,null,null,null,null,"1. EK","2. EK","3. EK","Anzahl EK"]
[null,"Eigenleistungen (geförderte Whg.)",null,null,null,null,{"$f":"IF(Berechnung!V44=\"\",0,Berechnung!V44)","v":0},null,null,null,{"$f":"\"'Daten'!\"&ADDRESS(ROW(K12),COLUMN(K12),1)&\":\"&ADDRESS(ROW(K12)+COUNTA(K12:K19)-1,COLUMN(K12),1)","v":"'Daten'!$K$12:$K$17"},5]
[null,"Eigenleistungen mit Eigenkapitalverzinsung (gef. Whg.)",null,null,null,null,{"$f":"IF(AND(M3=TRUE,Berechnung!$V$74<>\"\"),MIN(G11,Berechnung!$V$74),G11)","v":0},null,null,{"$f":"IF(COUNTIF(L12:L19,TRUE)=0,\"...\",INDEX($K$12:$K$19,MATCH(TRUE,$L$12:$L$19,0),1))","v":"2023-12-01"},"2016-02-23",false,{"$f":"IF(L12=TRUE,TRUE,FALSE)","v":false},null,null,1800,1450,1100,5.5,7,0,4.9000000000000004,6,0,{"$f":"P12-Q12","v":350},25,75,50,50,50,50,0,{"$f":"IF(K12=\"\",\"\",SUMPRODUCT((AD12:AF12>0)*1))","v":2}]
[null,"Zuschüsse (geförderte Whg.)",null,null,null,null,{"$f":"SUM(Berechnung!V48:X52)","v":0},null,null,null,"2017-03-08",false,null,"in der Fassung der ersten Änderung vom 08.03.2017",null,1800,1450,1100,5.5,7,0,4.9000000000000004,6,0,{"$f":"P13-Q13","v":350},25,75,50,50,50,50,0,2]
[null,"Einnahmen (geförderte Whg.)",null,null,null,null,{"$f":"IF(Berechnung!V35=\"\",0,Berechnung!V35)","v":0},null,null,null,"2018-08-17",false,null,"in der Fassung der zweiten Änderung vom 04.09.2018",null,2500,2150,1800,5.5,7,0,4.9000000000000004,6,0,{"$f":"P14-Q14","v":350},25,75,50,50,50,50,0,2]
[null,"Kapitaldienst aus bereits bestehenden Finanzierungen (gef. Whg.)",null,null,null,null,{"$f":"Berechnung!V58","v":0},null,null,null,"2019-10-10",false,null,null,null,2500,2150,1800,5.5,7,0,4.9000000000000004,6,0,{"$f":"P15-Q15","v":350},25,75,50,50,50,50,0,2]
[null,"Bewirtschaftungskosten (gef. Whg.)",null,null,null,null,{"$f":"SUM(Berechnung!V67:X70)","v":0},null,null,null,"2022-03-17",false,null,"in der Fassung der ersten Änderung vom 04.10.2022",null,2800,2450,1800,6,7.5,0,5.4,6.5,0,{"$f":"P16-Q16","v":350},25,75,50,50,50,50,0,2]
[null,"Eigenkapitalverzinsung (gef. Whg.)",null,null,null,null,{"$f":"SUM(Berechnung!V76:X77)","v":0},null,null,null,"2023-12-01",true,null,null,null,3000,3000,2000,6.5,9,12,6,8,10,200,35,100,100,100,45,30,{"$f":"ROUND(100-AD17-AE17,2)","v":25},3]
[null,"Konditionen Finanzierung",null,null,"Zinssatz","Tilgungssatz","Annuität",null,null,null,null,null,null,null,null,null,null,null,null,null,null,null,null,null,null,null,null,null,null,null,null,null,""]
[null,"Freie Finanzierung Förderung",null,null,{"$f":"Berechnung!Q63","v":0},{"$f":"Berechnung!S63","v":0},{"$f":"SUM(E19:F19)","v":0},null,null,null,null,null,null,null,null,null,null,null,null,null,null,null,null,null,null,null,null,null,null,null,null,null,""]
[null,"Förderdarlehen (Maßnahme)",null,null,{"$f":"Berechnung!Q59","v":0.5},{"$f":"Berechnung!S59","v":2},{"$f":"SUM(E20:F20)","v":2.5}]
[null,{"$f":"IF(Berechnung!D62=\"\",\"-\",Berechnung!D62)","v":"-"},null,null,{"$f":"Berechnung!Q62","v":0},{"$f":"Berechnung!S62","v":0},{"$f":"SUM(E21:F21)","v":0}]
[null,"1. Weitere Finanzierung",null,null,0,0,{"$f":"SUM(E22:F22)","v":0},null,null,"Angaben",null,"Soll","Ist",null,{"$f":"IF(O50=TRUE,\"Daten!\"&SUBSTITUTE(ADDRESS(1,COLUMN(O48),4),1,)&ROW(O48)&\":\"&SUBSTITUTE(ADDRESS(1,COLUMN(O48),4),1,)&ROW(O48),\"Daten!\"&SUBSTITUTE(ADDRESS(1,COLUMN(O23),4),1,)&ROW(O23)&\":\"&SUBSTITUTE(ADDRESS(1,COLUMN(O23),4),1,)&(COUNT(O24:O46)+ROW(O23)))","v":"Daten!O23:O27"},null,null,"Blatt","Spalte","Spalte","Start","Ende",null,"Infotext zur Belegungsbindung"]
[null,"2. Weitere Finanzierung",null,null,0,0,{"$f":"SUM(E23:F23)","v":0},null,null,"Objet- und Maßnahmeinformationen",null,null,null,null,"Aktuell gültig",null,null,"Sichtbarkeitsbereich für Ein- und Ausblendung von Zeilen",null,null,null,null,null,{"$f":"IF(OR(Daten!$M$83=\"\",Daten!$M$83=0),\"\",IF($L$17=TRUE,\"Von den notwendigen Bindungen sind mindestens \"&TEXT(AD17,\"#.##0,00\")&\"% der WE an Berechtigte zu überlassen, welche die Einkommensgrenze des §22 (2) BbgWoFG einhalten (1. EK-Grenze).\"&\" Für \"&TEXT(AE17,\"#.##0,00\")&\"% der gebundenen WE darf diese Einkommensgrenze um nicht mehr als \"&TEXT(AF25,\"#.##\")&\"% überschritten werden (2. EK-Grenze) und die verbleibenden \"&TEXT(AF17,\"#.##0,00\")&\"% dürfen diese Einkommensgrenze um nicht mehr als \"&TEXT(AF26,\"#.##\")&\"% überschreiten (3. EK-Grenze).\",\"Von den notwendigen Bindungen ist mindestens die Hälfte der WE an Berechtigte zu überlassen, welche die Einkommensgrenze des §22 (2) BbgWoFG einhalten (1. EK-Grenze).\"&\" Für die übrigen gebundenen WE darf diese Einkommensgrenze um nicht mehr als 20% überschritten werden (2. EK-Grenze).\"))","v":"Von den notwendigen Bindungen sind mindestens 45,00% der WE an Berechtigte zu überlassen, welche die Einkommensgrenze des §22 (2) BbgWoFG einhalten (1. EK-Grenze). Für 30,00% der gebundenen WE darf diese Einkommensgrenze um nicht mehr als 40% überschritten werden (2. EK-Grenze) und die verbleibenden 25,00% dürfen diese Einkommensgrenze um nicht mehr als 60% überschreiten (3. EK-Grenze)."},null,null,null,null,null,20,"Fünftel",0,1]
[null,"Deckungsbeitrag p. a. vor Maßnahmebeginn abzgl. BWK (Mod / Inst)",null,null,null,null,{"$f":"IF(Berechnung!$V$85=\"\",0,Berechnung!$V$85)","v":0},null,null,"Maßnahmeart",null,true,{"$f":"IF(OR($M$83=\"\",$M$83=0),FALSE,TRUE)","v":true},{"$f":"IF(L24<>M24,\"i\",\"\")","v":""},{"$f":"IF(OR(O23=\"\",O23=$O$48),\"\",IF(AND(COUNTIF($O$23:O23,\"<>\")>$O$47,$M$3=TRUE,$O$50=TRUE),$O$48,IF(Grunddaten!B11=\"\",\"\",Grunddaten!B11)))","v":"2014-01-01"},null,null,"Startseite",{"$f":"COLUMN(Startseite!Y1)","v":25},{"$f":"SUBSTITUTE(ADDRESS(1,S24,4),1,)","v":"Y"},{"$f":"ROW(Startseite!Y1)","v":1},{"$f":"ROW(Startseite!Y64)","v":64},null,null,null,null,null,null,null,25,"Viertel",20,{"$f":"IF($L$17=FALSE,2,0)","v":0}]
[null,"Max. Überdeckung (Neubau und Umnutzung)",null,null,null,null,{"$f":"Grunddaten!H48","v":120},null,null,"Name",null,true,{"$f":"IF(Berechnung!$G$14<>\"\",TRUE,FALSE)","v":false},"i",{"$f":"IF(OR(O24=\"\",O24=$O$48),\"\",IF(AND(COUNTIF($O$23:O24,\"<>\")>$O$47,$M$3=TRUE,$O$50=TRUE),$O$48,IF(Grunddaten!B12=\"\",\"\",Grunddaten!B12)))","v":"2017-01-01"},null,null,"Berechnung",{"$f":"COLUMN(Berechnung!AB1)","v":28},{"$f":"SUBSTITUTE(ADDRESS(1,S25,4),1,)","v":"AB"},{"$f":"ROW(Berechnung!AB1)","v":1},{"$f":"ROW(Berechnung!AB159)","v":159},null,null,null,null,null,null,null,50,"Hälfte",40,{"$f":"IF($L$17=TRUE,2,0)","v":2}]
[null,"Maßnahmeart","Neubau ohne Zuschuss",null,null,null,{"$f":"M75","v":false},null,null,"Objektanschrift",null,true,{"$f":"IF(Berechnung!$G$15<>\"\",TRUE,FALSE)","v":false},"i",{"$f":"IF(OR(O25=\"\",O25=$O$48),\"\",IF(AND(COUNTIF($O$23:O25,\"<>\")>$O$47,$M$3=TRUE,$O$50=TRUE),$O$48,IF(Grunddaten!B13=\"\",\"\",Grunddaten!B13)))","v":"2020-01-01"},null,null,"Programmversionen",{"$f":"COLUMN(Programmversionen!M1)","v":13},"M",{"$f":"ROW(Programmversionen!M1)","v":1},{"$f":"ROW(Programmversionen!M109)","v":109},null,null,null,null,null,null,null,75,"Dreiviertel",60,{"$f":"IF($L$17=TRUE,3,0)","v":3}]
[null,null,"Neubau mit Zuschuss",null,null,null,false,null,null,"Gemeinde gemäß Anlage 3 der RL",null,true,{"$f":"IF(AND(Berechnung!$K$17<>\"\",OR(LEFT(Berechnung!$K$17,1)=\"J\",LEFT(Berechnung!$K$17,1)=\"N\")),TRUE,FALSE)","v":false},"i",{"$f":"IF(OR(O26=\"\",O26=$O$48),\"\",IF(AND(COUNTIF($O$23:O26,\"<>\")>$O$47,$M$3=TRUE,$O$50=TRUE),$O$48,IF(Grunddaten!B14=\"\",\"\",Grunddaten!B14)))","v":"2023-01-01"},null,null,"Grunddaten",{"$f":"COLUMN(Grunddaten!K1)","v":11},"K",{"$f":"ROW(Grunddaten!K1)","v":1},{"$f":"ROW(Grunddaten!K98)","v":98},null,null,null,null,null,null,null,100,"Gesamt",80,0]
[null,null,"Umnutzung ohne Zuschuss",null,null,null,true,null,null,"Anzahl der Wohneinheiten (WE)",null,true,{"$f":"IF(AND(Berechnung!$K$18>0,ISNUMBER(Berechnung!$K$18)),TRUE,FALSE)","v":false},"i",{"$f":"IF(OR(O27=\"\",O27=$O$48),\"\",IF(AND(COUNTIF($O$23:O27,\"<>\")>$O$47,$M$3=TRUE,$O$50=TRUE),$O$48,IF(Grunddaten!B15=\"\",\"\",Grunddaten!B15)))","v":""},null,null,null,null,null,null,null,null,{"$f":"IF(OR(Daten!$M$83=\"\",Daten!$M$83=0),\"\",IF(L17=TRUE,\"Die Bindungen orientieren sich an den Einkommensgrenzen des §22 (2) BbgWoFG, unter welche mindestens \"&TEXT(AD17,\"#.##0,00\")&\"% der WE direkt fallen (1. EK-Grenze). In der Regel gilt für \"&TEXT(AE17,\"#.##0,00\")&\"% der WE diese Einkommensgrenze zzgl. \"&TEXT(AF25,\"#.##\")&\"% (2. EK-Grenze) und für die verbleibenden \"&TEXT(AF17,\"#.##0,00\")&\"% gilt die Einkommensgrenze zzgl. \"&TEXT(AF26,\"#.##\")&\"% (3. EK-Grenze).\",\"Von den notwendigen Bindungen ist mindestens die Hälfte der WE an Berechtigte zu überlassen, welche die Einkommensgrenze des §22 (2) BbgWoFG einhalten (1. EK-Grenze).\"&\" Für die übrigen gebundenen WE darf diese Einkommensgrenze um nicht mehr als 20% überschritten werden (2. EK-Grenze).\"))","v":"Die Bindungen orientieren sich an den Einkommensgrenzen des §22 (2) BbgWoFG, unter welche mindestens 45,00% der WE direkt fallen (1. EK-Grenze). In der Regel gilt für 30,00% der WE diese Einkommensgrenze zzgl. 40% (2. EK-Grenze) und für die verbleibenden 25,00% gilt die Einkommensgrenze zzgl. 60% (3. EK-Grenze)."}]
[null,null,"Umnutzung mit Zuschuss",null,null,null,false,null,null,"Gesamtwohnfläche",null,true,{"$f":"IF(AND(Berechnung!$K$19>0,ISNUMBER(Berechnung!$K$19)),TRUE,FALSE)","v":false},"i",{"$f":"IF(OR(O28=\"\",O28=$O$48),\"\",IF(AND(COUNTIF($O$23:O28,\"<>\")>$O$47,$M$3=TRUE,$O$50=TRUE),$O$48,IF(Grunddaten!B16=\"\",\"\",Grunddaten!B16)))","v":""}]
[null,null,"ModInst",null,null,null,{"$f":"M79","v":false},null,null,"Grundstücksgröße",null,true,{"$f":"IF(AND(Berechnung!$K$20>0,ISNUMBER(Berechnung!$K$20)),TRUE,FALSE)","v":false},"i",{"$f":"IF(OR(O29=\"\",O29=$O$48),\"\",IF(AND(COUNTIF($O$23:O29,\"<>\")>$O$47,$M$3=TRUE,$O$50=TRUE),$O$48,IF(Grunddaten!B17=\"\",\"\",Grunddaten!B17)))","v":""},null,null,"Position","Start",null,"Änderung",30]
[null,null,"Solo-Förderung Aufzugsanbau",null,null,null,{"$f":"M81","v":false},null,null,"Inanspruchnaahme Aufzugsförderung",null,{"$f":"IF(AND(OR($L$16=TRUE,$L$17=TRUE),$M$81=FALSE),TRUE,FALSE)","v":true},{"$f":"IF(L31=FALSE,FALSE,IF(AND(Berechnung!$K$21<>\"\",OR(LEFT(Berechnung!$K$21,1)=\"J\",LEFT(Berechnung!$K$21,1)=\"N\")),TRUE,FALSE))","v":false},"i",{"$f":"IF(OR(O30=\"\",O30=$O$48),\"\",IF(AND(COUNTIF($O$23:O30,\"<>\")>$O$47,$M$3=TRUE,$O$50=TRUE),$O$48,IF(Grunddaten!B18=\"\",\"\",Grunddaten!B18)))","v":""},null,null,"Links",120,120,100,100]
[null,null,{"$f":"J80","v":"ModInst mit Zuschuss"},null,null,null,{"$f":"M80","v":false},null,null,"Erreichter Standard \"Klimabaustein\"",null,{"$f":"Berechnung!$AB$22","v":false},{"$f":"IF(L32=FALSE,FALSE,IF(AND(Berechnung!$K$22<>\"\"),TRUE,FALSE))","v":false},"",{"$f":"IF(OR(O31=\"\",O31=$O$48),\"\",IF(AND(COUNTIF($O$23:O31,\"<>\")>$O$47,$M$3=TRUE,$O$50=TRUE),$O$48,IF(Grunddaten!B19=\"\",\"\",Grunddaten!B19)))","v":""},null,null,"Rechts",140,150,240,240]
[null,"Richtlinenkonformität in allen Punkten",null,null,null,null,{"$f":"IF(L71=M71,TRUE,FALSE)","v":false},null,null,"Fördergegenstand \"Klimabaustein\"",null,{"$f":"IF(AND($M$3=TRUE,Berechnung!$AB$22=TRUE,$R$92=TRUE),TRUE,FALSE)","v":false},{"$f":"IF(L33=FALSE,FALSE,IF(AND(Berechnung!$Q$22<>\"\"),TRUE,FALSE))","v":false},"",{"$f":"IF(OR(O32=\"\",O32=$O$48),\"\",IF(AND(COUNTIF($O$23:O32,\"<>\")>$O$47,$M$3=TRUE,$O$50=TRUE),$O$48,IF(Grunddaten!B20=\"\",\"\",Grunddaten!B20)))","v":""},null,null,"Funktionalität","Offset?","Zulässig?","Anzeige?","Zähler?"]
[null,"Berechnung durchführen",null,null,null,null,{"$f":"IF(L71=M71,TRUE,FALSE)","v":false},null,null,"Aufteilung Quoten Belegungsbindungen",null,{"$f":"IF(L17=TRUE,TRUE,FALSE)","v":true},{"$f":"IF(L17=FALSE,FALSE,IF(COUNTIF(Berechnung!AF13:AF14,FALSE)>0,FALSE,TRUE))","v":true},"",{"$f":"IF(OR(O33=\"\",O33=$O$48),\"\",IF(AND(COUNTIF($O$23:O33,\"<>\")>$O$47,$M$3=TRUE,$O$50=TRUE),$O$48,IF(Grunddaten!B21=\"\",\"\",Grunddaten!B21)))","v":""},null,null,"Startseite"]
[null,null,null,null,null,null,null,null,null,"Aufteilung der Wohneinheiten / Einnahmen",null,null,null,null,{"$f":"IF(OR(O34=\"\",O34=$O$48),\"\",IF(AND(COUNTIF($O$23:O34,\"<>\")>$O$47,$M$3=TRUE,$O$50=TRUE),$O$48,IF(Grunddaten!B22=\"\",\"\",Grunddaten!B22)))","v":""},null,null,"Berechnung",{"$f":"IF(U35=TRUE,$S$31+((V35-1)*$V$30),0)","v":0},true,{"$f":"IF(AND(T35=TRUE,OR($H$2=FALSE,$M$3=TRUE)),TRUE,FALSE)","v":false},{"$f":"IF(U35=FALSE,0,COUNTIF($U35:U$35,TRUE))","v":0}]
[null,"Nebenrechnungen zur Ermittlung Förderhöhe",null,null,"EK / Zuschüsse unzureichend?",null,{"$f":"IF(Berechnung!$V$44+Berechnung!$V$53>=Berechnung!$I$44,FALSE,TRUE)","v":false},null,null,"WE / m² für 1. EK-Grenze",null,true,{"$f":"IF(AND(Berechnung!$AD$127=TRUE,Berechnung!$AD$145=TRUE,Berechnung!$AF$13=TRUE),TRUE,FALSE)","v":true},{"$f":"IF(L36<>M36,\"i\",\"\")","v":""},{"$f":"IF(OR(O35=\"\",O35=$O$48),\"\",IF(AND(COUNTIF($O$23:O35,\"<>\")>$O$47,$M$3=TRUE,$O$50=TRUE),$O$48,IF(Grunddaten!B23=\"\",\"\",Grunddaten!B23)))","v":""},null,null,"Information",{"$f":"IF(U36=TRUE,$S$31+((V36-1)*$V$30),0)","v":0},true,{"$f":"IF(AND(T36=TRUE,OR($H$2=FALSE,$M$3=TRUE)),TRUE,FALSE)","v":false},{"$f":"IF(U36=FALSE,0,COUNTIF($U$35:U36,TRUE))","v":0}]
[null,"KoFi",null,null,"Einnahmen/Ausgaben",null,null,null,null,"WE / m² für 2. EK-Grenze",null,true,{"$f":"IF(AND(Berechnung!$AE$127=TRUE,Berechnung!$AE$145=TRUE),TRUE,FALSE)","v":true},"",{"$f":"IF(OR(O36=\"\",O36=$O$48),\"\",IF(AND(COUNTIF($O$23:O36,\"<>\")>$O$47,$M$3=TRUE,$O$50=TRUE),$O$48,IF(Grunddaten!B24=\"\",\"\",Grunddaten!B24)))","v":""},null,null,"Grunddaten",{"$f":"IF(U37=TRUE,$S$32+((V37-1)*$V$30),0)","v":0},true,{"$f":"IF(AND(T37=TRUE,OR($H$2=FALSE,$M$3=TRUE)),TRUE,FALSE)","v":false},{"$f":"IF(U37=FALSE,0,COUNTIF($U$37:U37,TRUE))","v":0}]
[null,"Gesamtkosten (IST)",null,{"$f":"G10-H81-D128","v":0},"Summe Einnahmen p. a.",null,{"$f":"G14","v":0},null,null,{"$f":"IF(L17=TRUE,\"WE / m² für 3. EK-Grenze\",\"WE / m² nicht belegungsgebunden\")","v":"WE / m² für 3. EK-Grenze"},null,true,{"$f":"IF(AND(Berechnung!$AF$127=TRUE,Berechnung!$AF$145=TRUE),TRUE,FALSE)","v":true},"",{"$f":"IF(OR(O37=\"\",O37=$O$48),\"\",IF(AND(COUNTIF($O$23:O37,\"<>\")>$O$47,$M$3=TRUE,$O$50=TRUE),$O$48,IF(Grunddaten!B25=\"\",\"\",Grunddaten!B25)))","v":""},null,null,"Versionen",{"$f":"IF(U38=TRUE,$S$32+((V38-1)*$V$30),0)","v":0},true,{"$f":"IF(AND(T38=TRUE,OR($H$2=FALSE,$M$3=TRUE)),TRUE,FALSE)","v":false},{"$f":"IF(U38=FALSE,0,COUNTIF($U$37:U38,TRUE))","v":0}]
[null,"Eigenleistungen",null,{"$f":"G11-H84","v":0},"Kosten aus EL",null,0,null,null,"Summe WE und m² gesamt",null,true,{"$f":"IF(AND(SUM(Berechnung!J27:J29)=Berechnung!K18,SUM(Berechnung!L27:L29)=Berechnung!K19),TRUE,FALSE)","v":true},"",{"$f":"IF(OR(O38=\"\",O38=$O$48),\"\",IF(AND(COUNTIF($O$23:O38,\"<>\")>$O$47,$M$3=TRUE,$O$50=TRUE),$O$48,IF(Grunddaten!B26=\"\",\"\",Grunddaten!B26)))","v":""}]
[null,"Zuschüsse",null,{"$f":"MAX(0,G13-H101-D128)","v":0},"Kosten aus Zuschüssen",null,0,null,null,"Mit gefördertem Aufzug erreichbare WE",null,{"$f":"IF(AND(L16=TRUE,M31=TRUE,Berechnung!K21=\"Ja\"),TRUE,FALSE)","v":false},{"$f":"IF(L40=FALSE,FALSE,IF(AND(Berechnung!$J$34<>\"\",Berechnung!$J$34<=Berechnung!$K$18),TRUE,FALSE))","v":false},"",{"$f":"IF(OR(O39=\"\",O39=$O$48),\"\",IF(AND(COUNTIF($O$23:O39,\"<>\")>$O$47,$M$3=TRUE,$O$50=TRUE),$O$48,IF(Grunddaten!B27=\"\",\"\",Grunddaten!B27)))","v":""}]
[null,{"$f":"B21","v":"-"},null,{"$f":"IF(Berechnung!L62=\"\",0,Berechnung!L62)","v":0},"=> Kapitaldienst p. a.",null,{"$f":"ROUND(D41*G21/100,2)","v":0},null,null,"Davon durch Aufzug barrierefrei erreichbare WE",null,{"$f":"L40","v":false},{"$f":"IF(L41=FALSE,FALSE,IF(AND(Berechnung!$J$35<>\"\",Berechnung!$J$35<=Berechnung!$J$34),TRUE,FALSE))","v":false},"",{"$f":"IF(OR(O40=\"\",O40=$O$48),\"\",IF(AND(COUNTIF($O$23:O40,\"<>\")>$O$47,$M$3=TRUE,$O$50=TRUE),$O$48,IF(Grunddaten!B28=\"\",\"\",Grunddaten!B28)))","v":""},null,null,"Berechnung"]
[null,{"$f":"B22","v":"1. Weitere Finanzierung"},null,0,"=> Kapitaldienst p. a.",null,0,null,null,"Miethöhe für WE 1. EK-Grenze",null,{"$f":"IF(C87>0,TRUE,FALSE)","v":true},{"$f":"IF(L42=FALSE,FALSE,IF(OR(AND(M3=TRUE,L96=TRUE),AND(Berechnung!V27>=0,ISNUMBER(Berechnung!V27),Berechnung!V27<=Daten!D95)),TRUE,FALSE))","v":false},"i",{"$f":"IF(OR(O41=\"\",O41=$O$48),\"\",IF(AND(COUNTIF($O$23:O41,\"<>\")>$O$47,$M$3=TRUE,$O$50=TRUE),$O$48,IF(Grunddaten!B29=\"\",\"\",Grunddaten!B29)))","v":""},null,null,"Startseite",{"$f":"IF(U42=TRUE,$T$31+((V42-1)*$V$30),0)","v":120},true,{"$f":"T42","v":true},{"$f":"IF(U42=FALSE,0,COUNTIF($U$42:U42,TRUE))","v":1}]
[null,{"$f":"B23","v":"2. Weitere Finanzierung"},null,0,"=> Kapitaldienst p. a.",null,0,null,null,"Miethöhe für WE 2. EK-Grenze",null,{"$f":"IF(C88>0,TRUE,FALSE)","v":true},{"$f":"IF(L43=FALSE,FALSE,IF(OR(AND(M3=TRUE,L96=TRUE),AND(Berechnung!V28>=0,ISNUMBER(Berechnung!V28),Berechnung!V28<=Daten!D97)),TRUE,FALSE))","v":false},"i",{"$f":"IF(OR(O42=\"\",O42=$O$48),\"\",IF(AND(COUNTIF($O$23:O42,\"<>\")>$O$47,$M$3=TRUE,$O$50=TRUE),$O$48,IF(Grunddaten!B30=\"\",\"\",Grunddaten!B30)))","v":""},null,null,"Information",{"$f":"IF(U43=TRUE,$T$31+((V43-1)*$V$30),0)","v":150},true,{"$f":"IF(T43=TRUE,TRUE,FALSE)","v":true},{"$f":"IF(U43=FALSE,0,COUNTIF($U$42:U43,TRUE))","v":2}]
[null,"Notwendige Mittel zur Schließung der Gesamtfinanzierung",null,{"$f":"IF(G36=FALSE,0,ROUNDUP(MAX(0,D38-SUM(D39:D43)),E73))","v":0},"bestehender Kapitaldienst p. a.",null,{"$f":"G15","v":0},null,null,{"$f":"IF(L17=TRUE,\"Miethöhe für WE 3. EK-Grenze\",\"Miethöhe für WE nicht belegungsgebunden\")","v":"Miethöhe für WE 3. EK-Grenze"},null,{"$f":"IF(OR(L17=FALSE,AND(L17=TRUE,C89>0)),TRUE,FALSE)","v":true},{"$f":"IF($L$44=FALSE,FALSE,IF(AND($L$17=FALSE,Berechnung!V29>=0,ISNUMBER(Berechnung!V29)),TRUE,IF(OR(AND(M3=TRUE,L96=TRUE),AND(Berechnung!V29>=0,ISNUMBER(Berechnung!V29),Berechnung!V29<=Daten!D99)),TRUE,FALSE)))","v":false},"i",{"$f":"IF(OR(O43=\"\",O43=$O$48),\"\",IF(AND(COUNTIF($O$23:O43,\"<>\")>$O$47,$M$3=TRUE,$O$50=TRUE),$O$48,IF(Grunddaten!B31=\"\",\"\",Grunddaten!B31)))","v":""},null,null,"Versionen",0,true,{"$f":"IF(AND(T44=TRUE,$M$3=TRUE),TRUE,FALSE)","v":false},{"$f":"IF(U44=FALSE,0,COUNTIF($U$42:U44,TRUE))","v":0}]
[null,null,null,null,"Bewirtschaftung",null,{"$f":"G16","v":0},null,null,"Sonstige Einnahmen",null,{"$f":"IF(Berechnung!V31=\"\",FALSE,TRUE)","v":false},{"$f":"IF(L45=FALSE,FALSE,IF(OR(Berechnung!V31=\"\",AND(Berechnung!V31>=0,ISNUMBER(Berechnung!V31))),TRUE,FALSE))","v":false},"",{"$f":"IF(OR(O44=\"\",O44=$O$48),\"\",IF(AND(COUNTIF($O$23:O44,\"<>\")>$O$47,$M$3=TRUE,$O$50=TRUE),$O$48,IF(Grunddaten!B32=\"\",\"\",Grunddaten!B32)))","v":""},null,null,"Grunddaten",0,true,{"$f":"IF(AND(T45=TRUE,$M$3=TRUE),TRUE,FALSE)","v":false},{"$f":"IF(U45=FALSE,0,COUNTIF($U$42:U45,TRUE))","v":0}]
[null,"Freie Finanzierung geförd. Whg.",null,{"$f":"IF(G34=FALSE,0,MAX(-D44,MIN(D44,D38-SUM(D39:D40,ROUNDUP(D47,-2),D41:D43))))","v":0},"=> Kapitaldienst p. a.",null,{"$f":"MAX(0,ROUND(D46*G19/100,2))","v":0},"<= Zielwertsuche",null,"Kosten / Finanzierung",null,null,null,null,{"$f":"IF(OR(O45=\"\",O45=$O$48),\"\",IF(AND(COUNTIF($O$23:O45,\"<>\")>$O$47,$M$3=TRUE,$O$50=TRUE),$O$48,IF(Grunddaten!B33=\"\",\"\",Grunddaten!B33)))","v":""},null,null,"Ausdruck / Export",0,true,{"$f":"IF(AND(T46=TRUE,$M$3=TRUE),TRUE,FALSE)","v":false},{"$f":"IF(U46=FALSE,0,COUNTIF($U$42:U46,TRUE))","v":0}]
[null,"Förderdarlehen",null,{"$f":"IF(OR(G34=FALSE,G20>G19),0,MAX(-D44,MIN(D44,ROUND(D53*D56,2))))","v":0},"=> Kapitaldienst p. a.",null,{"$f":"ROUND((M115+H113)*G20/100,2)","v":0},null,null,{"$f":"IF(OR(M79=TRUE,M80=TRUE,M81=TRUE),\"Baukosten\",\"Grundstückskosten\")","v":"Grundstückskosten"},null,true,{"$f":"IF(L47=FALSE,FALSE,IF(OR(AND(M79=FALSE,M80=FALSE,Berechnung!I40=\"\"),AND(Berechnung!I40>=0,ISNUMBER(Berechnung!I40))),TRUE,FALSE))","v":true},{"$f":"IF(L47<>M47,\"i\",\"\")","v":""},{"$f":"COUNTIF(Grunddaten!$B$11:$B$35,\"<>\")","v":4},null,null,"Hilfe",{"$f":"IF(U47=TRUE,$T$32+((V47-1)*$V$30),0)","v":150},true,{"$f":"T47","v":true},{"$f":"IF(U47=FALSE,0,COUNTIF($U$47:U47,TRUE))","v":1}]
[null,"Summe Finanzierung",null,{"$f":"SUM(D39:D43,D46:D47)","v":0},"EK-Verzinsung",null,{"$f":"G17","v":0},null,null,{"$f":"IF(OR(M79=TRUE,M80=TRUE,M81=TRUE),\"Baunebenkosten\",\"Erwerbskosten\")","v":"Erwerbskosten"},null,true,{"$f":"IF(L48=FALSE,FALSE,IF(OR(Berechnung!I41=\"\",AND(Berechnung!I41>=0,ISNUMBER(Berechnung!I41))),TRUE,FALSE))","v":true},"","Benutzerdefiniert",null,null,"Bereinigung",{"$f":"IF(U48=TRUE,$T$32+((V48-1)*$V$30),0)","v":180},true,{"$f":"T48","v":true},{"$f":"IF(U48=FALSE,0,COUNTIF($U$47:U48,TRUE))","v":2}]
[null,"Maximal zulässige Aufrundung pro m²",null,{"$f":"IF(OR(D53=\"\",D53=0),0,99.99/D53)","v":0},"Summe Ausgaben p. a.",null,{"$f":"SUM(G39:G48)","v":0},null,null,{"$f":"IF(AND(M79=FALSE,M80=FALSE,M81=FALSE),\"Baukosten\",\"-\")","v":"Baukosten"},null,{"$f":"IF(AND(M79=FALSE,M80=FALSE,M81=FALSE),TRUE,FALSE)","v":true},{"$f":"IF(L49=FALSE,FALSE,IF(OR(AND(OR(M79=TRUE,M80=TRUE),Berechnung!I42=\"\"),AND(Berechnung!I42>=0,ISNUMBER(Berechnung!I42))),TRUE,FALSE))","v":false},"i",{"$f":"IF(Berechnung!G67=\"\",\"-\",Berechnung!G67)","v":"Aktuell gültig"},null,null,"Backups",0,true,{"$f":"IF(AND(T49=TRUE,OR($M$3=TRUE)),TRUE,FALSE)","v":false},{"$f":"IF(U49=FALSE,0,COUNTIF($U$47:U49,TRUE))","v":0}]
[null,"Puffer Förderdarlehen pro m²",null,{"$f":"IF(OR(D56=\"\",D56=0,G54=FALSE),0,ROUND(G56-D56,2))","v":0},"Über- / Unterdeckung",null,{"$f":"ROUND(G38-G49,2)","v":0},null,null,{"$f":"IF(AND(M79=FALSE,M80=FALSE,M81=FALSE),\"Baunebenkosten\",\"-\")","v":"Baunebenkosten"},null,{"$f":"IF(AND(M79=FALSE,M80=FALSE,M81=FALSE),TRUE,FALSE)","v":true},{"$f":"IF(L50=FALSE,FALSE,IF(OR(Berechnung!I43=\"\",AND(Berechnung!I43>=0,ISNUMBER(Berechnung!I43))),TRUE,FALSE))","v":true},"",{"$f":"IF(COUNTIF(Grunddaten!T86:T91,TRUE)>0,TRUE,FALSE)","v":false},null,null,"Neuberechnung",0,true,{"$f":"IF(AND(T50=TRUE,OR($M$3=TRUE)),TRUE,FALSE)","v":false},{"$f":"IF(U50=FALSE,0,COUNTIF($U$47:U50,TRUE))","v":0}]
[null,"Rundungsdifferenz Förderdarlehen",null,{"$f":"IF(OR(D53=0,D53=\"\"),0,ROUNDUP(D47,-2)/D53-D56)","v":0},"Freie Finanzierung pro m²",null,{"$f":"IF(OR(D46<0,D53=0,D53=\"\"),0,D46/D53)","v":0},null,null,"Eigenkapital",null,{"$f":"IF(Berechnung!V40=\"\",FALSE,TRUE)","v":true},{"$f":"IF(AND(Berechnung!V40>=0,ISNUMBER(Berechnung!V40)),TRUE,FALSE)","v":true},""]
[null,"Werte für Zielwertermittlung (alle doppelt umrahmten Felder - auch die oberhalb)",null,null,null,null,null,null,null,"Selbsthilfe",null,{"$f":"IF(Berechnung!V41=\"\",FALSE,TRUE)","v":false},{"$f":"IF(L52=FALSE,FALSE,IF(AND(Berechnung!V41>=0,ISNUMBER(Berechnung!V41)),TRUE,FALSE))","v":false},""]
[null,"Wohnfläche",null,{"$f":"G8","v":0},null,"Prüfung max. Überschuss",{"$f":"IF(ROUNDUP($G$50,0)<=ROUNDUP($D$55+IF(OR($M$79=TRUE,$M$80=TRUE),100,10),0),TRUE,FALSE)","v":true},null,null,"Wert des Baugrundstücks",null,{"$f":"IF(Berechnung!V42=\"\",FALSE,TRUE)","v":false},{"$f":"IF(L53=FALSE,FALSE,IF(AND(Berechnung!V42>=0,ISNUMBER(Berechnung!V42)),TRUE,FALSE))","v":false},"","Höchstbeträge"]
[null,"Max. Förderung pro m²",null,{"$f":"$G$9-IF(AND($L$16=TRUE,$R$90=TRUE,$U$5=TRUE),$R$85,IF(AND($L$17=TRUE,$G$72=TRUE,Grunddaten!$H$40=TRUE),G74,0))","v":3000},null,"Prüfung Länge Zielwert (< 16)",{"$f":"IF(LEN(TRUNC($D$56))>15,FALSE,TRUE)","v":true},null,null,"Wert vorhandener Gebäudeteile",null,{"$f":"IF(OR(AND(M77=FALSE,M78=FALSE),Berechnung!V43=\"\"),FALSE,TRUE)","v":false},{"$f":"IF(L54=FALSE,FALSE,IF(AND(Berechnung!V43>=0,ISNUMBER(Berechnung!V43)),TRUE,FALSE))","v":false},"","Ohne Zuschuss",null,null,"Grunddaten"]
[null,"Max. Überschuss",null,{"$f":"IF(OR(M79=TRUE,M80=TRUE),G24,IF(G31=TRUE,G50,G25))","v":120},null,"Prüfung negative Förderung",{"$f":"IF(D56<1,FALSE,TRUE)","v":false},null,null,"Eigenleistungen (Gesamt)",null,true,{"$f":"IF(OR(L55=FALSE,Berechnung!I44=0,AND(D84>0,Berechnung!I44=0)),FALSE,IF(OR(Berechnung!I44=0,AND(D84>0,Berechnung!V44=0),Berechnung!I44=\"\"),FALSE,IF(OR(AND(M3=TRUE,L86=TRUE),ROUND(Berechnung!V44*100/Berechnung!I44,2)>=D84),TRUE,FALSE)))","v":false},"i",{"$f":"IF(COUNTIF($L$12:$L$19,TRUE)<>1,MAX($P$12:$P$19),INDEX($P$12:$P$19,MATCH(TRUE,$L$12:$L$19,0),1))","v":3000},null,null,"Startseite",{"$f":"IF(U55=TRUE,$U$31+((V55-1)*$V$30),0)","v":100},true,{"$f":"T55","v":true},{"$f":"IF(U55=FALSE,0,COUNTIF($U$55:U55,TRUE))","v":1}]
[null,"Förderung pro m² (veränderbar)",null,0," <= Zielwertsuche",null,{"$f":"IF(D53=0,0,MIN(D54,ROUND(D44/D53,2)))","v":0},null,null,"Weitere Zuschüsse",null,{"$f":"IF(AND(Berechnung!$V$48=\"\",Berechnung!$V$49=\"\"),FALSE,TRUE)","v":false},{"$f":"IF(L56=FALSE,FALSE,IF(OR(AND(Berechnung!$V$48>=0,ISNUMBER(Berechnung!$V$48)),AND(Berechnung!$V$49>=0,ISNUMBER(Berechnung!$V$49))),TRUE,FALSE))","v":false},"","Mit Zuschuss",null,null,"Information",{"$f":"IF(U56=TRUE,$U$31+((V56-1)*$V$30),0)","v":130},true,{"$f":"T56","v":true},{"$f":"IF(U56=FALSE,0,COUNTIF($U$55:U56,TRUE))","v":2}]
[null,null,null,null,null,null,null,null,null,"Darlehen / laufende Aufwendungen",null,null,null,null,{"$f":"IF(COUNTIF($L$12:$L$19,TRUE)<>1,MAX($Q$12:$Q$19),INDEX($Q$12:$Q$19,MATCH(TRUE,$L$12:$L$19,0),1))","v":3000},null,null,"Versionen",160,true,true,{"$f":"IF(U57=FALSE,0,COUNTIF($U$55:U57,TRUE))","v":3}]
[null,null,null,null,null,null,null,null,null,"Kapitaldienst aus bereits bestehenden Finanzierungen",null,{"$f":"IF(Berechnung!V58<>\"\",TRUE,FALSE)","v":false},{"$f":"IF(L58=FALSE,FALSE,IF(ISNUMBER(Berechnung!V58),TRUE,FALSE))","v":false},{"$f":"IF(L58<>M58,\"i\",\"\")","v":""},"Mod / Inst",null,null,"Berechnung",{"$f":"IF(U58=TRUE,$U$31+((V58-1)*$V$30),0)","v":190},true,true,{"$f":"IF(U58=FALSE,0,COUNTIF($U$55:U58,TRUE))","v":4}]
[null,"Nebenrechnung bei Kürzung Förderdarlehen Mod / Inst",null,null,null,null,null,null,null,"Tilgungssatz Förderdarlehen",null,true,{"$f":"IF(AND(ISNUMBER(Berechnung!S59),Berechnung!S59>=Grunddaten!$H$58),TRUE,FALSE)","v":true},"",{"$f":"IF(COUNTIF($L$12:$L$19,TRUE)<>1,MAX($R$12:$R$19),INDEX($R$12:$R$19,MATCH(TRUE,$L$12:$L$19,0),1))","v":2000},null,null,"Datenpflege",0,true,{"$f":"IF(AND(T59=TRUE,$D$3=TRUE,Grunddaten!$G$1=FALSE),TRUE,FALSE)","v":false},{"$f":"IF(U59=FALSE,0,COUNTIF($U$55:U59,TRUE))","v":0}]
[null,"Anzeige Erläuterungen wegen Kürzung BD bei ModInst",null,null,null,null,{"$f":"IF(AND($M$79=FALSE,$M$80=FALSE),FALSE,IF(OR(AND(G30=FALSE,G32=FALSE),G34=FALSE,AND(D56=0,G50>D55),D46<=0),FALSE,IF(ROUND(D56,2)<ROUND(B64,2),TRUE,FALSE)))","v":false},null,null,"Zinssatz Sonstige vorgesehene Finanzierung",null,{"$f":"IF(D41>0,TRUE,FALSE)","v":false},{"$f":"IF(L60=FALSE,FALSE,IF(AND(Berechnung!Q62>=0,ISNUMBER(Berechnung!Q62)),TRUE,FALSE))","v":false},"","Zuschuss Bindung",null,null,"Sicherung",{"$f":"IF(U60=TRUE,$U$32+((V60-1)*$V$30),0)","v":0},true,{"$f":"IF(AND(T60=TRUE,$D$3=TRUE,Grunddaten!$G$1=TRUE),TRUE,FALSE)","v":false},{"$f":"IF(U60=FALSE,0,COUNTIF($U$60:U60,TRUE))","v":0}]
[null,"Maximales Förderdarlehen (Maßnahme)",null,{"$f":"IF(G20>G19,0,IF(D53*D54>D44,D44,D53*D54))","v":0},"=> Kapitaldienst",null,{"$f":"ROUND(D61*$G$20/100,2)","v":0},null,null,"Tilgungssatz Sonstige vorgesehene Finanzierung",null,{"$f":"L60","v":false},{"$f":"IF(L61=FALSE,FALSE,IF(AND(Berechnung!S62>=0,ISNUMBER(Berechnung!S62)),TRUE,FALSE))","v":false},"",{"$f":"IF(COUNTIF($L$12:$L$19,TRUE)<>1,MAX($Y$12:$Y$19),INDEX($Y$12:$Y$19,MATCH(TRUE,$L$12:$L$19,0),1))","v":200}]
[null,"Maximales Förderdarlehen (Aufzug)",null,{"$f":"IF($H$77=FALSE,0,$H$113)","v":0},"=> Kapitaldienst",null,{"$f":"ROUND(D62*$G$20/100,2)","v":0},null,null,"Zinssatz Restfinanzierung",null,true,{"$f":"IF(AND(Berechnung!$Q$63>=0,ISNUMBER(Berechnung!$Q$63),Berechnung!$D$65=\"\"),TRUE,FALSE)","v":false},"i","Bindungsquote I"]
[null,"Notwendiges Fremddarlehen",null,{"$f":"D38-D39-D40-D61","v":0},"=> Kapitaldienst",null,{"$f":"ROUND(D63*$G$19/100,2)","v":0},null,null,"Tilgungssatz Restfinanzierung",null,true,{"$f":"IF(AND(Berechnung!$S$63>=0,ISNUMBER(Berechnung!$S$63),Berechnung!$D$65=\"\"),TRUE,FALSE)","v":false},"i",{"$f":"IF(COUNTIF($L$12:$L$19,TRUE)<>1,MAX($AA$12:$AA$19),INDEX($AA$12:$AA$19,MATCH(TRUE,$L$12:$L$19,0),1))","v":100},null,null,"Programmversionen"]
[null,{"$f":"IF(OR(G8=\"\",G8=0),0,D61/G8)","v":0},"pro m²",null,null,"Über- / Unterdeckung bei voller Förderung",{"$f":"G38-SUM(G44,G48,G61:G63,G45)","v":0},null,null,"Bewirtschaftungskosten",null,null,null,null,"Bindungsquote II",null,null,"Startseite",{"$f":"IF(U64=TRUE,$V$31+((V64-1)*$V$30),0)","v":100},true,{"$f":"T64","v":true},{"$f":"IF(U64=FALSE,0,COUNTIF($U$64:U64,TRUE))","v":1}]
[null,null,null,null,null,null,null,null,null,"Aufzug vorhanden",null,{"$f":"IF(AND(OR($L$16=TRUE,$L$17=TRUE),OR(Berechnung!$K$21=\"\",Berechnung!$K$21=\"Ja\",$M$81=TRUE)),FALSE,TRUE)","v":false},{"$f":"IF(L65=FALSE,FALSE,IF(OR(LEFT(Berechnung!G70,1)=\"J\",LEFT(Berechnung!G70,1)=\"N\"),TRUE,FALSE))","v":false},{"$f":"IF(L65<>M65,\"i\",\"\")","v":""},{"$f":"IF(COUNTIF($L$12:$L$19,TRUE)<>1,MAX($AB$12:$AB$19),INDEX($AB$12:$AB$19,MATCH(TRUE,$L$12:$L$19,0),1))","v":100},null,null,"Information",{"$f":"IF(U65=TRUE,$V$31+((V65-1)*$V$30),0)","v":130},true,{"$f":"T65","v":true},{"$f":"IF(U65=FALSE,0,COUNTIF($U$64:U65,TRUE))","v":2}]
[null,null,null,null,null,null,null,null,null,"Anzahl Stellplätze",null,true,{"$f":"IF(L66=FALSE,FALSE,IF(AND(OR(Berechnung!V31=\"\",Berechnung!V31=0),Berechnung!G68=\"\"),TRUE,IF(AND(Berechnung!G68<>\"\",ISNUMBER(Berechnung!G68),Berechnung!G68>=0),TRUE,FALSE)))","v":true},{"$f":"IF(L66<>M66,\"i\",\"\")","v":""},"Bindungsquote III",null,null,"Grunddaten",160,true,true,{"$f":"IF(U66=FALSE,0,COUNTIF($U$64:U66,TRUE))","v":3}]
[null,"Werte für Berechnung",null,null,null,null,"Zuschuss Bindung",null,null,"Anzahl Garagen",null,true,{"$f":"IF(L67=FALSE,FALSE,IF(AND(OR(Berechnung!V31=\"\",Berechnung!V31=0),Berechnung!G69=\"\"),TRUE,IF(AND(Berechnung!G69<>\"\",ISNUMBER(Berechnung!G69),Berechnung!G69>=0),TRUE,FALSE)))","v":true},{"$f":"IF(L67<>M67,\"i\",\"\")","v":""},{"$f":"IF(COUNTIF($L$12:$L$19,TRUE)<>1,MAX($AC$12:$AC$19),INDEX($AC$12:$AC$19,MATCH(TRUE,$L$12:$L$19,0),1))","v":100},null,null,"Berechnung",190,true,true,{"$f":"IF(U67=FALSE,0,COUNTIF($U$64:U67,TRUE))","v":4}]
[null,"Förderhöhe abhängig vom Vorhaben",null,null,null,null,"Maximaler Zuschuss",null,null,"Objektwirtschaftlichkeit (Alt)",null,null,null,{"$f":"IF(L69<>M69,\"i\",\"\")","v":""},"Einkommensgrenzen",null,null,"Datenpflege",0,true,{"$f":"IF(AND(T68=TRUE,D3=TRUE),TRUE,FALSE)","v":false},{"$f":"IF(U68=FALSE,0,COUNTIF($U$64:U68,TRUE))","v":0}]
[null,"Max. Höhe Förderdarlehen",null,{"$f":"D72*D53","v":0},"Sicherheitspuffer für Überschuss",null,{"$f":"Grunddaten!H47","v":200},null,null,"Nichtverfügbarkeit Deckungsbeitrag",null,{"$f":"IF(AND($M$3=TRUE,OR($M$79=TRUE,$M$80=TRUE)),TRUE,FALSE)","v":false},{"$f":"IF(L69=FALSE,FALSE,IF(Berechnung!U83<>\"\",TRUE,FALSE))","v":false},{"$f":"IF(L70<>M70,\"i\",\"\")","v":""},{"$f":"IF(COUNTIF($L$12:$L$19,TRUE)<>1,MAX($AD$12:$AD$19),INDEX($AD$12:$AD$19,MATCH(TRUE,$L$12:$L$19,0),1))","v":45},null,null,"Sicherung",{"$f":"IF(U69=TRUE,$V$32+((V69-1)*$V$30),0)","v":0},true,{"$f":"IF(AND(T69=TRUE,D3=TRUE,Programmversionen!$D$1=FALSE),TRUE,FALSE)","v":false},{"$f":"IF(U69=FALSE,0,COUNTIF($U$69:U69,TRUE))","v":0}]
[null,null,null,null,null,null,{"$f":"IF(OR(AND(M76=FALSE,M78=FALSE,M80=FALSE),L29<>M29),0,G69*D53)","v":0},null,null,"Objektwirtschaftlichkeit vor Maßnahmebeginn",null,{"$f":"IF(AND(OR($M$79=TRUE,$M$80=TRUE),OR($M$3=FALSE,Berechnung!U83=\"Nein\",Berechnung!U83=\"\")),TRUE,FALSE)","v":false},{"$f":"IF(L70=FALSE,FALSE,IF(AND(ISNUMBER(Berechnung!V84),Berechnung!V84>=0),TRUE,FALSE))","v":false},{"$f":"IF(L70<>M70,\"i\",\"\")","v":""},{"$f":"IF(COUNTIF($L$12:$L$19,TRUE)<>1,MAX($AE$12:$AE$19),INDEX($AE$12:$AE$19,MATCH(TRUE,$L$12:$L$19,0),1))","v":30}]
[null,null,null,null,{"$f":"IF(OR(M79=TRUE,M80=TRUE),100,10)","v":10},null,"Zulässiger Zuschuss",null,null,"Ergebnis / Vergleich",null,{"$f":"COUNTIF(L24:L70,TRUE)","v":27},{"$f":"COUNTIF(M24:M70,TRUE)","v":13},{"$f":"IF(L71<>M71,\"i\",\"\")","v":"i"},{"$f":"IF(COUNTIF($L$12:$L$19,TRUE)<>1,MAX($AF$12:$AF$19),INDEX($AF$12:$AF$19,MATCH(TRUE,$L$12:$L$19,0),1))","v":25}]
[null,"Max. Gesamtförderung pro m² Wohnfläche",null,{"$f":"IF(OR(M75=TRUE,M77=TRUE),Grunddaten!H41,IF(OR(M76=TRUE,M78=TRUE),Grunddaten!H42,IF(OR(M79=TRUE,M80=TRUE),Grunddaten!H43,0)))","v":3000},"(Auf)Rundung",null,{"$f":"IF(AND(OR($L$16=TRUE,$L$17=TRUE),OR(AND($M$75=TRUE,$O$75=TRUE),AND($M$77=TRUE,$O$77=TRUE),AND($M$79=TRUE,$O$79=TRUE),AND($M$81=TRUE,$O$81=TRUE))),FALSE,IF(G50<=(D55+E71),TRUE,FALSE))","v":false}]
[null,"Max. Höhe Zuschuss",null,{"$f":"$G$70","v":0},{"$f":"IF(OR(M79=TRUE,M80=TRUE),2,-1)","v":-1},null,{"$f":"IF(OR(AND(M76=FALSE,M78=FALSE,M80=FALSE),L29<>M29),0,G74*D53)","v":0}]
[null,"Konditionen",null,null,null,null,{"$f":"IF(AND(OR($L$16=TRUE,$L$17=TRUE),$M$81=TRUE),0,MAX(0,MIN(G69,IF(OR(G19=0,D53=0),0,G69-(((G50-D55-E71)/G19*100)/D53)))))","v":0},null,null,"Art der Maßnahme (Verknüpfungen sind unter \"LinkedCell\" in VBA deklariert)",null,null,null,"Bindungsquote","Verfügbarkeit",null,"Standards \"Klimabaustein\"","Zulässig?","#"]
[null,"Zinssatz",null,{"$f":"Berechnung!Q59","v":0.5},{"$f":"IF(E76=TRUE,Grunddaten!$H$59-D75,3)","v":3},null,null,null,null,"Neubau ohne Zuschuss",null,1,{"$f":"IF($M$83=L75,TRUE,FALSE)","v":false},{"$f":"Grunddaten!H65","v":100},true,null,"Nicht zutreffend",false,0]
[null,"Tilgungssatz",null,{"$f":"Berechnung!S59","v":2},{"$f":"IF(E85>1,TRUE,FALSE)","v":false},null,"Berechnung Förderung Aufzug",null,null,"Neubau mit Zuschuss",null,2,false,{"$f":"Grunddaten!H65","v":100},true,null,"Effizienzhaus 40+",{"$f":"IF(OR(L17=TRUE,M81=TRUE,M83=6),FALSE,TRUE)","v":false},1]
[null,"Bewirtschaftungskosten",null,null,null,null,"Berechnung Förderung?",{"$f":"IF(AND(OR($L$16=TRUE,$L$17=TRUE),OR($M$81=TRUE,Berechnung!$K$21=\"Ja\")),TRUE,FALSE)","v":false},null,"Umnutzung / Wiederherstellung ohne Zuschuss",null,3,true,{"$f":"Grunddaten!H65","v":100},true,null,"Effizienzhaus 40",{"$f":"R76","v":false},2]
[null,"Verwaltungskosten",null,"-",{"$f":"IF(OR(Berechnung!V35=\"\",Berechnung!V35=0),0,Berechnung!V71/Berechnung!V35*100)","v":0},null,"Gesamtkosten Maßnahme",{"$f":"IF($H$77=FALSE,0,MAX(0,Berechnung!I44))","v":0},null,"Umnutzung / Wiederherstellung mit Zuschuss",null,4,false,{"$f":"Grunddaten!H65","v":100},true,null,"Effizienzhaus 55",{"$f":"IF(AND($M$83>0,$M$83<=5),TRUE,FALSE)","v":true},3]
[null,null,null,null,null,null,"Nicht förderfähige Kosten",{"$f":"IF($H$77=FALSE,0,H78-H81)","v":0},null,"ModInst ohne Zuschuss",null,5,false,{"$f":"IF(LEFT(Berechnung!$K$17,1)=\"j\",Grunddaten!H66,Grunddaten!H67)","v":100},true,null,"Effizienzhaus 70",{"$f":"IF(AND($M$83>0,$M$83<5,$R$92=FALSE),FALSE,IF(OR(AND($R$92=TRUE,$S$104=5),$M$83=5),TRUE,FALSE))","v":false},4]
[null,"Instandhaltungskosten",null,{"$f":"IF(OR(LEFT(Berechnung!$K$21,1)=\"J\",LEFT(Berechnung!$G$70,1)=\"J\",AND(OR($L$16=TRUE,$L$17=TRUE),$M$81=TRUE)),Grunddaten!$P$88+Grunddaten!$P$89,Grunddaten!$P$88)","v":10.61},null,null,"Höchstförderung Aufzug / WE",{"$f":"IF($H$77=FALSE,0,SUM(Grunddaten!$H$50:$H$51))","v":0},null,"ModInst mit Zuschuss",null,7,{"$f":"IF($M$83=L80,TRUE,FALSE)","v":false},{"$f":"N79","v":100},{"$f":"IF($L$17=TRUE,TRUE,FALSE)","v":true},null,"Effizienzhaus 85",{"$f":"IF(AND($M$83>0,$M$83<5,$R$92=FALSE),FALSE,IF(OR(AND($R$92=TRUE,$S$104=5),$M$83=5),TRUE,FALSE))","v":false},5]
[null,null,null,{"$f":"Grunddaten!$P$88","v":10.61},null,null,"Max. Gesamtkosten Aufzüge",{"$f":"IF($H$77=FALSE,0,IF(AND($L$16=FALSE,$L$17=FALSE),0,IF($M$81=FALSE,H82*H87,Berechnung!I40+Berechnung!I41)))","v":0},null,"Solo-Förderung Aufzugsanbau",null,6,{"$f":"IF($M$83=L81,TRUE,FALSE)","v":false},{"$f":"Grunddaten!H68","v":100},{"$f":"IF(OR(L16=TRUE,L17=TRUE),TRUE,FALSE)","v":true},null,"Effizienzhaus 100",false,6]
[null,"MAW",null,"-",null,null,"Kosten Aufzug pro WE",{"$f":"IF($H$77=FALSE,0,IF(AND($L$16=FALSE,$L$17=FALSE),0,IF($M$81=FALSE,H80/(1-MAX(0,Grunddaten!$H$63,D84,Berechnung!$T$44)%),IF(OR(Berechnung!$J$34=\"\",Berechnung!$J$34=0),0,$H$81/Berechnung!$J$34))))","v":0},null,null,null,null,null,null,false,null,"Effizienzhaus 115",false,7]
[null,"Mindesteigenleistung abhängig vom Vorhaben",null,null,null,null,"Eigenkapitalanteil pro WE",{"$f":"IF($H$77=FALSE,0,IF(OR(H87=\"\",H87=0),0,(H81*MAX(0,Grunddaten!$H$63%,D84%)/H87)))","v":0},null,"Auswahl von \"Berechnungen\"",null,1,3,{"$f":"IF(OR(M83=0,M83=\"\"),MAX(Grunddaten!$R$65:$R$70),INDEX(N75:N82,M83,1))","v":100},"-"]
[null,"Mindesteigenleistung",null,{"$f":"IF(OR(M75=TRUE,M76=TRUE,M77=TRUE,M78=TRUE),Grunddaten!H61,IF(OR(M79=TRUE,M80=TRUE),Grunddaten!H62,IF(M81=TRUE,Grunddaten!H63,0)))","v":20},{"$f":"IF(OR($G$10=0,$G$11=0),0,$G$11/$G$10*100)","v":0},null,"Eigenkapitalanteil (Gesamt)",{"$f":"IF($H$77=FALSE,0,H83*H87)","v":0}]
[null,null,null,null,{"$f":"MAX(0,E84-D84)","v":0},null,"Förderfähige Kosten / WE",{"$f":"IF($H$77=FALSE,0,MIN(H80,MIN((H80/(1-D84%)),MAX(0,H82-H83))))","v":0},null,null,null,null,null,null,null,null,"Tat. Förderbetrag pro m² / Wfl.:",{"$f":"R91","v":0},"-"]
[null,"Bindungsquoten abhängig vom Vorhaben",null,null,null,null,"Nichtförderf. Kosten / WE",{"$f":"IF($H$77=FALSE,0,MAX(0,MAX(0,H82-H83)-H85))","v":0},null,"Abweichender Anteil der Eigenleistungen:",null,false,"-",null,null,null,"Nutzung Klimabaustein?",true,"-"]
[null,"Mindestbindungsquote gesamt",{"$f":"IF($L$17=TRUE,MAX(Grunddaten!$H$69,Berechnung!$O$21),Grunddaten!$H$69)","v":45},{"$f":"N83","v":100},{"$f":"IF(E91>=D91,TRUE,FALSE)","v":true},null,"Anzahl WE mit Aufzug",{"$f":"IF($H$77=FALSE,0,Berechnung!J34)","v":0},null,null,null,{"$f":"IF(OR(L55=FALSE,Berechnung!V44=\"\",Berechnung!I44=\"\"),FALSE,IF(OR(Berechnung!I44=\"\",AND(Daten!D84>0,Berechnung!I44=0)),FALSE,IF(ROUND(SUM(Berechnung!V40:X43)*100/Berechnung!I44,2)>=D84,TRUE,FALSE)))","v":false},{"$f":"M55","v":false},null,null,null,"Zuschuss?",true,"-"]
[null,null,{"$f":"IF($L$17=TRUE,Berechnung!$S$21,Grunddaten!$H$70)","v":30},null,{"$f":"IF((E91-D91+E92)>=D92,TRUE,FALSE)","v":true},null,"barrierefreie WE mit Aufzug",{"$f":"IF($H$77=FALSE,0,Berechnung!J35)","v":0},null,null,null,{"$f":"D84","v":20},{"$f":"IF(OR(Berechnung!I44=\"\",Berechnung!I44=0),0,ROUND(SUM(Berechnung!V40:X43)*100/Berechnung!I44,2))","v":0},null,null,null,"Darlehen?",false,"-"]
[null,null,{"$f":"IF($L$17=TRUE,100-C87-C88,0)","v":25},null,{"$f":"IF(((E91-D91)+(E92-D92)+E93)>=D93,TRUE,FALSE)","v":true},null,"Wohnfläche mit Aufzug",{"$f":"IF($H$77=FALSE,0,MIN($G$8,O110*H87))","v":0},null,{"$f":"IF(AND(L86=TRUE,L87<>M87),CHAR(10)&\"- Gesamtanteil der Eigenleistungen\",\"\")","v":""},null,null,null,null,null,null,{"$f":"IF(Berechnung!K22=\"\",\"-\",Berechnung!K22)","v":"-"},null,"-"]
[null,"entspricht gesamt",{"$f":"IF(OR($M$27=FALSE,$M$28=FALSE,$M$29=FALSE),0,ROUNDUP(Berechnung!$K$18*D87/100,0))","v":0},{"$f":"IF(OR($M$27=FALSE,$M$28=FALSE,$M$29=FALSE),0,IF(C90=Berechnung!$K$18,Berechnung!$K$19,ROUND(Berechnung!$K$19*D87/100,2)))","v":0},{"$f":"E91+E92","v":0},null,"Ø Fläche / WE mit Aufzug",{"$f":"IF(OR($H$77=FALSE,H87=0),0,H89/H87)","v":0},null,null,null,null,null,null,null,null,"Erfüllung Voraussetzungen:",{"$f":"IF($M$3=FALSE,IF($Q$89=$R$94,TRUE,FALSE),IF(OR(AND($R$92=TRUE,$S$104=0),$R$86=FALSE,$Q$89=\"\",$Q$89=\"-\",Grunddaten!$H$55=0,ISERROR(MATCH($Q$89,$Q$75:$Q$82,0))),FALSE,INDEX($R$75:$R$82,MATCH($Q$89,$Q$75:$Q$82,0),1)))","v":false},"-"]
[null,"davon Mindestanzahl 1",{"$f":"IF(Berechnung!$AF$130=FALSE,0,IF(OR($M$27=FALSE,$M$28=FALSE,$M$29=FALSE),0,IF(C90=3,2,ROUNDUP(C90*C87/100,0))))","v":0},{"$f":"IF(OR($M$27=FALSE,$M$28=FALSE,$M$29=FALSE),0,IF(C87=100,D90,IF(C90=3,ROUND(D90*2/3,2),IF(C90=1,D90,ROUND(D90*Grunddaten!H69/100,2)))))","v":0},{"$f":"Berechnung!L27","v":0},null,"Berechnung Zuschuss",null,null,"Abweichende Belegungsbindung:",null,false,"-",null,null,null,"Max. Förderbetrag pro m² / Wfl.:",{"$f":"IF(OR(R90=FALSE,Grunddaten!H55=0),0,Grunddaten!H55)","v":0},"-"]
[null,"davon Mindestanzahl 2",{"$f":"IF(Berechnung!$AF$130=FALSE,0,IF(OR($M$27=FALSE,$M$28=FALSE,$M$29=FALSE),0,IF($L$17=TRUE,IF($C$89=0,$C$90-$C$91,ROUNDUP(C90*C88/100,0)),C90-C91)))","v":0},{"$f":"IF(OR($M$27=FALSE,$M$28=FALSE,$M$29=FALSE),0,IF($L$17=TRUE,IF(C88=0,0,IF(C89=0,D90-D91,D90*C88/100)),D90-D91))","v":0},{"$f":"Berechnung!L28","v":0},null,"Barrierefrei erreichbare WE",null,null,"WE / m² für 1. EK-Grenze",null,{"$f":"IF(L28<>M28,TRUE,IF(AND(Berechnung!J27>0,ISNUMBER(Berechnung!J27),Berechnung!J27>=C91,Berechnung!L27>0,ISNUMBER(Berechnung!L27),Berechnung!L27>=D91),TRUE,FALSE))","v":true},{"$f":"M36","v":true},null,null,null,"Maßnahmeprüfung?",{"$f":"IF(AND(OR(M83=3,M83=4),Q89<>Q75),TRUE,FALSE)","v":true},"-"]
[null,{"$f":"IF(L17=TRUE,\"davon Mindestanzahl 3\",\"zusätzlich Anzahl freie WE\")","v":"davon Mindestanzahl 3"},{"$f":"IF(Berechnung!$AF$130=FALSE,0,IF(OR($M$27=FALSE,$M$28=FALSE,$M$29=FALSE),0,MAX(0,IF($L$17=TRUE,C90-C91-C92,Berechnung!$K$18-C90))))","v":0},{"$f":"IF(OR($M$27=FALSE,$M$28=FALSE,$M$29=FALSE),0,IF($L$17=TRUE,D90-D91-D92,Berechnung!$K$19-D90))","v":0},{"$f":"Berechnung!L29","v":0},null,"Förderung pro WE",{"$f":"IF($H$77=FALSE,0,MIN(H85,Grunddaten!H52))","v":0},null,"WE / m² für 2. EK-Grenze",null,{"$f":"IF(Berechnung!J27=\"\",TRUE,IF(AND(Berechnung!J28=\"\",Berechnung!J27>=C90),TRUE,IF(AND(Berechnung!J28>=0,ISNUMBER(Berechnung!J28),OR(Berechnung!J28>=C92,SUM(Berechnung!J27:J28)>=C90),Berechnung!L28>=0,ISNUMBER(Berechnung!L28),OR(Berechnung!L28>=D92,SUM(Berechnung!L27:L28)>=D90)),TRUE,FALSE)))","v":true},{"$f":"M37","v":true},null,null,null,"Indirekter Bezug:",{"$f":"IF(M3=TRUE,\"'Daten'!\"&ADDRESS(ROW(Q75),COLUMN(Q75))&\":\"&ADDRESS(ROW(Q82),COLUMN(Q82)),\"'Daten'!\"&ADDRESS(ROW(R94),COLUMN(R94))&\":\"&ADDRESS(ROW(R95),COLUMN(R95)))","v":"'Daten'!$R$94:$R$95"}]
[null,"Höchstmieten abhängig vom Vorhaben",null,null,null,null,"Anzahl WE",{"$f":"H88","v":0},null,"WE / m² für 3. EK-Grenze",null,null,null,null,null,null,"Maßnahmearten:","Ja","-"]
[null,"Max. Miete 1. EK-Grenze",null,{"$f":"IF(LEFT(Berechnung!$K$17,1)=\"J\",Grunddaten!H74,Grunddaten!H77)","v":6},"-",null,"Zuschuss Teil 1:",{"$f":"H93*H94","v":0},null,{"$f":"IF(AND(L91=TRUE,OR(L92<>M92,L93<>M93)),CHAR(10)&\"- Quoten für die Belegungsbindung der Wohneinheiten\",\"\")","v":""},null,null,null,null,null,null,null,"Nein","-"]
[null,null,null,null,"-",null,"Sonstige erreichbare WE",null,null,"Abweichende Mietansätze:",null,false,"-",null,null,null,"Wiederherstellung Wohngebäude",null,{"$f":"S80","v":5}]
[null,"Max. Miete 2. EK-Grenze",null,{"$f":"IF(LEFT(Berechnung!$K$17,1)=\"J\",Grunddaten!H75,Grunddaten!H78)","v":8},"-",null,"Förderung pro WE",{"$f":"IF($H$77=FALSE,0,MIN(H85,Grunddaten!H50))","v":0},null,"Miethöhe für WE 1. EK-Grenze",null,{"$f":"IF(L42=FALSE,FALSE,IF(AND(Berechnung!V27>=0,ISNUMBER(Berechnung!V27),Berechnung!V27<=D95),TRUE,FALSE))","v":false},{"$f":"M42","v":false},null,null,null,"Erweiterung Wohngebäude",null,{"$f":"S80","v":5}]
[null,null,null,null,"-",null,"Anzahl WE",{"$f":"MAX(0,H87-H88)","v":0},null,"Miethöhe für WE 2. EK-Grenze",null,{"$f":"IF(L43=FALSE,FALSE,IF(AND(Berechnung!V28>=0,ISNUMBER(Berechnung!V28),Berechnung!V28<=D97),TRUE,FALSE))","v":false},{"$f":"M43","v":false},null,null,null,"Anpassung Wohnbedürfnisse",null,{"$f":"S80","v":5}]
[null,"Max. Miete 3. EK-Grenze",null,{"$f":"IF(LEFT(Berechnung!$K$17,1)=\"J\",Grunddaten!H76,Grunddaten!H79)","v":10},"-",null,"Zuschuss Teil 2:",{"$f":"H97*H98","v":0},null,"Miethöhe für WE 3. EK-Grenze",null,{"$f":"IF($L$17=FALSE,TRUE,IF(L44=FALSE,FALSE,IF(AND(Berechnung!V29>=0,ISNUMBER(Berechnung!V29),Berechnung!V29<=D99),TRUE,FALSE)))","v":false},{"$f":"M44","v":false},null,null,null,"Nutzungsänderung unbeheizt (Standard)",null,{"$f":"S78","v":3}]
[null,null,null,null,"-",null,"Summe alle WE",null,null,{"$f":"IF(AND(L96=TRUE,OR(L97<>M97,L98<>M98)),CHAR(10)&\"- Miethöhen für die belegungsgebundenen Wohneinheiten\",\"\")","v":""},null,null,null,null,null,null,"Nutzungsänderung unbeheizt (Denkmal)",null,{"$f":"S80","v":5}]
[null,"Aufsplittung EL nach MEL für EK-Verzinsung",null,null,null,null,"Zuschuss (Gesamt):",{"$f":"H95+H99","v":0},null,{"$f":"IF(OR(J89<>\"\",J95<>\"\",J100<>\"\"),\"Für diese Berechnung wurden folgende Abweichungen von der Richtlinie festgestellt:\"&J89&IF(AND(J89<>\"\",OR(J95<>\"\",J100<>\"\")),\",\",\"\")&J95&IF(AND(J95<>\"\",J100<>\"\"),\",\",\"\")&J100&\".\",\"\")","v":""},null,null,null,null,null,null,"Nutzungsänderung beheizte Fläche",null,{"$f":"S80","v":5}]
[null,"Tatsächlich eingesetzte Eigenleistungen:",null,{"$f":"Berechnung!V44","v":0},"-",null,"Zuschuss (pro WE):",{"$f":"IF(H87=0,0,H101/H87)","v":0}]
[null,"Zu verzinsende Mindesteigenleistungen:",null,{"$f":"IF(OR(Berechnung!V44=\"\",Berechnung!V44=0,Berechnung!I44=\"\",Berechnung!I44=0),0,MAX(0,MIN(G12,IF(Berechnung!V44>Berechnung!I44*15/100,Berechnung!I44*15/100,Berechnung!V44))))","v":0},{"$f":"Grunddaten!H81","v":2},null,"Berechnung Darlehen"]
[null,"Zu verzinsendes zusätzliches Eigenkapital:",null,{"$f":"IF(OR(Berechnung!V44=\"\",Berechnung!V44=0,Berechnung!I44=\"\",Berechnung!I44=0),0,MAX(0,MIN(G12-D103,IF(Berechnung!V44>D103,Berechnung!V44-D103,0))))","v":0},{"$f":"Grunddaten!H82","v":3},null,"Barrierefrei erreichbare WE",null,null,null,null,null,null,null,null,null,{"$f":"IF(Berechnung!Q22=\"\",\"-\",Berechnung!Q22)","v":"-"},null,{"$f":"IF(OR(Q104=\"\",Q104=\"-\"),0,IF(ISERROR(INDEX(S96:S101,MATCH(Q104,Q96:Q101,0),1)),0,INDEX(S96:S101,MATCH(Q104,Q96:Q101,0),1)))","v":0}]
[null,"… entspricht Ø Eigenkapitalverzinsung p. a.:",null,{"$f":"Berechnung!V76+Berechnung!V77","v":0},{"$f":"IF((D103+D104)=0,0,D105/D102*100)","v":0},null,"Förderung pro WE",{"$f":"IF($H$77=FALSE,0,MIN(H85-H93,Grunddaten!H53))","v":0}]
[null,"… ohne Eigenkapitalverzinsung:",null,{"$f":"MAX(0,D102-D103-D104)","v":0},"-",null,"Anzahl WE",{"$f":"H94","v":0}]
[null,"Besetzungsrechte",null,null,null,null,"Darlehen Teil 1:",{"$f":"H105*H106","v":0},null,"Variablen:"]
[null,"Aufstock. BW-Kosten",null,{"$f":"IF(OR(M12=FALSE,M75=TRUE,M77=TRUE,M79=TRUE,M80=TRUE),0,ROUND(SUM(Berechnung!V67:X69)*Grunddaten!H84/100,2))","v":0},"-",null,"Sonstige erreichbare WE",null,null,"Gesamtförderung:",{"$f":"SUM(N112:N116)","v":0},"# Zuschüsse:",{"$f":"COUNTIF(Q138:Q141,TRUE)","v":0},"Anzahl WE:",{"$f":"IF(Berechnung!$K$18=\"\",0,Berechnung!$K$18)","v":0},"Ausnahme MIL:",{"$f":"IF(AND(OR($L$16=TRUE,$L$17=TRUE),$R$90=TRUE,($K$109-IF($R$90=TRUE,IF($R$85<>\"\",$R$85,$R$91),0))>($D$72+IF($G$73>0,$G$74,0)),M$79=FALSE,$M$80=FALSE,$M$81=FALSE),TRUE,FALSE)","v":false}]
[null,"Besetzungsrechte",null,null,null,null,"Förderung pro WE",{"$f":"IF($H$77=FALSE,0,MIN(H85-H97,Grunddaten!H51))","v":0},null,"… pro m²:",{"$f":"IF(OR($G$8=\"\",$G$8=0),0,$K$108/$G$8)","v":0},"# Darlehen:",{"$f":"COUNTIF(Q143:Q145,TRUE)","v":1},"Wohnfläche:",{"$f":"IF(Berechnung!$K$19=\"\",0,Berechnung!$K$19)","v":0},"Überförderung:",{"$f":"MAX(0,K109-(D72+IF(G73>0,G74,0))-IF(R90=TRUE,IF(R85<>\"\",R85,R91),0))","v":0}]
[null,"Anzahl förderfähiger WE",null,{"$f":"Berechnung!$K$18","v":0},"-",null,"Anzahl WE",{"$f":"H98","v":0},null,"… pro WE:",{"$f":"IF(OR($D$110=\"\",$D$110=0),0,$K$108/$D$110)","v":0},"# Förderbestandteile:",{"$f":"M108+M109","v":1},"Ø Fläche / WE:",{"$f":"IF($O$108=0,0,$O$109/$O$108)","v":0},"Gesamtanteil:",{"$f":"IF(OR(G10=\"\",G10=0),0,SUM(M112:M117)/G10*100)","v":0}]
[null,null,null,null,null,null,"Darlehen Teil 1:",{"$f":"H109*H110","v":0},null,"Textbausteine I:"]
[null,null,null,null,null,null,"Summe alle WE",null,null,"Zuschüsse",{"$f":"IF($Q112=0,\"\",INDEX($K$138:$K$141,$Q112,1))","v":""},null,{"$f":"IF($Q112=0,\"\",INDEX($M$138:$M$141,$Q112,1))","v":""},{"$f":"IF($Q112=0,\"\",INDEX($N$138:$N$141,$Q112,1))","v":""},{"$f":"IF($Q112=0,\"\",INDEX($O$138:$O$141,$Q112,1))","v":""},{"$f":"IF($Q112=0,\"\",INDEX($P$138:$P$141,$Q112,1))","v":""},{"$f":"IF($M$108=0,0,MATCH(TRUE,EXACT(TRUE,$Q$138:$Q$141),0))","v":0}]
[null,"Ergebnisse für Solver-Lauf",null,null,null,null,"Darlehen (Gesamt):",{"$f":"IF(OR($G$36=FALSE),0,$H$107+$H$111)","v":0},null,null,{"$f":"IF($Q113=0,\"\",INDEX($K$138:$K$141,$Q113,1))","v":""},null,{"$f":"IF($Q113=0,\"\",INDEX($M$138:$M$141,$Q113,1))","v":""},{"$f":"IF($Q113=0,\"\",INDEX($N$138:$N$141,$Q113,1))","v":""},{"$f":"IF($Q113=0,\"\",INDEX($O$138:$O$141,$Q113,1))","v":""},{"$f":"IF($Q113=0,\"\",INDEX($P$138:$P$141,$Q113,1))","v":""},{"$f":"IF($M$108<2,0,SMALL(IF(TRUE=$Q$138:$Q$141,ROW($Q$138:$Q$141)-ROW($Q$138)+1),2))","v":0}]
[null,"Erreicher Überschuss / Fehlbetrag",null,null,"-",null,"Darlehen (pro WE):",{"$f":"IF(H87=0,0,H113/H87)","v":0},null,null,{"$f":"IF($Q114=0,\"\",INDEX($K$138:$K$141,$Q114,1))","v":""},null,{"$f":"IF($Q114=0,\"\",INDEX($M$138:$M$141,$Q114,1))","v":""},{"$f":"IF($Q114=0,\"\",INDEX($N$138:$N$141,$Q114,1))","v":""},{"$f":"IF($Q114=0,\"\",INDEX($O$138:$O$141,$Q114,1))","v":""},{"$f":"IF($Q114=0,\"\",INDEX($P$138:$P$141,$Q114,1))","v":""},{"$f":"IF($M$108<3,0,SMALL(IF(TRUE=$Q$138:$Q$141,ROW($Q$138:$Q$141)-ROW($Q$138)+1),3))","v":0}]
[null,"Anzahl Ergebnisse",null,null,"-",null,"Zusammenfassung",null,null,"Förderdarlehen",{"$f":"IF($Q115=0,\"\",INDEX($K$143:$K$145,$Q115,1))","v":"Förderdarlehen (Maßnahme; maximal bis zu 3.000,00 € / m²):"},null,{"$f":"IF($Q115=0,\"\",INDEX($M$143:$M$145,$Q115,1))","v":0},{"$f":"IF($Q115=0,\"\",INDEX($N$143:$N$145,$Q115,1))","v":0},{"$f":"IF($Q115=0,\"\",INDEX($O$143:$O$145,$Q115,1))","v":0},{"$f":"IF($Q115=0,\"\",INDEX($P$143:$P$145,$Q115,1))","v":"pro m²"},{"$f":"IF($M$109=0,0,MATCH(TRUE,EXACT(TRUE,$Q$143:$Q$145),0))","v":1}]
[null,"Erfüllung Nebenbedingung 1",null,null,"-",null,"Zuschuss (Gesamt):",{"$f":"H101","v":0},null,null,{"$f":"IF($Q116=0,\"\",INDEX($K$143:$K$145,$Q116,1))","v":""},null,{"$f":"IF($Q116=0,\"\",INDEX($M$143:$M$145,$Q116,1))","v":""},{"$f":"IF($Q116=0,\"\",INDEX($N$143:$N$145,$Q116,1))","v":""},{"$f":"IF($Q116=0,\"\",INDEX($O$143:$O$145,$Q116,1))","v":""},{"$f":"IF($Q116=0,\"\",INDEX($P$143:$P$145,$Q116,1))","v":""},{"$f":"IF($M$109<2,0,SMALL(IF(TRUE=$Q$143:$Q$145,ROW($Q$143:$Q$145)-ROW($Q$143)+1),2))","v":0}]
[null,"Erfüllung Nebenbedingung 2",null,null,"-",null,"Zuschuss (pro WE):",{"$f":"IF($H$87=0,0,$H$116/$H$87)","v":0},null,null,{"$f":"IF($Q117=0,\"\",INDEX($K$143:$K$145,$Q117,1))","v":""},null,{"$f":"IF($Q117=0,\"\",INDEX($M$143:$M$145,$Q117,1))","v":""},{"$f":"IF($Q117=0,\"\",INDEX($N$143:$N$145,$Q117,1))","v":""},{"$f":"IF($Q117=0,\"\",INDEX($O$143:$O$145,$Q117,1))","v":""},{"$f":"IF($Q117=0,\"\",INDEX($P$143:$P$145,$Q117,1))","v":""},{"$f":"IF($M$109<3,0,SMALL(IF(TRUE=$Q$143:$Q$145,ROW($Q$143:$Q$145)-ROW($Q$143)+1),3))","v":0}]
[null,"Erfüllung Nebenbedingung 3",null,null,"-",null,"Zuschuss (pro m²):",{"$f":"IF($H$89=0,0,$H$116/$H$89)","v":0},null,"Textbausteine II:",null,null,null,"Zeile","Spalte","Bereich","Anpassung?"]
[null,{"$f":"IF(D121=\"\",\"Grundeinstellungen Solver A\",\"Erfüllung Nebenbedingung 4\")","v":"Grundeinstellungen Solver A"},null,null,"-",null,"Darlehen (Gesamt):",{"$f":"H113","v":0},null,"Sonstiger Zuschuss I (bitte benennen):",null,null,null,{"$f":"CELL(\"zeile\",Berechnung!P48)","v":48},{"$f":"CELL(\"spalte\",Berechnung!P48)","v":16},3,{"$f":"IF(J119=\"\",FALSE,IF(Berechnung!P48=J119,TRUE,FALSE))","v":true}]
[null,{"$f":"IF(D121=\"\",\"Grundeinstellungen Solver B\",\"Grundeinstellungen Solver A\")","v":"Grundeinstellungen Solver B"},null,null,"-",null,"Darlehen (pro WE):",{"$f":"IF($H$87=0,0,$H$119/$H$87)","v":0},null,"Sonstiger Zuschuss II (bitte benennen):",null,null,null,{"$f":"CELL(\"zeile\",Berechnung!P49)","v":49},{"$f":"CELL(\"spalte\",Berechnung!P49)","v":16},3,{"$f":"IF(J120=\"\",FALSE,IF(Berechnung!P49=J120,TRUE,FALSE))","v":true}]
[null,{"$f":"IF(D121=\"\",\"-\",\"Grundeinstellungen Solver B\")","v":"-"},null,null,"-",null,"Darlehen (pro m²):",{"$f":"IF($H$89=0,0,$H$119/$H$89)","v":0},null,"Sonstiges Darlehen (bitte benennen):",null,null,null,{"$f":"CELL(\"zeile\",Berechnung!D62)","v":62},{"$f":"CELL(\"spalte\",Berechnung!D62)","v":4},4,{"$f":"IF(J121=\"\",FALSE,IF(Berechnung!D62=J121,TRUE,FALSE))","v":false}]
[null,null,null,null,null,null,"Förderung (Gesamt):",{"$f":"H116+H119","v":0},null,null,null,null,null,null,null,null,{"$f":"IF(J122=\"\",FALSE,IF(Berechnung!D63=J122,TRUE,FALSE))","v":false}]
[null,null,null,null,null,null,"Förderung (pro WE / Aufz.):",{"$f":"$H$117+$H$120","v":0},null,null,null,null,null,null,null,null,{"$f":"IF(J123=\"\",FALSE,IF(Berechnung!D64=J123,TRUE,FALSE))","v":false}]
[null,"Zuschuss: Klimabaustein",null,null,null,null,"Förderung (pro m² / Aufz.):",{"$f":"$H$118+$H$121","v":0},null,null,null,null,null,null,null,null,{"$f":"IF(J124=\"\",FALSE,IF(Berechnung!D65=J124,TRUE,FALSE))","v":false}]
[null,"Inanspruchnahme Klimabaustein?",null,{"$f":"IF(AND(R90=TRUE,R86=TRUE,G10>0),TRUE,FALSE)","v":false},"-",null,"Förderung (pro WE / alle):",{"$f":"IF(OR(O109=\"\",O109=0),0,H122/O109)","v":0},null,"Standardwerte:",null,null,null,"Zeile","Spalte","Bereich","Vorgabe"]
[null,"Förderfähige Wohnfläche",null,{"$f":"G8","v":0},"-",null,"Förderung (pro m² / alle):",{"$f":"IF(OR(O108=\"\",O108=0),0,H122/O108)","v":0},null,{"$f":"Berechnung!D59","v":"Förderdarlehen (Maßnahme; maximal bis zu 3.000,00 € / m²):"},null,null,null,{"$f":"CELL(\"zeile\",Berechnung!S59)","v":59},{"$f":"CELL(\"spalte\",Berechnung!S59)","v":19},4,{"$f":"Grunddaten!H58","v":2}]
[null,"Fördersatz pro m² Wohnfläche",null,{"$f":"IF(AND(ISNUMBER(R85)=TRUE,R85<=R91,R85<>\"\"),R85,R91)","v":0},"-",null,"Restfinanzierung",null,null,null,null,null,null,null,null,null,"-"]
[null,"Zuschuss Klimabaustein",null,{"$f":"IF(D125=FALSE,0,D126*D127)","v":0},"-",null,"Notwendiges Zusatzdarlehen",{"$f":"IF($H$77=FALSE,0,IF(AND(L16=FALSE,L17=FALSE),0,IF(M81=TRUE,ROUND((H78-Berechnung!$V$44)-H122,2),0)))","v":0},null,null,null,null,null,null,null,null,"-"]
[null,null,null,null,null,null,"Gewichtete Förderung pro m²",null,null,null,null,null,null,null,null,null,"-"]
[null,null,null,null,null,null,{"$f":"G118","v":"Zuschuss (pro m²):"},{"$f":"IF($H$77=FALSE,0,($H$116/($O$110*$H$87))*(($O$110*$H$87)/$O$109))","v":0},null,null,null,null,null,null,null,null,"-"]
[null,"Zuschuss: Grundförderung (ab 2024)",null,null,null,null,{"$f":"G121","v":"Darlehen (pro m²):"},{"$f":"IF($H$77=FALSE,0,($H$119/($O$110*$H$87))*(($O$110*$H$87)/$O$109))","v":0},null,null,null,null,null,null,null,null,"-"]
[null,"Inanspruchnahme Grundförderung?",null,{"$f":"IF(AND($L$17=TRUE,$M$81=FALSE,G10>0),TRUE,FALSE)","v":false},"-",null,"Förderung (pro m² / alle):",{"$f":"H130+H131","v":0},null,"Hinweistexte:"]
[null,"Förderfähige Wohnfläche",null,{"$f":"G8","v":0},"-",null,null,null,null,{"$f":"\"Die Gesamtförderung i. H. v. \"&TEXT(K108,\"#.##0,00\")&\" EUR (≙ \"&TEXT(Q110,\"#.##,00\")&\"% der Kosten) \"&IF(Berechnung!$D$91=\"\",\"entspricht\",\"entspräche\")&\" Ø \"&TEXT(K109,\"#.##0,00\")&\" EUR pro m² Wohnfläche bzw. Ø \"&TEXT(K110,\"#.##0,00\")&\" EUR pro WE.\"","v":"Die Gesamtförderung i. H. v. 0,00 EUR (≙ ,00% der Kosten) entspräche Ø 0,00 EUR pro m² Wohnfläche bzw. Ø 0,00 EUR pro WE."}]
[null,"Fördersatz pro m² Wohnfläche (Neubau / Umnutz.)",null,500,"-",null,"Prüfung Ausnahmenotwendigkeit MIL",null,null,{"$f":"IF($H$144=TRUE,\"Die maximale Höchstförderung von \"&TEXT($H$142,\"#.##0,00\")&\" EUR / m² \"&IF(H132>0,\"(ohne Aufzugsförderung) \",\"\")&\"wird durch den Zuschuss \"&CHAR(34)&\"Klimabaustein\"&CHAR(34)&\" um \"&TEXT($H$143,\"#.##0,00\")&\" EUR / m² überschritten; eine Förderung ist nur mit Ausnahmegenehmigung durch das MIL möglich.\",\"\")","v":""}]
[null,"Fördersatz pro m² Wohnfläche (ModInst)",null,300,"-",null,"Gesamtförderung pro m²:",{"$f":"K109","v":0},null,"Dateiname:"]
[null,"Zuschuss Grundförderung",null,{"$f":"IF($D$132=TRUE,$D$133*IF(OR($M$79=TRUE,$M$80=TRUE),$D$135,$D$134),0)","v":0},"-",null,"Darlehen (Maßnahme) pro m²:",{"$f":"O143","v":0},null,{"$f":"IF(Berechnung!V15<>\"\",Berechnung!V15&\" - \",\"\")&IF(Berechnung!G15<>\"\",Berechnung!G15,\"Unbestimmtes Objekt\")&\" - \"&TEXT(NOW(),\"JJJJ-MM-TT HH-MM-SS\")&\" Uhr\"","v":"Unbestimmtes Objekt - 2024-03-18 11-25-27 Uhr"}]
[null,"Gegenprüfung Kürzungsbedarf",null,"-","-",null,"Darlehen (Aufzüge) pro m²:",{"$f":"H131","v":0},null,"Zuschusszuordnung:"]
[null,null,null,null,null,null,"Zuschuss Bindung pro m²:",{"$f":"O139","v":0},null,{"$f":"IF($Q138=FALSE,\"-\",IF($M$108=1,\"-\",IF($Q138=TRUE,ROMAN(COUNTIF($Q$138:$Q138,TRUE)),\"-\")))","v":"-"},{"$f":"\"Förderzuschuss \"&IF(AND($Q138=TRUE,$M$108>1),J138&\" \",\"\")&\"(Grundf.):\"","v":"Förderzuschuss (Grundf.):"},null,{"$f":"IF(Q138=FALSE,0,ROUNDUP(D136,-2))","v":0},{"$f":"IF(Q138=FALSE,0,D136)","v":0},{"$f":"IF(Q138=FALSE,0,IF(OR(M79=TRUE,M80=TRUE),D135,D134))","v":0},"pro m²",{"$f":"IF(AND($L$17=TRUE,$M$81=FALSE,$G$10>0),TRUE,FALSE)","v":false}]
[null,null,null,null,null,null,"Zuschuss Aufzüge pro m²:",{"$f":"H130","v":0},null,{"$f":"IF($Q139=FALSE,\"-\",IF($M$108=1,\"-\",IF($Q139=TRUE,ROMAN(COUNTIF($Q$138:$Q139,TRUE)),\"-\")))","v":"-"},{"$f":"\"Förderzuschuss \"&IF(AND($Q139=TRUE,$M$108>1),J139&\" \",\"\")&\"(Bindung):\"","v":"Förderzuschuss (Bindung):"},null,{"$f":"IF(Q139=FALSE,0,IF(AND(G10-G11>0,G10-G11<ROUNDUP(D73,-2)),ROUNDUP(G10-G11,-2),IF(G10-G11>ROUNDUP(D73,-2),ROUNDUP(D73,-2),0)))","v":0},{"$f":"IF(Q139=FALSE,0,IF(AND(G10-G11>0,G10-G11<D73),G10-G11,IF(G10-G11>D73,D73,0)))","v":0},{"$f":"IF(Q139=FALSE,0,IF(AND(G10-G11>0,G10-G11<D73),(G10-G11)/O109,IF(G10-G11>D73,D73/O109,0)))","v":0},"pro m²",{"$f":"IF(OR($M$76=TRUE,$M$78=TRUE,$M$80=TRUE),TRUE,FALSE)","v":false}]
[null,"…",null,null,null,null,"Zuschuss Klimabaustein pro m²:",{"$f":"O141","v":0},null,{"$f":"IF($Q140=FALSE,\"-\",IF($M$108=1,\"-\",IF($Q140=TRUE,ROMAN(COUNTIF($Q$138:$Q140,TRUE)),\"-\")))","v":"-"},{"$f":"\"Förderzuschuss \"&IF(AND($Q140=TRUE,$M$108>1),J140&\" \",\"\")&\"(Aufzug):\"","v":"Förderzuschuss (Aufzug):"},null,{"$f":"IF(Q140=FALSE,0,ROUNDUP(H116,-2))","v":0},{"$f":"IF(Q140=FALSE,0,H116)","v":0},{"$f":"IF(Q140=FALSE,0,H117)","v":0},"pro WE",{"$f":"IF($H$77=TRUE,TRUE,FALSE)","v":false}]
[null,null,null,null,"-",null,"Förderung ohne Aufzüge pro m²:",{"$f":"H136+H138+H140","v":0},null,{"$f":"IF($Q141=FALSE,\"-\",IF($M$108=1,\"-\",IF($Q141=TRUE,ROMAN(COUNTIF($Q$138:$Q141,TRUE)),\"-\")))","v":"-"},{"$f":"\"Förderzuschuss \"&IF(AND($Q141=TRUE,$M$108>1),J141&\" \",\"\")&\"(Klimab.):\"","v":"Förderzuschuss (Klimab.):"},null,{"$f":"IF(Q141=FALSE,0,ROUNDUP(D128,-2))","v":0},{"$f":"IF(Q141=FALSE,0,D128)","v":0},{"$f":"IF(Q141=FALSE,0,D127)","v":0},"pro m²",{"$f":"IF(AND(R87=TRUE,R90=TRUE),TRUE,FALSE)","v":false}]
[null,null,null,null,"-",null,"Förderhöchstbetrag pro m²:",{"$f":"D72+G69","v":3200},null,"Darlehenszuordnung:"]
[null,null,null,null,"-",null,"Überförderung pro m²",{"$f":"MAX(0,H141-H142)","v":0},null,{"$f":"IF($Q143=FALSE,\"-\",IF($M$109=1,\"-\",IF($Q143=TRUE,ROMAN(COUNTIF($Q$143:$Q143,TRUE)),\"-\")))","v":"-"},{"$f":"\"Förderdarlehen \"&IF(AND($Q143=TRUE,$M$109>1),J143&\" \",\"\")&\"(Maßnahme; maximal bis zu \"&TEXT($G$9-IF(AND(OR(AND($L$17=TRUE,$G$72=TRUE),AND($R$90=TRUE,$M$4=TRUE)),OR(Grunddaten!$H$40=\"\",Grunddaten!$H$40=TRUE)),IF(AND($L$17=TRUE,$G$72=TRUE),$G$74,$R$85),0),\"#.##0,00\")&\" € / m²):\"","v":"Förderdarlehen (Maßnahme; maximal bis zu 3.000,00 € / m²):"},null,{"$f":"IF(Q143=FALSE,0,IF(D47<0,0,IF($L$71<>$M$71,0,ROUNDUP(D47,-2))))","v":0},{"$f":"IF(Q143=FALSE,0,IF($L$71<>$M$71,0,IF(D47<0,0,D47)))","v":0},{"$f":"ROUND(IF(Q143=FALSE,0,IF($L$71<>$M$71,0,IF(D56<0,0,N143/G8))),2)","v":0},"pro m²",{"$f":"IF($M$81=TRUE,FALSE,TRUE)","v":true}]
[null,null,null,null,"-",null,"Ausnahme MIL notwendig?",{"$f":"IF(AND($L$16=TRUE,$R$90=TRUE,$H$141>$H$142,$U$5=FALSE),TRUE,FALSE)","v":false},null,{"$f":"IF($Q144=FALSE,\"-\",IF($M$109=1,\"-\",IF($Q144=TRUE,ROMAN(COUNTIF($Q$143:$Q144,TRUE)),\"-\")))","v":"-"},{"$f":"\"Förderdarlehen \"&IF(AND($Q144=TRUE,$M$109>1),J144&\" \",\"\")&\"(Aufzug):\"","v":"Förderdarlehen (Aufzug):"},null,{"$f":"IF(Q144=FALSE,0,ROUNDUP(H113,-2))","v":0},{"$f":"IF(Q144=FALSE,0,H119)","v":0},{"$f":"IF(Q144=FALSE,0,H120)","v":0},"pro WE",{"$f":"IF($H$77=TRUE,TRUE,FALSE)","v":false}]
[null,null,null,null,null,null,null,null,null,{"$f":"IF($Q145=FALSE,\"-\",IF($M$109=1,\"-\",IF($Q145=TRUE,ROMAN(COUNTIF($Q$143:$Q145,TRUE)),\"-\")))","v":"-"},{"$f":"\"Förderdarlehen \"&IF(AND($Q145=TRUE,$M$109>1),J145&\" \",\"\")&\"(Klimabaustein):\"","v":"Förderdarlehen (Klimabaustein):"},null,0,0,0,"pro m²",{"$f":"IF(AND(R88=TRUE,R90=TRUE),TRUE,FALSE)","v":false}]

{"sheet":"Hilfe","index":5,"n_rows":44,"n_cols":6,"rows_kept":44,"cut":false,"hidden":true,"merged":[[0,0,0,5]]}
["Checkliste für Hilfefunktion"]
["lfd. Nr.","Bereich","Eingabefeld","Soll","Ist","Beschreibung"]
[1,"Berechnung",{"$f":"Daten!J24","v":"Maßnahmeart"},{"$f":"Daten!L24","v":true},{"$f":"Daten!M24","v":true},"MUSS-Feld\n\nBereich: \"Art der Maßnahme\"\n\nBitte wählen Sie aus, für welche Maßnahmeart Sie eine Förderberechnung furchführen wollen."]
[{"$f":"A3+1","v":2},"Berechnung",{"$f":"Daten!J25","v":"Name"},{"$f":"Daten!L25","v":true},{"$f":"Daten!M25","v":false},"MUSS-Feld\n\nBereich: \"Kunde / Objekt\"\n\nBitte geben Sie den Namen / Firmenbezeichnung des Investors an."]
[{"$f":"A4+1","v":3},"Berechnung",{"$f":"Daten!J26","v":"Objektanschrift"},{"$f":"Daten!L26","v":true},{"$f":"Daten!M26","v":false},"MUSS-Feld\n\nBereich: \"Kunde / Objekt\"\n\nBitte geben Sie die Anschrift des Investitionsobjektes an."]
[{"$f":"A5+1","v":4},"Berechnung",{"$f":"Daten!J27","v":"Gemeinde gemäß Anlage 3 der RL"},{"$f":"Daten!L27","v":true},{"$f":"Daten!M27","v":false},"MUSS-Feld\n\nBereich: \"Kunde / Objekt\"\n\nHier ist anzugeben, ob sich das Förderobjekt in einer Gemeinde gemäß der Anlage 3 der Richtlinie befindet oder nicht. Folgende Schreibweisen sind zulässig:\n\n\"Ja\", \"Nein\".\n\nGroß- / Kleinschreibung ist hierbei unerheblich. Alternativ können Sie auch den Wertepfeil rechts neben dem Eingabefeld benutzen und die entsprechende Angabe auswählen.\n\nDiese Angabe hat Einfluss auf die zulässige Höchstmiete der belegungsgebundenen Wohnungen und ist zwingend zu beantworten."]
[5,"Berechnung",{"$f":"Daten!J28","v":"Anzahl der Wohneinheiten (WE)"},{"$f":"Daten!L28","v":true},{"$f":"Daten!M28","v":false},"MUSS-Feld\n\nBereich: \"Kunde / Objekt\"\n\nBitte geben Sie die Gesamtanzahl der Wohneinheiten an für die die Investitionsmaßnahme durchgeführt werden soll.\n\nNicht numerische oder negative Werte sind nicht zulässig."]
[6,"Berechnung",{"$f":"Daten!J29","v":"Gesamtwohnfläche"},{"$f":"Daten!L29","v":true},{"$f":"Daten!M29","v":false},"MUSS-Feld\n\nBereich: \"Kunde / Objekt\"\n\nBitte geben Sie die kumulierte Gesamtwohnfläche aller Wohneinheiten an für die die Investitionsmaßnahme durchgeführt werden soll.\n\nNicht numerische oder negative Werte sind nicht zulässig."]
[7,"Berechnung",{"$f":"Daten!J30","v":"Grundstücksgröße"},{"$f":"Daten!L30","v":true},{"$f":"Daten!M30","v":false},"MUSS-Feld\n\nBereich: \"Kunde / Objekt\"\n\nBitte geben Sie die Grundstücksgröße des Investitionsobjektes an."]
[{"$f":"A9+1","v":8},"Berechnung",{"$f":"Daten!J31","v":"Inanspruchnaahme Aufzugsförderung"},{"$f":"Daten!L31","v":true},{"$f":"Daten!M31","v":false},"MUSS-Feld\n\nBereich: \"Kunde / Objekt\"\n\nBitte geben Sie an, ob die Förderung zum (nachträglichen) An- oder Einbau eines Aufzuges in Anspruch genommen werden soll."]
[9,"Berechnung",{"$f":"IF(Daten!M3=TRUE,\"Erreichter Standard \"&CHAR(34)&\"Klimabaustein\"&CHAR(34),\"Erreichung Mindeststandard \"&CHAR(34)&\"Klimabaustein\"&CHAR(34))","v":"Erreichung Mindeststandard \"Klimabaustein\""},{"$f":"Daten!L32","v":false},{"$f":"Daten!M32","v":false},"MUSS-Feld\n\nBereich: \"Kunde / Objekt\"\n\nBitte geben Sie an, ob die die Fördervoraussetzungen (Standards) für den Zuschuss \"Klimabaustein\" erfüllt werden."]
[10,"Berechnung","Fördergegenstand \"Klimabaustein\"",{"$f":"Daten!L33","v":false},{"$f":"Daten!M33","v":false},"MUSS-Feld\n\nBereich: \"Kunde / Objekt\"\n\nBitte geben Sie an, welcher Fördergegenstand hauptsächlich auf die Maßnahme zutrifft."]
[11,"Berechnung","Aufteilung Quoten für Belegungsbindung",{"$f":"Daten!L34","v":true},{"$f":"Daten!M34","v":true},"MUSS-Feld\n\nBereich: \"Kunde / Objekt\"\n\nBitte korrigieren Sie die Aufteilung der Quoten zur Belegungsbindung zwischen den 3 verschiedenen Einkommensgrenzen."]
[12,"Berechnung",{"$f":"Daten!J36","v":"WE / m² für 1. EK-Grenze"},{"$f":"Daten!L36","v":true},{"$f":"Daten!M36","v":true},"MUSS-Feld\n\nBereich: \"Aufteilung der Wohneinheiten / Einnahmen\"\n\nHier sind Anzahl und Wohnflächen der für die 1. Einkommensgrenze vorgesehenen Wohnungen zu pflegen. Beachten Sie hierbei die in blauer Schrift gehaltenen Hinweise zu Mindestanzahl und Mindestwohnflächen, die für die jeweilige EK-Grenze erforderlich sind. Höhere Werte sind jederzeit möglich, sofern die Gesamtanzahl/Gesamtwohnflächen der im Bereich \"Kunde / Objekt\" angegebenen Wohnungen nicht überschritten werden.\n\nNicht numerische oder negative Werte sind nicht zulässig."]
[13,"Berechnung",{"$f":"Daten!J37","v":"WE / m² für 2. EK-Grenze"},{"$f":"Daten!L37","v":true},{"$f":"Daten!M37","v":true},"MUSS-Feld oder KANN-Feld (abhängig von den Eingaben bei der 1. EK-Grenze)\n\nBereich: \"Aufteilung der Wohneinheiten / Einnahmen\"\n\nHier sind Anzahl und Wohnflächen der für die 2. Einkommensgrenze vorgesehenen Wohnungen zu pflegen. Beachten Sie hierbei die in blauer Schrift gehaltenen Hinweise zu Mindestanzahl und Mindestwohnflächen, die für die jeweilige EK-Grenze erforderlich sind. Höhere Werte sind jederzeit möglich, sofern die Gesamtanzahl/Gesamtwohnflächen der im Bereich \"Kunde / Objekt\" angegebenen Wohnungen nicht überschritten werden.\n\nNicht numerische oder negative Werte sind nicht zulässig."]
[14,"Berechnung",{"$f":"Daten!J38","v":"WE / m² für 3. EK-Grenze"},{"$f":"Daten!L38","v":true},{"$f":"Daten!M38","v":true},"MUSS-Feld oder KANN-Feld (abhängig von den Eingaben bei der 1. und 2. EK-Grenze)\n\nBereich: \"Aufteilung der Wohneinheiten / Einnahmen\"\n\nDieser Fehler kann folgende Ursachen haben:\n\n   - Es wurde noch keine Eingabe vorgenommen.\n   - Die Anzahl der WE für die 1. und 2. EK-Grenze wurde korrekt\n     erfasst, jedoch ist die Anzahl der nicht belegungsgebundenen\n     WE oder der WE in der 3. EK-Grenze zu gering.\n\nGeben Sie hier die noch offene Differenz ein. Alternativ kann auch die Anzahl der belegungsgebundenen WE entsprechend erhöht werden.\n\nNicht numerische oder negative Werte sind nicht zulässig."]
[15,"Berechnung",{"$f":"Daten!J39","v":"Summe WE und m² gesamt"},{"$f":"Daten!L39","v":true},{"$f":"Daten!M39","v":true},"Bereich: \"Aufteilung der Wohneinheiten / Einnahmen\"\n\nDie Summe der in diesem Bereich angegebenen WE und m² muss jeweils mit der Anzahl der WE bzw. der Gesamtwohnfläche übereinstimmen, die im Bereich ''Kunde / Objekt'' angegeben wurde. Bitte entsprechend korrigieren."]
[16,"Berechnung",{"$f":"Daten!J40","v":"Mit gefördertem Aufzug erreichbare WE"},{"$f":"Daten!L40","v":false},{"$f":"Daten!M40","v":false},"MUSS-Feld\n\nBereich: \"Aufteilung der Wohneinheiten / Einnahmen\"\n\nHier sind Anzahl der Wohneinheiten zu hinterlegen, welche durch den zu fördernden Aufzug im Förderobjekt erschlossen werden sollen.\n\nNicht numerische oder negative Werte sind nicht zulässig."]
[17,"Berechnung",{"$f":"Daten!J41","v":"Davon durch Aufzug barrierefrei erreichbare WE"},{"$f":"Daten!L41","v":false},{"$f":"Daten!M41","v":false},"MUSS-Feld\n\nBereich: \"Aufteilung der Wohneinheiten / Einnahmen\"\n\nHier sind Anzahl der Wohneinheiten zu hinterlegen, welche durch den zu fördernden Aufzug im Förderobjekt auch tatsächlich barrierefrei (gemäß DIN 18040-2) erreicht werden können.\n\nNicht numerische oder negative Werte sind nicht zulässig."]
[18,"Berechnung",{"$f":"Daten!J42","v":"Miethöhe für WE 1. EK-Grenze"},{"$f":"Daten!L42","v":true},{"$f":"Daten!M42","v":false},"MUSS-Feld\n\nBereich: \"Aufteilung der Wohneinheiten / Einnahmen\"\n\nHier ist die Miethöhe pro m² pro Monat für die Wohnungen der 1. Einkommensgrenze zu pflegen. Bitte beachten Sie die in blauer Schrift gehaltenen Hinweise zur maximal zulässigen Miete.\n\nNicht numerische oder negative Werte sind nicht zulässig."]
[19,"Berechnung",{"$f":"Daten!J43","v":"Miethöhe für WE 2. EK-Grenze"},{"$f":"Daten!L43","v":true},{"$f":"Daten!M43","v":false},"In Abhängigkeit von der Angabe bei der Aufteilung der Wohnungen KANN-Feld oder MUSS-Feld\n\n1. Mieteinnahmen im Durchschnitt:\n\nHier ist die Miethöhe pro m² pro Monat für die Wohnungen der 2. Einkommensgrenze zu pflegen. Bitte beachten Sie die in blauer Schrift gehaltenen Hinweise zur maximal zulässigen Miete.\n\nNicht numerische oder negative Werte sind nicht zulässig."]
[20,"Berechnung",{"$f":"Daten!J44","v":"Miethöhe für WE 3. EK-Grenze"},{"$f":"Daten!L44","v":true},{"$f":"Daten!M44","v":false},"In Abhängigkeit von der Angabe bei der Aufteilung der Wohnungen KANN-Feld oder MUSS-Feld\n\nBereich: \"Aufteilung der Wohneinheiten / Einnahmen\"\n\nHier ist die Miethöhe pro m² pro Monat für die nicht belegungsgebundenen Wohnungen zu pflegen. Die Miethöhe frei eingebbar und richtet sich in der Regel nach der am Markt erzielbaren Miete.\n\nNicht numerische oder negative Werte sind nicht zulässig."]
[21,"Berechnung",{"$f":"Daten!J45","v":"Sonstige Einnahmen"},{"$f":"Daten!L45","v":false},{"$f":"Daten!M45","v":false},"KANN-Feld\n\nBereich: \"Aufteilung der Wohneinheiten / Einnahmen\"\n\nHier sind weitere jährliche Einnahmen (außer Mieteinnahmen) für die \"Geförderten Wohnungen\" zu pflegen.\n\nNicht numerische oder negative Werte sind nicht zulässig."]
[22,"Berechnung",{"$f":"Daten!J47","v":"Grundstückskosten"},{"$f":"Daten!L47","v":true},{"$f":"Daten!M47","v":true},"KANN-Feld\n\nBereich: ''Kosten / Finanzierung''\n\nBitte überprüfen Sie Ihre Angaben bei den Grundstückskosten.\n\nNicht numerische oder negative Eingaben sind hier nicht zulässig."]
[23,"Berechnung",{"$f":"Daten!J48","v":"Erwerbskosten"},{"$f":"Daten!L48","v":true},{"$f":"Daten!M48","v":true},"KANN-Feld\n\nBereich: ''Kosten / Finanzierung''\n\nBitte überprüfen Sie Ihre Angaben bei den Erwerbskosten.\n\nNicht numerische oder negative Eingaben sind hier nicht zulässig."]
[24,"Berechnung",{"$f":"Daten!J49","v":"Baukosten"},{"$f":"Daten!L49","v":true},{"$f":"Daten!M49","v":false},"KANN-Feld\n\nBereich: ''Kosten / Finanzierung''\n\nBitte überprüfen Sie Ihre Angaben bei den Baukosten.\n\nNicht numerische oder negative Eingaben sind hier nicht zulässig."]
[25,"Berechnung",{"$f":"Daten!J50","v":"Baunebenkosten"},{"$f":"Daten!L50","v":true},{"$f":"Daten!M50","v":true},"KANN-Feld\n\nBereich: ''Kosten / Finanzierung''\n\nBitte überprüfen Sie Ihre Angaben bei den Baunebenkosten.\n\nNicht numerische oder negative Eingaben sind hier nicht zulässig."]
[26,"Berechnung",{"$f":"Daten!J51","v":"Eigenkapital"},{"$f":"Daten!L51","v":true},{"$f":"Daten!M51","v":true},"KANN-Feld\n\nBereich: ''Kosten / Finanzierung''\n\nBitte geben Sie die Höhe des in die Finanzierung einzubringenden Eigenkapitals hier ein. Beachten Sie hierbei die in blauer Schrift gehaltenen Hinweise zu den Mindesteigenleistungen. Sofern die Mindesteigenleistungen durch andere geeignete Mittel (z. B. ausreichender Wert des vorhandenen Baugrundstücks o. ä.) erfüllt werden, muss hier nicht zwingend eine Eingabe erfolgen. Entscheidend ist, dass die Mindesteigenleistungen insgesamt erbracht werden.\n\nNicht numerische oder negative Eingaben sind hier nicht zulässig."]
[27,"Berechnung",{"$f":"Daten!J52","v":"Selbsthilfe"},{"$f":"Daten!L52","v":false},{"$f":"Daten!M52","v":false},"KANN-Feld\n\nBereich: ''Kosten / Finanzierung''\n\nBitte geben Sie die Höhe der in die Finanzierung einzubringenden Selbsthilfeleistungen hier ein. Beachten Sie hierbei die in blauer Schrift gehaltenen Hinweise zu den Mindesteigenleistungen. Sofern die Mindesteigenleistungen durch andere geeignete Mittel (z. B. ausreichende Höhe an Eigenkapital o. ä.) erfüllt werden, muss hier nicht zwingend eine Eingabe erfolgen. Entscheidend ist, dass die Mindesteigenleistungen insgesamt erbracht werden.\n\nNicht numerische oder negative Eingaben sind hier nicht zulässig."]
[28,"Berechnung",{"$f":"Daten!J53","v":"Wert des Baugrundstücks"},{"$f":"Daten!L53","v":false},{"$f":"Daten!M53","v":false},"KANN-Feld\n\nBereich: ''Kosten / Finanzierung''\n\nBitte geben Sie die Höhe der in die Finanzierung einzubringenden Selbsthilfeleistungen hier ein. Beachten Sie hierbei die in blauer Schrift gehaltenen Hinweise zu den Mindesteigenleistungen. Sofern die Mindesteigenleistungen durch andere geeignete Mittel (z. B. ausreichende Höhe an Eigenkapital o. ä.) erfüllt werden, muss hier nicht zwingend eine Eingabe erfolgen. Entscheidend ist, dass die Mindesteigenleistungen insgesamt erbracht werden.\n\nNicht numerische oder negative Eingaben sind hier nicht zulässig."]
[29,"Berechnung",{"$f":"Daten!J54","v":"Wert vorhandener Gebäudeteile"},{"$f":"Daten!L54","v":false},{"$f":"Daten!M54","v":false},"KANN-Feld\n\nBereich: ''Kosten / Finanzierung''\n\nBitte überprüfen Sie Ihre Angaben beim Wert vorh. Gebäudeteile.\n\nNicht numerische oder negative Eingaben sind hier nicht zulässig."]
[30,"Berechnung",{"$f":"Daten!J55","v":"Eigenleistungen (Gesamt)"},{"$f":"Daten!L55","v":true},{"$f":"Daten!M55","v":false},"Bereich: ''Kosten / Finanzierung''\n\nDieser Fehler kann folgende Ursachen haben:\n- Es wurden noch keine Eingaben bei den Eigenleistungen vorgenommen.\n- Die Höhe der Eigenleistungen ist zu gering.\n\nBitte beachten Sie die in blauer Schrift gehaltenen Hinweise zu den Mindesteigenleistungen."]
[31,"Berechnung",{"$f":"Daten!J56","v":"Weitere Zuschüsse"},{"$f":"Daten!L56","v":false},{"$f":"Daten!M56","v":false}]
[32,"Berechnung",{"$f":"Daten!J58","v":"Kapitaldienst aus bereits bestehenden Finanzierungen"},{"$f":"Daten!L58","v":false},{"$f":"Daten!M58","v":false},"KANN-Feld\n\nBereich: \"Darlehen / laufende Aufwendungen\"\n\nHier ist der Kapitaldienst einzutragen, der bereits existiert und nicht unmittelbar der hier beantragten Maßnahme zuzuordnen ist. Dies kann beispielsweise bei ModInst Maßnahmen der Fall sein, sofern bereits früher aufgenommene Finanzierungen noch existieren. Auch Belastungen aus Erbbauzinsen fallen hierunter.\n\nBitte beachten Sie, dass an dieser Stelle nicht der Zins- oder Tilgungssatz abgefrat wird, sondern der jährliche Betrag in EUR. Nicht numerische oder negative Werte sind nicht zulässig."]
[33,"Berechnung",{"$f":"Daten!J59","v":"Tilgungssatz Förderdarlehen"},{"$f":"Daten!L59","v":true},{"$f":"Daten!M59","v":true},"MUSS-Feld\n\nBereich: ''Darlehen / laufende Aufwendungen''\n\nDieser Fehler kann folgende Ursachen haben:\n- Es wurde noch keine Eingabe vorgenommen.\n- Die Eingabe liegt im falschen Format vor.\n\nDie Höhe des Tilgungssatzes können Sie der Richtlinie entnehmen.\n\nNicht numerische oder negative Werte sind nicht zulässig."]
[34,"Berechnung",{"$f":"Daten!J60","v":"Zinssatz Sonstige vorgesehene Finanzierung"},{"$f":"Daten!L60","v":false},{"$f":"Daten!M60","v":false},"MUSS-Feld\n\nBereich: \"Darlehen / laufende Aufwendungen\"\n\nBitte geben Sie den bereits bekannten bzw. angenommenen (marktüblichen) Zinssatz für das \"Sonstige (vorgesehen) Darlehen\" für die geförderten Wohnungen ein.\n\nBitte achten Sie auch darauf, dass der Kapitaldienst dieser Finanzierung HÖHER sein muss, als der des Förderdarlehens.\n\nDies ist darin begründet, dass die Höhe des Förderdarlehens u. a. von der Objektwirtschaftlichkeit abhängig ist. Sollte diese zu hoch sein, muss das Förderdarlehen anteilig gekürzt und die notwendige Restfinanzierung erhöht werden, bis sich die Objektwirtschaftlichkeit soweit \"verschlechtert\", dass sich ein vorgegebener Wert ergibt. Sofern die Konditionen des Restdarlehens gleich oder besser sind, als die des Förderdarlehens, kann hier eine solche Berechnung nicht durchgeführt werden. In diesem Fall wird davon ausgegangen, dass sich das Vorhaben mit ausschließlich freien Mitteln besser trägt, als mit Förderdarlehen.\n\nNicht numerische oder negative Werte sind nicht zulässig."]
[35,"Berechnung",{"$f":"Daten!J61","v":"Tilgungssatz Sonstige vorgesehene Finanzierung"},{"$f":"Daten!L61","v":false},{"$f":"Daten!M61","v":false},"MUSS-Feld\n\nBereich: \"Darlehen / laufende Aufwendungen\"\n\nBitte geben Sie den bereits bekannten bzw. angenommenen (marktüblichen) Zinssatz für das \"Sonstige (vorgesehene) Darlehen\" für die geförderten Wohnungen ein.\n\nBitte achten Sie auch darauf, dass der Kapitaldienst dieser freien Finanzierung HÖHER sein muss, als der des Förderdarlehens.\n\nDies ist darin begründet, dass die Höhe des Förderdarlehens u. a. von der Objektwirtschaftlichkeit abhängig ist. Sollte diese zu hoch sein, muss das Förderdarlehen anteilig gekürzt und die notwendige Restfinanzierung erhöht werden, bis sich die Objektwirtschaftlichkeit soweit \"verschlechtert\", dass sich ein vorgegebener Wert ergibt. Sofern die Konditionen des Restdarlehens gleich oder besser sind, als die des Förderdarlehens, kann hier eine solche Berechnung nicht durchgeführt werden. In diesem Fall wird davon ausgegangen, dass sich das Vorhaben mit ausschließlich freien Mitteln besser trägt, als mit Förderdarlehen.\n\nNicht numerische oder negative Werte sind nicht zulässig."]
[36,"Berechnung",{"$f":"Daten!J62","v":"Zinssatz Restfinanzierung"},{"$f":"Daten!L62","v":true},{"$f":"Daten!M62","v":false},"MUSS-Feld\n\nBereich: \"Darlehen / laufende Aufwendungen\"\n\nBitte geben Sie den bereits bekannten bzw. angenommenen (marktüblichen) Zinssatz für die noch zu ermittelnde Freie Finanzierung der geförderten Wohnungen ein. Auch wenn aus heutiger Sicht bekannt sein sollte, dass eine Freie Finanzierung ggf. nicht erforderlich wird, müssen hier Konditionen eingegeben werden, da andernfalls eine Berechnung des Förderdarlehens nicht erfolgen kann.\n\nBitte achten Sie auch darauf, dass der Kapitaldienst der freien Finanzierung HÖHER sein muss, als der des Förderdarlehens.\n\nDies ist darin begründet, dass die Höhe des Förderdarlehens u. a. von der Objektwirtschaftlichkeit abhängig ist. Sollte diese zu hoch sein, muss das Förderdarlehen anteilig gekürzt und die notwendige Restfinanzierung erhöht werden, bis sich die Objektwirtschaftlichkeit soweit \"verschlechtert\", dass sich ein vorgegebener Wert ergibt. Sofern die Konditionen des Restdarlehens gleich oder besser sind, als die des Förderdarlehens, kann hier eine solche Berechnung nicht durchgeführt werden. In diesem Fall wird davon ausgegangen, dass sich das Vorhaben mit ausschließlich freien Mitteln besser trägt, als mit Förderdarlehen.\n\nNicht numerische oder negative Werte sind nicht zulässig."]
[37,"Berechnung",{"$f":"Daten!J63","v":"Tilgungssatz Restfinanzierung"},{"$f":"Daten!L63","v":true},{"$f":"Daten!M63","v":false},"MUSS-Feld\n\nBereich: \"Darlehen / laufende Aufwendungen\"\n\nBitte geben Sie den bereits bekannten bzw. angenommenen (marktüblichen) Tilgungssatz für die noch zu ermittelnde Freie Finanzierung der geförderten Wohnungen ein. Auch wenn aus heutiger Sicht bekannt sein sollte, dass eine Freie Finanzierung ggf. nicht erforderlich wird, müssen hier Konditionen eingegeben werden, da andernfalls eine Berechnung des Förderdarlehens nicht erfolgen kann.\n\nBitte achten Sie auch darauf, dass der Kapitaldienst der freien Finanzierung HÖHER sein muss, als der des Förderdarlehens.\n\nDies ist darin begründet, dass die Höhe des Förderdarlehens u. a. von der Objektwirtschaftlichkeit abhängig ist. Sollte diese zu hoch sein, muss das Förderdarlehen anteilig gekürzt und die notwendige Restfinanzierung erhöht werden, bis sich die Objektwirtschaftlichkeit soweit \"verschlechtert\", dass sich ein vorgegebener Wert ergibt. Sofern die Konditionen des Restdarlehens gleich oder besser sind, als die des Förderdarlehens, kann hier eine solche Berechnung nicht durchgeführt werden. In diesem Fall wird davon ausgegangen, dass sich das Vorhaben mit ausschließlich freien Mitteln besser trägt, als mit Förderdarlehen.\n\nNicht numerische oder negative Werte sind nicht zulässig."]
[38,"Berechnung",{"$f":"Daten!J65","v":"Aufzug vorhanden"},{"$f":"Daten!L65","v":false},{"$f":"Daten!M65","v":false},"MUSS-Feld\n\nBereich: \"Darlehen/laufende Aufwendungen\"\n\nBitte geben Sie an, ob sich im Förderobjekt mindestens ein Aufzug befindet oder nicht. Folgende Schreibweisen sind zulässig:\n\n\"Ja\", \"Nein\".\n\nGroß-/Kleinschreibung ist hierbei unerheblich. Alternativ können Sie auch den Wertepfeil rechts neben dem Eingabefeld benutzen und die entsprechende Angabe auswählen.\n\nDiese Angabe hat Einfluss auf die Bewirtschaftungskosten und ist zwingend zu beantworten."]
[39,"Berechnung",{"$f":"Daten!J66","v":"Anzahl Stellplätze"},{"$f":"Daten!L66","v":true},{"$f":"Daten!M66","v":true},"KANN-Feld\n\nBereich: \"Darlehen/laufende Aufwendungen\"\n\nBitte geben Sie hier die Anzahl der (nicht überdachten) Stellplätze, die dem zu fördernden Objekt zuzuordnen sind, in der richtigen Form ein. Sind keine Stellplätze vorhanden, kann dieses Feld leer bleiben, sofern keine sostigen Einnahmen aus dem Objekt hinterlegt wurden.\n\nNicht numerische oder negative Werte sind nicht zulässig."]
[40,"Berechnung","Anzahl Garagen / Carports",{"$f":"Daten!L67","v":true},{"$f":"Daten!M67","v":true},"KANN-Feld\n\nBereich: \"Darlehen/laufende Aufwendungen\"\n\nBitte geben Sie hier die Anzahl der Garagen bzw. überdachten Stellplätze (Carports), die dem zu fördernden Objekt zuzuordnen sind, in der richtigen Form ein. Sind keine Garagen oder Carports vorhanden, kann dieses Feld leer bleiben, sofern keine sonstigen Einnahmen aus dem Objekt hinterlegt wurden.\n\nNicht numerische oder negative Werte sind nicht zulässig."]
[41,"Berechnung",{"$f":"Daten!J69","v":"Nichtverfügbarkeit Deckungsbeitrag"},{"$f":"Daten!L69","v":false},{"$f":"Daten!M69","v":false},"MUSS-Feld\n\nBereich: ''Objektwirtschaftlichkeit alt''\n\nHier ist auszuwählen, ob der Deckungsbeitrag des Förderobjektes vor Maßnahmebeginn bekannt ist und genutzt werden soll, oder ob statt dessen ein fiktiver Deckungsbeitrag auf Basis einer Rückrechnung der Mieteinnahmen nach Fertigstellung abzüglich einer unterstellten Modernisierungumlage verechnet und verwendet werden soll."]
[{"$f":"A41+1","v":40},"Berechnung",{"$f":"Daten!J70","v":"Objektwirtschaftlichkeit vor Maßnahmebeginn"},{"$f":"Daten!L70","v":false},{"$f":"Daten!M70","v":false},"MUSS-Feld\n\nBereich: ''Objektwirtschaftlichkeit alt''\n\nHier ist die ermittelte Objektwirtschaftlichkeit vor Maßnahmebeginn einzutragen. In der Regel wird zur Ermittlung der von der ILB zur Verfügung gestellte Vordruck \"Modernisierung und Instandsetzung von Wohnraum Übersicht zu den Einnahmen und Belastungen zum Zeitpunkt der Antragstellung'' verwendet. Diese Angabe ist erforderlich, da sich die Objektwirtschaftlichkeit nach Förderung nicht besser darstellen darf, als zuvor.\n\nNicht numerische oder negative Eingaben sind hier nicht zulässig."]

{"sheet":"Backups","index":6,"n_rows":122,"n_cols":16,"rows_kept":122,"cut":false,"hidden":true,"merged":[[2,3,2,5],[8,11,8,15],[3,6,4,6],[3,7,4,7],[8,2,8,9],[2,8,2,9],[5,8,7,9]]}
[]
[null,"Zwischenspeicherung von Datensätzen"]
[null,null,null,"Variablen I",null,null,"Verfügbarkeit?","Anzahl","Variablen II",null,"Belegt:",{"$f":"IF(SUMPRODUCT((L$11:L$112<>\"\")*1)>0,TRUE,FALSE)","v":false},{"$f":"IF(SUMPRODUCT((M$11:M$112<>\"\")*1)>0,TRUE,FALSE)","v":false},false,false,false]
[null,null,null,{"$f":"IF(G4=FALSE,0,MATCH(FALSE,L3:P3,0))","v":1},"Start:",{"$f":"ROW(B11)","v":11},{"$f":"IF(H4=5,FALSE,TRUE)","v":true},{"$f":"COUNTIF(L3:P3,TRUE)","v":0},"Spalte 1:",{"$f":"COLUMN(L3)","v":12},"Hinweis:"]
[null,null,null,{"$f":"COLUMN(K10)","v":11},"Ende:",{"$f":"COUNTA($B$11:$B$219)+F4-1","v":122},null,null,"Spalte 2:",{"$f":"COLUMN(P3)","v":16},"Timestamp:"]
[null,null,null,"-","-","-","-","-","Grunddaten …",null,"Änderungen?"]
[null,null,null,"-","-","-","-","-",null,null,"Mitarbeiterfreigabe?"]
[null,null,null,"-","-","-","-","-",null,null,"Vollsperrung?"]
[null,"Datenfeld","Zellenbezug",null,null,null,null,null,null,null,"Aktuelle Berechnung","Backup"]
[null,"Eingabefeld","Adresse","Länge","\"]\"","\"!\"","Blatt","Zelle","Formatierung?","Restoration?","Werte","I","II","III","IV","V"]
[null,"Maßnahmeart",{"$f":"CELL(\"adresse\",Daten!$M$83)","v":"'[A3_MWB-Foerderrechner_LBV.xlsm]Daten'!$M$83"},{"$f":"LEN(C11)","v":45},{"$f":"FIND(\"]\",C11)","v":33},{"$f":"FIND(\"!\",C11)","v":40},{"$f":"MID(C11,E11+1,F11-E11-2)","v":"Daten"},{"$f":"MID(C11,FIND(\"!\",C11)+1,D11-F11)","v":"$M$83"},false,true,{"$f":"IF(Daten!M83=\"\",\"-\",Daten!M83)","v":3}]
[null,"Maßnahmeklasse"]
[null,"Antragsnummer",{"$f":"CELL(\"adresse\",Berechnung!V15)","v":"'[A3_MWB-Foerderrechner_LBV.xlsm]Berechnung'!$V$15"},{"$f":"LEN(C13)","v":50},{"$f":"FIND(\"]\",C13)","v":33},{"$f":"FIND(\"!\",C13)","v":45},{"$f":"MID(C13,E13+1,F13-E13-2)","v":"Berechnung"},{"$f":"MID(C13,FIND(\"!\",C13)+1,D13-F13)","v":"$V$15"},false,true,{"$f":"IF(Berechnung!V15=\"\",\"-\",Berechnung!V15)","v":"-"}]
[null,"Name",{"$f":"CELL(\"adresse\",Berechnung!$G$14)","v":"'[A3_MWB-Foerderrechner_LBV.xlsm]Berechnung'!$G$14"},50,33,45,"Berechnung","$G$14",false,true,{"$f":"IF(Berechnung!G14=\"\",\"-\",Berechnung!G14)","v":"-"}]
[null,"Objektanschrift",{"$f":"CELL(\"adresse\",Berechnung!$G$15)","v":"'[A3_MWB-Foerderrechner_LBV.xlsm]Berechnung'!$G$15"},50,33,45,"Berechnung","$G$15",false,true,{"$f":"IF(Berechnung!G15=\"\",\"-\",Berechnung!G15)","v":"-"}]
[null,"Gemeinde gemäß Anlage 3 der RL",{"$f":"CELL(\"adresse\",Berechnung!$K$17)","v":"'[A3_MWB-Foerderrechner_LBV.xlsm]Berechnung'!$K$17"},50,33,45,"Berechnung","$K$17",false,true,{"$f":"IF(Berechnung!K17=\"\",\"-\",Berechnung!K17)","v":"-"}]
[null,"Anzahl der Wohneinheiten (WE)",{"$f":"CELL(\"adresse\",Berechnung!$K$18)","v":"'[A3_MWB-Foerderrechner_LBV.xlsm]Berechnung'!$K$18"},50,33,45,"Berechnung","$K$18",false,true,{"$f":"IF(Berechnung!K18=\"\",\"-\",Berechnung!K18)","v":"-"}]
[null,"Gesamtwohnfläche",{"$f":"CELL(\"adresse\",Berechnung!$K$19)","v":"'[A3_MWB-Foerderrechner_LBV.xlsm]Berechnung'!$K$19"},50,33,45,"Berechnung","$K$19",false,true,{"$f":"IF(Berechnung!K19=\"\",\"-\",Berechnung!K19)","v":"-"}]
[null,"Grundstücksgröße",{"$f":"CELL(\"adresse\",Berechnung!$K$20)","v":"'[A3_MWB-Foerderrechner_LBV.xlsm]Berechnung'!$K$20"},50,33,45,"Berechnung","$K$20",false,true,{"$f":"IF(Berechnung!K20=\"\",\"-\",Berechnung!K20)","v":"-"}]
[null,"Inanspruchnaahme Aufzugsförderung",{"$f":"CELL(\"adresse\",Berechnung!$K$21)","v":"'[A3_MWB-Foerderrechner_LBV.xlsm]Berechnung'!$K$21"},50,33,45,"Berechnung","$K$21",false,true,{"$f":"IF(Berechnung!K21=\"\",\"-\",Berechnung!K21)","v":"-"}]
[null,"Erreichter Standard \"Klimabaustein\"",{"$f":"CELL(\"adresse\",Berechnung!$K$22)","v":"'[A3_MWB-Foerderrechner_LBV.xlsm]Berechnung'!$K$22"},{"$f":"LEN(C21)","v":50},{"$f":"FIND(\"]\",C21)","v":33},{"$f":"FIND(\"!\",C21)","v":45},{"$f":"MID(C21,E21+1,F21-E21-2)","v":"Berechnung"},{"$f":"MID(C21,FIND(\"!\",C21)+1,D21-F21)","v":"$K$22"},false,true,{"$f":"IF(Berechnung!K22=\"\",\"-\",Berechnung!K22)","v":"-"}]
[null,"Fördergegenstand \"Klimabaustein\"",{"$f":"CELL(\"adresse\",Berechnung!$Q$22)","v":"'[A3_MWB-Foerderrechner_LBV.xlsm]Berechnung'!$Q$22"},{"$f":"LEN(C22)","v":50},{"$f":"FIND(\"]\",C22)","v":33},{"$f":"FIND(\"!\",C22)","v":45},{"$f":"MID(C22,E22+1,F22-E22-2)","v":"Berechnung"},{"$f":"MID(C22,FIND(\"!\",C22)+1,D22-F22)","v":"$Q$22"},false,true,{"$f":"IF(Berechnung!Q22=\"\",\"-\",Berechnung!Q22)","v":"-"}]
[null,"Quote für Bindungen in 1. EK",{"$f":"CELL(\"adresse\",Berechnung!$O$21)","v":"'[A3_MWB-Foerderrechner_LBV.xlsm]Berechnung'!$O$21"},{"$f":"LEN(C23)","v":50},{"$f":"FIND(\"]\",C23)","v":33},{"$f":"FIND(\"!\",C23)","v":45},{"$f":"MID(C23,E23+1,F23-E23-2)","v":"Berechnung"},{"$f":"MID(C23,FIND(\"!\",C23)+1,D23-F23)","v":"$O$21"},false,true,{"$f":"IF(Berechnung!O21=\"\",\"-\",Berechnung!O21)","v":45}]
[null,"Quote für Bindungen in 2. EK",{"$f":"CELL(\"adresse\",Berechnung!$S$21)","v":"'[A3_MWB-Foerderrechner_LBV.xlsm]Berechnung'!$S$21"},50,33,45,"Berechnung","$S$21",false,true,{"$f":"IF(Berechnung!S21=\"\",\"-\",Berechnung!S21)","v":30}]
[null,"WE für 1. EK-Grenze",{"$f":"CELL(\"adresse\",Berechnung!$J$27)","v":"'[A3_MWB-Foerderrechner_LBV.xlsm]Berechnung'!$J$27"},50,33,45,"Berechnung","$J$27",false,true,{"$f":"IF(Berechnung!J27=\"\",\"-\",Berechnung!J27)","v":"-"}]
[null,"WE für 2. EK-Grenze",{"$f":"CELL(\"adresse\",Berechnung!$J$28)","v":"'[A3_MWB-Foerderrechner_LBV.xlsm]Berechnung'!$J$28"},50,33,45,"Berechnung","$J$28",false,true,{"$f":"IF(Berechnung!J28=\"\",\"-\",Berechnung!J28)","v":"-"}]
[null,"WE nicht belegungsgebunden",{"$f":"CELL(\"adresse\",Berechnung!$J$29)","v":"'[A3_MWB-Foerderrechner_LBV.xlsm]Berechnung'!$J$29"},50,33,45,"Berechnung","$J$29",false,true,{"$f":"IF(Berechnung!J29=\"\",\"-\",Berechnung!J29)","v":"-"}]
[null,"Wohnfläche für 1. EK-Grenze",{"$f":"CELL(\"adresse\",Berechnung!L27)","v":"'[A3_MWB-Foerderrechner_LBV.xlsm]Berechnung'!$L$27"},50,{"$f":"FIND(\"]\",C28)","v":33},{"$f":"FIND(\"!\",C28)","v":45},{"$f":"MID(C28,E28+1,F28-E28-2)","v":"Berechnung"},{"$f":"MID(C28,FIND(\"!\",C28)+1,D28-F28)","v":"$L$27"},false,true,{"$f":"IF(Berechnung!L27=\"\",\"-\",Berechnung!L27)","v":"-"}]
[null,"Wohnfläche für 2. EK-Grenze",{"$f":"CELL(\"adresse\",Berechnung!L28)","v":"'[A3_MWB-Foerderrechner_LBV.xlsm]Berechnung'!$L$28"},50,33,45,"Berechnung","$L$28",false,true,{"$f":"IF(Berechnung!L28=\"\",\"-\",Berechnung!L28)","v":"-"}]
[null,"Wohnfläche nicht belegungsgebunden",{"$f":"CELL(\"adresse\",Berechnung!L29)","v":"'[A3_MWB-Foerderrechner_LBV.xlsm]Berechnung'!$L$29"},50,33,45,"Berechnung","$L$29",false,true,{"$f":"IF(Berechnung!L29=\"\",\"-\",Berechnung!L29)","v":"-"}]
[null,"Mit gefördertem Aufzug erreichbare WE",{"$f":"CELL(\"adresse\",Berechnung!$J$34)","v":"'[A3_MWB-Foerderrechner_LBV.xlsm]Berechnung'!$J$34"},50,33,45,"Berechnung","$J$34",false,true,{"$f":"IF(Berechnung!J34=\"\",\"-\",Berechnung!J34)","v":"-"}]
[null,"Davon durch Aufzug barrierefrei erreichbare WE",{"$f":"CELL(\"adresse\",Berechnung!$J$35)","v":"'[A3_MWB-Foerderrechner_LBV.xlsm]Berechnung'!$J$35"},50,33,45,"Berechnung","$J$35",false,true,{"$f":"IF(Berechnung!J35=\"\",\"-\",Berechnung!J35)","v":"-"}]
[null,"Mit gefördertem Aufzug erreichbare Wohnfläche",{"$f":"CELL(\"adresse\",Berechnung!$L$34)","v":"'[A3_MWB-Foerderrechner_LBV.xlsm]Berechnung'!$L$34"},{"$f":"LEN(C33)","v":50},{"$f":"FIND(\"]\",C33)","v":33},{"$f":"FIND(\"!\",C33)","v":45},{"$f":"MID(C33,E33+1,F33-E33-2)","v":"Berechnung"},{"$f":"MID(C33,FIND(\"!\",C33)+1,D33-F33)","v":"$L$34"},false,true,{"$f":"IF(Berechnung!L34=\"\",\"-\",Berechnung!L34)","v":"-"}]
[null,"Davon durch Aufzug barrierefrei erreichbare Wohnfläche",{"$f":"CELL(\"adresse\",Berechnung!$L$35)","v":"'[A3_MWB-Foerderrechner_LBV.xlsm]Berechnung'!$L$35"},50,33,45,"Berechnung","$L$35",false,true,{"$f":"IF(Berechnung!L35=\"\",\"-\",Berechnung!L35)","v":"-"}]
[null,"Miethöhe für WE 1. EK-Grenze",{"$f":"CELL(\"adresse\",Berechnung!V27)","v":"'[A3_MWB-Foerderrechner_LBV.xlsm]Berechnung'!$V$27"},50,33,45,"Berechnung","$V$27",false,true,{"$f":"IF(Berechnung!V27=\"\",\"-\",Berechnung!V27)","v":"-"}]
[null,"Miethöhe für WE 2. EK-Grenze",{"$f":"CELL(\"adresse\",Berechnung!V28)","v":"'[A3_MWB-Foerderrechner_LBV.xlsm]Berechnung'!$V$28"},50,33,45,"Berechnung","$V$28",false,true,{"$f":"IF(Berechnung!V28=\"\",\"-\",Berechnung!V28)","v":"-"}]
[null,"Miethöhe für WE nicht belegungsgebunden",{"$f":"CELL(\"adresse\",Berechnung!V29)","v":"'[A3_MWB-Foerderrechner_LBV.xlsm]Berechnung'!$V$29"},50,33,45,"Berechnung","$V$29",false,true,{"$f":"IF(Berechnung!V29=\"\",\"-\",Berechnung!V29)","v":"-"}]
[null,"Sonstige Einnahmen",{"$f":"CELL(\"adresse\",Berechnung!V31)","v":"'[A3_MWB-Foerderrechner_LBV.xlsm]Berechnung'!$V$31"},50,{"$f":"FIND(\"]\",C38)","v":33},{"$f":"FIND(\"!\",C38)","v":45},{"$f":"MID(C38,E38+1,F38-E38-2)","v":"Berechnung"},{"$f":"MID(C38,FIND(\"!\",C38)+1,D38-F38)","v":"$V$31"},false,true,{"$f":"IF(Berechnung!V31=\"\",\"-\",Berechnung!V31)","v":"-"}]
[null,"Grundstückskosten",{"$f":"CELL(\"adresse\",Berechnung!I40)","v":"'[A3_MWB-Foerderrechner_LBV.xlsm]Berechnung'!$I$40"},50,{"$f":"FIND(\"]\",C39)","v":33},{"$f":"FIND(\"!\",C39)","v":45},{"$f":"MID(C39,E39+1,F39-E39-2)","v":"Berechnung"},{"$f":"MID(C39,FIND(\"!\",C39)+1,D39-F39)","v":"$I$40"},false,true,{"$f":"IF(Berechnung!I40=\"\",\"-\",Berechnung!I40)","v":"-"}]
[null,"Erwerbskosten",{"$f":"CELL(\"adresse\",Berechnung!I41)","v":"'[A3_MWB-Foerderrechner_LBV.xlsm]Berechnung'!$I$41"},50,33,45,"Berechnung","$I$41",false,true,{"$f":"IF(Berechnung!I41=\"\",\"-\",Berechnung!I41)","v":"-"}]
[null,"Baukosten",{"$f":"CELL(\"adresse\",Berechnung!I42)","v":"'[A3_MWB-Foerderrechner_LBV.xlsm]Berechnung'!$I$42"},50,33,45,"Berechnung","$I$42",false,true,{"$f":"IF(Berechnung!I42=\"\",\"-\",Berechnung!I42)","v":"-"}]
[null,"Baunebenkosten",{"$f":"CELL(\"adresse\",Berechnung!I43)","v":"'[A3_MWB-Foerderrechner_LBV.xlsm]Berechnung'!$I$43"},50,33,45,"Berechnung","$I$43",false,true,{"$f":"IF(Berechnung!I43=\"\",\"-\",Berechnung!I43)","v":"-"}]
[null,"Eigenkapital",{"$f":"CELL(\"adresse\",Berechnung!V40)","v":"'[A3_MWB-Foerderrechner_LBV.xlsm]Berechnung'!$V$40"},50,{"$f":"FIND(\"]\",C43)","v":33},{"$f":"FIND(\"!\",C43)","v":45},{"$f":"MID(C43,E43+1,F43-E43-2)","v":"Berechnung"},{"$f":"MID(C43,FIND(\"!\",C43)+1,D43-F43)","v":"$V$40"},false,true,{"$f":"IF(Berechnung!V40=\"\",\"-\",Berechnung!V40)","v":0}]
[null,"Selbsthilfe",{"$f":"CELL(\"adresse\",Berechnung!V41)","v":"'[A3_MWB-Foerderrechner_LBV.xlsm]Berechnung'!$V$41"},50,33,45,"Berechnung","$V$41",false,true,{"$f":"IF(Berechnung!V41=\"\",\"-\",Berechnung!V41)","v":"-"}]
[null,"Wert des Baugrundstücks",{"$f":"CELL(\"adresse\",Berechnung!V42)","v":"'[A3_MWB-Foerderrechner_LBV.xlsm]Berechnung'!$V$42"},50,33,45,"Berechnung","$V$42",false,true,{"$f":"IF(Berechnung!V42=\"\",\"-\",Berechnung!V42)","v":"-"}]
[null,"Wert vorhandener Gebäudeteile",{"$f":"CELL(\"adresse\",Berechnung!V43)","v":"'[A3_MWB-Foerderrechner_LBV.xlsm]Berechnung'!$V$43"},50,33,45,"Berechnung","$V$43",false,true,{"$f":"IF(Berechnung!V43=\"\",\"-\",Berechnung!V43)","v":"-"}]
[null,"Name Sonstiger Zuschuss I",{"$f":"CELL(\"adresse\",Berechnung!P48)","v":"'[A3_MWB-Foerderrechner_LBV.xlsm]Berechnung'!$P$48"},{"$f":"LEN(C47)","v":50},{"$f":"FIND(\"]\",C47)","v":33},{"$f":"FIND(\"!\",C47)","v":45},{"$f":"MID(C47,E47+1,F47-E47-2)","v":"Berechnung"},{"$f":"MID(C47,FIND(\"!\",C47)+1,D47-F47)","v":"$P$48"},true,true,{"$f":"IF(Berechnung!P48=\"\",\"-\",Berechnung!P48)","v":"Sonstiger Zuschuss I (bitte benennen):"}]
[null,"Betrag Sonstiger Zuschuss I",{"$f":"CELL(\"adresse\",Berechnung!V48)","v":"'[A3_MWB-Foerderrechner_LBV.xlsm]Berechnung'!$V$48"},50,33,45,"Berechnung","$V$48",false,true,{"$f":"IF(Berechnung!V48=\"\",\"-\",Berechnung!V48)","v":"-"}]
[null,"Name Sonstiger Zuschuss II",{"$f":"CELL(\"adresse\",Berechnung!P49)","v":"'[A3_MWB-Foerderrechner_LBV.xlsm]Berechnung'!$P$49"},50,33,45,"Berechnung","$P$49",true,true,{"$f":"IF(Berechnung!P49=\"\",\"-\",Berechnung!P49)","v":"Sonstiger Zuschuss II (bitte benennen):"}]
[null,"Betrag Sonstiger Zuschuss II",{"$f":"CELL(\"adresse\",Berechnung!V49)","v":"'[A3_MWB-Foerderrechner_LBV.xlsm]Berechnung'!$V$49"},50,33,45,"Berechnung","$V$49",false,true,{"$f":"IF(Berechnung!V49=\"\",\"-\",Berechnung!V49)","v":"-"}]
[null,"Kapitaldienst aus bereits bestehenden Finanzierungen",{"$f":"CELL(\"adresse\",Berechnung!V58)","v":"'[A3_MWB-Foerderrechner_LBV.xlsm]Berechnung'!$V$58"},50,33,45,"Berechnung","$V$58",false,true,{"$f":"IF(Berechnung!V58=\"\",\"-\",Berechnung!V58)","v":"-"}]
[null,"Zinssatz Förderdarlehen",{"$f":"CELL(\"adresse\",Berechnung!Q59)","v":"'[A3_MWB-Foerderrechner_LBV.xlsm]Berechnung'!$Q$59"},{"$f":"LEN(C52)","v":50},{"$f":"FIND(\"]\",C52)","v":33},{"$f":"FIND(\"!\",C52)","v":45},{"$f":"MID(C52,E52+1,F52-E52-2)","v":"Berechnung"},{"$f":"MID(C52,FIND(\"!\",C52)+1,D52-F52)","v":"$Q$59"},false,false,{"$f":"IF(Berechnung!Q59=\"\",\"-\",Berechnung!Q59)","v":0.5}]
[null,"Tilgungssatz Förderdarlehen",{"$f":"CELL(\"adresse\",Berechnung!S59)","v":"'[A3_MWB-Foerderrechner_LBV.xlsm]Berechnung'!$S$59"},50,33,45,"Berechnung","$S$59",false,true,{"$f":"IF(Berechnung!S59=\"\",\"-\",Berechnung!S59)","v":2}]
[null,"Name Sonstige vorgesehene Finanzierung",{"$f":"CELL(\"adresse\",Berechnung!D62)","v":"'[A3_MWB-Foerderrechner_LBV.xlsm]Berechnung'!$D$62"},50,33,45,"Berechnung","$D$62",true,true,{"$f":"IF(Berechnung!D62=\"\",\"-\",Berechnung!D62)","v":"-"}]
[null,"Betrag Sonstige vorgesehene Finanzierung",{"$f":"CELL(\"adresse\",Berechnung!L62)","v":"'[A3_MWB-Foerderrechner_LBV.xlsm]Berechnung'!$L$62"},50,33,45,"Berechnung","$L$62",false,true,{"$f":"IF(Berechnung!L62=\"\",\"-\",Berechnung!L62)","v":"-"}]
[null,"Zinssatz Sonstige vorgesehene Finanzierung",{"$f":"CELL(\"adresse\",Berechnung!Q62)","v":"'[A3_MWB-Foerderrechner_LBV.xlsm]Berechnung'!$Q$62"},50,33,45,"Berechnung","$Q$62",false,true,{"$f":"IF(Berechnung!Q62=\"\",\"-\",Berechnung!Q62)","v":"-"}]
[null,"Tilgungssatz Sonstige vorgesehene Finanzierung",{"$f":"CELL(\"adresse\",Berechnung!S62)","v":"'[A3_MWB-Foerderrechner_LBV.xlsm]Berechnung'!$S$62"},50,33,45,"Berechnung","$S$62",false,true,{"$f":"IF(Berechnung!S62=\"\",\"-\",Berechnung!S62)","v":"-"}]
[null,"Zinssatz Restfinanzierung",{"$f":"CELL(\"adresse\",Berechnung!Q63)","v":"'[A3_MWB-Foerderrechner_LBV.xlsm]Berechnung'!$Q$63"},50,33,45,"Berechnung","$Q$63",false,true,{"$f":"IF(Berechnung!Q63=\"\",\"-\",Berechnung!Q63)","v":"-"}]
[null,"Tilgungssatz Restfinanzierung",{"$f":"CELL(\"adresse\",Berechnung!S63)","v":"'[A3_MWB-Foerderrechner_LBV.xlsm]Berechnung'!$S$63"},50,33,45,"Berechnung","$S$63",false,true,{"$f":"IF(Berechnung!S63=\"\",\"-\",Berechnung!S63)","v":"-"}]
[null,"Bewirtschaftungskosten",{"$f":"CELL(\"adresse\",Berechnung!G67)","v":"'[A3_MWB-Foerderrechner_LBV.xlsm]Berechnung'!$G$67"},50,33,45,"Berechnung","$G$67",false,true,{"$f":"IF(Berechnung!G67=\"\",\"-\",Berechnung!G67)","v":"Aktuell gültig"}]
[null,"Anzahl Stellplätze",{"$f":"CELL(\"adresse\",Berechnung!G68)","v":"'[A3_MWB-Foerderrechner_LBV.xlsm]Berechnung'!$G$68"},{"$f":"LEN(C61)","v":50},{"$f":"FIND(\"]\",C61)","v":33},{"$f":"FIND(\"!\",C61)","v":45},{"$f":"MID(C61,E61+1,F61-E61-2)","v":"Berechnung"},{"$f":"MID(C61,FIND(\"!\",C61)+1,D61-F61)","v":"$G$68"},false,true,{"$f":"IF(Berechnung!G68=\"\",\"-\",Berechnung!G68)","v":"-"}]
[null,"Anzahl Garagen / Carports",{"$f":"CELL(\"adresse\",Berechnung!G69)","v":"'[A3_MWB-Foerderrechner_LBV.xlsm]Berechnung'!$G$69"},50,33,45,"Berechnung","$G$69",false,true,{"$f":"IF(Berechnung!G69=\"\",\"-\",Berechnung!G69)","v":"-"}]
[null,"Aufzug vorhanden",{"$f":"CELL(\"adresse\",Berechnung!G70)","v":"'[A3_MWB-Foerderrechner_LBV.xlsm]Berechnung'!$G$70"},50,33,45,"Berechnung","$G$70",false,true,{"$f":"IF(Berechnung!G70=\"\",\"-\",Berechnung!G70)","v":"-"}]
[null,"Basis Eigenkapitalverzinsung",{"$f":"CELL(\"adresse\",Berechnung!V74)","v":"'[A3_MWB-Foerderrechner_LBV.xlsm]Berechnung'!$V$74"},50,33,45,"Berechnung","$V$74",false,true,{"$f":"IF(Berechnung!V74=\"\",\"-\",Berechnung!V74)","v":"-"}]
[null,"Nichtverfügbarkeit Deckungsbeitrag",{"$f":"CELL(\"adresse\",Berechnung!U83)","v":"'[A3_MWB-Foerderrechner_LBV.xlsm]Berechnung'!$U$83"},{"$f":"LEN(C65)","v":50},{"$f":"FIND(\"]\",C65)","v":33},{"$f":"FIND(\"!\",C65)","v":45},{"$f":"MID(C65,E65+1,F65-E65-2)","v":"Berechnung"},{"$f":"MID(C65,FIND(\"!\",C65)+1,D65-F65)","v":"$U$83"},false,true,{"$f":"IF(Berechnung!U83=\"\",\"-\",Berechnung!U83)","v":"Nein"}]
[null,"Objektwirtschaftlichkeit vor Maßnahmebeginn",{"$f":"CELL(\"adresse\",Berechnung!V84)","v":"'[A3_MWB-Foerderrechner_LBV.xlsm]Berechnung'!$V$84"},50,33,45,"Berechnung","$V$84",false,true,{"$f":"IF(Berechnung!V84=\"\",\"-\",Berechnung!V84)","v":"-"}]
[null,"Notwendige Restfinanzierung",{"$f":"CELL(\"adresse\",Berechnung!L63)","v":"'[A3_MWB-Foerderrechner_LBV.xlsm]Berechnung'!$L$63"},{"$f":"LEN(C67)","v":50},{"$f":"FIND(\"]\",C67)","v":33},{"$f":"FIND(\"!\",C67)","v":45},{"$f":"MID(C67,E67+1,F67-E67-2)","v":"Berechnung"},{"$f":"MID(C67,FIND(\"!\",C67)+1,D67-F67)","v":"$L$63"},false,false,{"$f":"Berechnung!L63","v":0}]
[null,"Baudarlehen I (Maßnahme)",{"$f":"CELL(\"adresse\",Daten!M143)","v":"'[A3_MWB-Foerderrechner_LBV.xlsm]Daten'!$M$143"},{"$f":"LEN(C68)","v":46},{"$f":"FIND(\"]\",C68)","v":33},{"$f":"FIND(\"!\",C68)","v":40},{"$f":"MID(C68,E68+1,F68-E68-2)","v":"Daten"},{"$f":"MID(C68,FIND(\"!\",C68)+1,D68-F68)","v":"$M$143"},false,false,{"$f":"Daten!M143","v":0}]
[null,"Baudarlehen II (Aufzug)",{"$f":"CELL(\"adresse\",Daten!M144)","v":"'[A3_MWB-Foerderrechner_LBV.xlsm]Daten'!$M$144"},46,33,40,"Daten","$M$144",false,false,{"$f":"Daten!M144","v":0}]
[null,"Baudarlehen III (Klimabaustein)",{"$f":"CELL(\"adresse\",Daten!M145)","v":"'[A3_MWB-Foerderrechner_LBV.xlsm]Daten'!$M$145"},46,33,40,"Daten","$M$145",false,false,{"$f":"Daten!M145","v":0}]
[null,"Förderzuschuss I (Bindung)",{"$f":"CELL(\"adresse\",Daten!M139)","v":"'[A3_MWB-Foerderrechner_LBV.xlsm]Daten'!$M$139"},46,33,40,"Daten","$M$139",false,false,{"$f":"Daten!M139","v":0}]
[null,"Förderzuschuss II (Aufzug)",{"$f":"CELL(\"adresse\",Daten!M140)","v":"'[A3_MWB-Foerderrechner_LBV.xlsm]Daten'!$M$140"},46,33,40,"Daten","$M$140",false,false,{"$f":"Daten!M140","v":0}]
[null,"Förderzuschuss III (Klimabaustein)",{"$f":"CELL(\"adresse\",Daten!M141)","v":"'[A3_MWB-Foerderrechner_LBV.xlsm]Daten'!$M$141"},46,33,40,"Daten","$M$141",false,false,{"$f":"Daten!M141","v":0}]
[null,"Kappung des Darlehens bei Förderung über Höchstförderung",{"$f":"CELL(\"adresse\",Grunddaten!H40)","v":"'[A3_MWB-Foerderrechner_LBV.xlsm]Grunddaten'!$H$40"},50,33,45,"Grunddaten","$H$40",false,{"$f":"IF(Grunddaten!$U$98=TRUE,TRUE,FALSE)","v":false},{"$f":"Grunddaten!H40","v":true}]
[null,"Höchstförderung Darlehen - Neubau, Umnutzung ohne Zuschuss",{"$f":"CELL(\"adresse\",Grunddaten!H41)","v":"'[A3_MWB-Foerderrechner_LBV.xlsm]Grunddaten'!$H$41"},{"$f":"LEN(C75)","v":50},{"$f":"FIND(\"]\",C75)","v":33},{"$f":"FIND(\"!\",C75)","v":45},{"$f":"MID(C75,E75+1,F75-E75-2)","v":"Grunddaten"},{"$f":"MID(C75,FIND(\"!\",C75)+1,D75-F75)","v":"$H$41"},false,{"$f":"$J$74","v":false},{"$f":"Grunddaten!H41","v":3000}]
[null,"Höchstförderung Darlehen - Neubau, Umnutzung mit Zuschuss",{"$f":"CELL(\"adresse\",Grunddaten!H42)","v":"'[A3_MWB-Foerderrechner_LBV.xlsm]Grunddaten'!$H$42"},50,33,45,"Grunddaten","$H$42",false,false,{"$f":"Grunddaten!H42","v":3000}]
[null,"Höchstförderung Darlehen - ModInst",{"$f":"CELL(\"adresse\",Grunddaten!H43)","v":"'[A3_MWB-Foerderrechner_LBV.xlsm]Grunddaten'!$H$43"},50,33,45,"Grunddaten","$H$43",false,false,{"$f":"Grunddaten!H43","v":2000}]
[null,"Höchstförderung Darlehen - Aufzug (nur informativ)",{"$f":"CELL(\"adresse\",Grunddaten!H44)","v":"'[A3_MWB-Foerderrechner_LBV.xlsm]Grunddaten'!$H$44"},50,33,45,"Grunddaten","$H$44",false,false,{"$f":"Grunddaten!H44","v":25000}]
[null,"Höchstförderung Zuschuss - Grundförderung (Neubau / Umnutzung)",{"$f":"CELL(\"adresse\",Grunddaten!H45)","v":"'[A3_MWB-Foerderrechner_LBV.xlsm]Grunddaten'!$H$45"},{"$f":"LEN(C79)","v":50},{"$f":"FIND(\"]\",C79)","v":33},{"$f":"FIND(\"!\",C79)","v":45},{"$f":"MID(C79,E79+1,F79-E79-2)","v":"Grunddaten"},{"$f":"MID(C79,FIND(\"!\",C79)+1,D79-F79)","v":"$H$45"},false,false,{"$f":"Grunddaten!H45","v":500}]
[null,"Höchstförderung Zuschuss - Grundförderung (ModInst)",{"$f":"CELL(\"adresse\",Grunddaten!H46)","v":"'[A3_MWB-Foerderrechner_LBV.xlsm]Grunddaten'!$H$46"},50,33,45,"Grunddaten","$H$46",false,false,{"$f":"Grunddaten!H46","v":300}]
[null,"Höchstförderung Zuschuss - Verlängerung Belegungsbindung",{"$f":"CELL(\"adresse\",Grunddaten!H47)","v":"'[A3_MWB-Foerderrechner_LBV.xlsm]Grunddaten'!$H$47"},50,33,45,"Grunddaten","$H$47",false,false,{"$f":"Grunddaten!H47","v":200}]
[null,"Maximale Überdeckung p. a. (nur Neubau und Umnutzung)",{"$f":"CELL(\"adresse\",Grunddaten!H48)","v":"'[A3_MWB-Foerderrechner_LBV.xlsm]Grunddaten'!$H$48"},50,33,45,"Grunddaten","$H$48",false,false,{"$f":"Grunddaten!H48","v":120}]
[null,"Zuschuss für NICHT barrierefrei erreichbare Wohneinheiten",{"$f":"CELL(\"adresse\",Grunddaten!H50)","v":"'[A3_MWB-Foerderrechner_LBV.xlsm]Grunddaten'!$H$50"},50,33,45,"Grunddaten","$H$50",false,false,{"$f":"Grunddaten!H50","v":5000}]
[null,"Darlehen für NICHT barrierefrei erreichbare Wohneinheiten",{"$f":"CELL(\"adresse\",Grunddaten!H51)","v":"'[A3_MWB-Foerderrechner_LBV.xlsm]Grunddaten'!$H$51"},50,33,45,"Grunddaten","$H$51",false,false,{"$f":"Grunddaten!H51","v":20000}]
[null,"Zuschuss für barrierefrei erreichbare Wohneinheiten",{"$f":"CELL(\"adresse\",Grunddaten!H52)","v":"'[A3_MWB-Foerderrechner_LBV.xlsm]Grunddaten'!$H$52"},{"$f":"LEN(C85)","v":50},{"$f":"FIND(\"]\",C85)","v":33},{"$f":"FIND(\"!\",C85)","v":45},"Grunddaten","$H$52",false,false,{"$f":"Grunddaten!H52","v":10000}]
[null,"Darlehen für barrierefrei erreichbare Wohneinheiten",{"$f":"CELL(\"adresse\",Grunddaten!H53)","v":"'[A3_MWB-Foerderrechner_LBV.xlsm]Grunddaten'!$H$53"},50,33,45,"Grunddaten","$H$53",false,false,{"$f":"Grunddaten!H53","v":15000}]
[null,"Zuschuss pro m² für Wohnfläche mit erreichten Standard",{"$f":"CELL(\"adresse\",Grunddaten!H55)","v":"'[A3_MWB-Foerderrechner_LBV.xlsm]Grunddaten'!$H$55"},50,33,45,"Grunddaten","$H$55",false,false,{"$f":"Grunddaten!H55","v":300}]
[null,"Zinssatz bzw. LVKB Förderdarlehen",{"$f":"CELL(\"adresse\",Grunddaten!H57)","v":"'[A3_MWB-Foerderrechner_LBV.xlsm]Grunddaten'!$H$57"},50,33,45,"Grunddaten","$H$57",false,false,{"$f":"Grunddaten!H57","v":0.5}]
[null,"Tilgungssatz Förderdarlehen",{"$f":"CELL(\"adresse\",Grunddaten!H58)","v":"'[A3_MWB-Foerderrechner_LBV.xlsm]Grunddaten'!$H$58"},50,33,45,"Grunddaten","$H$58",false,false,{"$f":"Grunddaten!H58","v":2}]
[null,"Maximale zulässige Annuität bei (deutlich) erhöhtem Einsatz von Eigenmitteln",{"$f":"CELL(\"adresse\",Grunddaten!H59)","v":"'[A3_MWB-Foerderrechner_LBV.xlsm]Grunddaten'!$H$59"},{"$f":"LEN(C90)","v":50},{"$f":"FIND(\"]\",C90)","v":33},{"$f":"FIND(\"!\",C90)","v":45},{"$f":"MID(C90,E90+1,F90-E90-2)","v":"Grunddaten"},{"$f":"MID(C90,FIND(\"!\",C90)+1,D90-F90)","v":"$H$59"},false,false,{"$f":"Grunddaten!H59","v":5}]
[null,"Mindesteigenleistungen Neubau / Umnutzung",{"$f":"CELL(\"adresse\",Grunddaten!H61)","v":"'[A3_MWB-Foerderrechner_LBV.xlsm]Grunddaten'!$H$61"},50,33,45,"Grunddaten","$H$61",false,false,{"$f":"Grunddaten!H65","v":100}]
[null,"Mindesteigenleistungen Mod / Inst",{"$f":"CELL(\"adresse\",Grunddaten!H62)","v":"'[A3_MWB-Foerderrechner_LBV.xlsm]Grunddaten'!$H$62"},50,33,45,"Grunddaten","$H$62",false,false,{"$f":"Grunddaten!H66","v":100}]
[null,"Mindesteigenleistungen Solo-Aufzug",{"$f":"CELL(\"adresse\",Grunddaten!H63)","v":"'[A3_MWB-Foerderrechner_LBV.xlsm]Grunddaten'!$H$63"},50,33,45,"Grunddaten","$H$63",false,false,{"$f":"Grunddaten!H67","v":100}]
[null,"BB Neubau sowie Umnutzung / Wiederherstellung",{"$f":"CELL(\"adresse\",Grunddaten!H65)","v":"'[A3_MWB-Foerderrechner_LBV.xlsm]Grunddaten'!$H$65"},50,33,45,"Grunddaten","$H$65",false,false,{"$f":"Grunddaten!H65","v":100}]
[null,"BB Mod / Inst, wenn BV in Gemeinde gem. Anl. 2 der RL",{"$f":"CELL(\"adresse\",Grunddaten!H66)","v":"'[A3_MWB-Foerderrechner_LBV.xlsm]Grunddaten'!$H$66"},50,33,45,"Grunddaten","$H$66",false,false,{"$f":"Grunddaten!H66","v":100}]
[null,"BB Mod / Inst, wenn BV in übriger Gemeinde",{"$f":"CELL(\"adresse\",Grunddaten!H67)","v":"'[A3_MWB-Foerderrechner_LBV.xlsm]Grunddaten'!$H$67"},50,33,45,"Grunddaten","$H$67",false,false,{"$f":"Grunddaten!H67","v":100}]
[null,"BB Solo-Förderung Aufzüge",{"$f":"CELL(\"adresse\",Grunddaten!H68)","v":"'[A3_MWB-Foerderrechner_LBV.xlsm]Grunddaten'!$H$68"},{"$f":"LEN(C97)","v":50},{"$f":"FIND(\"]\",C97)","v":33},{"$f":"FIND(\"!\",C97)","v":45},{"$f":"MID(C97,E97+1,F97-E97-2)","v":"Grunddaten"},{"$f":"MID(C97,FIND(\"!\",C97)+1,D97-F97)","v":"$H$68"},false,false,{"$f":"Grunddaten!H68","v":100}]
[null,"BB davon 1. EK-Grenze (Minimum)",{"$f":"CELL(\"adresse\",Grunddaten!H69)","v":"'[A3_MWB-Foerderrechner_LBV.xlsm]Grunddaten'!$H$69"},50,33,45,"Grunddaten","$H$69",false,false,{"$f":"Grunddaten!H69","v":45}]
[null,"BB davon 2. EK-Grenze (Rest - anhängig von Bindungen in 1. EK-Grenze)",{"$f":"CELL(\"adresse\",Grunddaten!H70)","v":"'[A3_MWB-Foerderrechner_LBV.xlsm]Grunddaten'!$H$70"},50,33,45,"Grunddaten","$H$70",false,false,{"$f":"Grunddaten!H70","v":30}]
[null,"BB davon 3. EK-Grenze (Rest - anhängig von Bindungen in 2. EK-Grenze)",{"$f":"CELL(\"adresse\",Grunddaten!H71)","v":"'[A3_MWB-Foerderrechner_LBV.xlsm]Grunddaten'!$H$71"},{"$f":"LEN(C100)","v":50},{"$f":"FIND(\"]\",C100)","v":33},{"$f":"FIND(\"!\",C100)","v":45},{"$f":"MID(C100,E100+1,F100-E100-2)","v":"Grunddaten"},{"$f":"MID(C100,FIND(\"!\",C100)+1,D100-F100)","v":"$H$71"},false,false,{"$f":"Grunddaten!H71","v":25}]
[null,"Bindungsquoten müssen auch für die Anzahl der Wohneinheiten erfüllt werden",{"$f":"CELL(\"adresse\",Grunddaten!H72)","v":"'[A3_MWB-Foerderrechner_LBV.xlsm]Grunddaten'!$H$72"},{"$f":"LEN(C101)","v":50},{"$f":"FIND(\"]\",C101)","v":33},{"$f":"FIND(\"!\",C101)","v":45},{"$f":"MID(C101,E101+1,F101-E101-2)","v":"Grunddaten"},{"$f":"MID(C101,FIND(\"!\",C101)+1,D101-F101)","v":"$H$72"},false,false,{"$f":"Grunddaten!H72","v":true}]
[null,"Max. Miete für 1. EK-Grenze Anlage 3 RL",{"$f":"CELL(\"adresse\",Grunddaten!H74)","v":"'[A3_MWB-Foerderrechner_LBV.xlsm]Grunddaten'!$H$74"},50,33,45,"Grunddaten","$H$74",false,false,{"$f":"Grunddaten!H74","v":6.5}]
[null,"Max. Miete für 2. EK-Grenze Anlage 3 RL",{"$f":"CELL(\"adresse\",Grunddaten!H75)","v":"'[A3_MWB-Foerderrechner_LBV.xlsm]Grunddaten'!$H$75"},{"$f":"LEN(C103)","v":50},{"$f":"FIND(\"]\",C103)","v":33},{"$f":"FIND(\"!\",C103)","v":45},{"$f":"MID(C103,E103+1,F103-E103-2)","v":"Grunddaten"},{"$f":"MID(C103,FIND(\"!\",C103)+1,D103-F103)","v":"$H$75"},false,false,{"$f":"Grunddaten!H75","v":9}]
[null,"Max. Miete für 3. EK-Grenze Anlage 3 RL",{"$f":"CELL(\"adresse\",Grunddaten!H76)","v":"'[A3_MWB-Foerderrechner_LBV.xlsm]Grunddaten'!$H$76"},{"$f":"LEN(C104)","v":50},{"$f":"FIND(\"]\",C104)","v":33},{"$f":"FIND(\"!\",C104)","v":45},{"$f":"MID(C104,E104+1,F104-E104-2)","v":"Grunddaten"},{"$f":"MID(C104,FIND(\"!\",C104)+1,D104-F104)","v":"$H$76"},false,false,{"$f":"Grunddaten!H76","v":12}]
[null,"Max. Miete für 1. EK-Grenze Übrige",{"$f":"CELL(\"adresse\",Grunddaten!H77)","v":"'[A3_MWB-Foerderrechner_LBV.xlsm]Grunddaten'!$H$77"},50,33,45,"Grunddaten","$H$77",false,false,{"$f":"Grunddaten!H77","v":6}]
[null,"Max. Miete für 2. EK-Grenze Übrige",{"$f":"CELL(\"adresse\",Grunddaten!H78)","v":"'[A3_MWB-Foerderrechner_LBV.xlsm]Grunddaten'!$H$78"},50,33,45,"Grunddaten","$H$78",false,false,{"$f":"Grunddaten!H78","v":8}]
[null,"Max. Miete für 3. EK-Grenze Übrige",{"$f":"CELL(\"adresse\",Grunddaten!H79)","v":"'[A3_MWB-Foerderrechner_LBV.xlsm]Grunddaten'!$H$79"},{"$f":"LEN(C107)","v":50},{"$f":"FIND(\"]\",C107)","v":33},{"$f":"FIND(\"!\",C107)","v":45},{"$f":"MID(C107,E107+1,F107-E107-2)","v":"Grunddaten"},{"$f":"MID(C107,FIND(\"!\",C107)+1,D107-F107)","v":"$H$79"},false,false,{"$f":"Grunddaten!H79","v":10}]
[null,"EK-Verzinsung auf die ersten",{"$f":"CELL(\"adresse\",Grunddaten!H81)","v":"'[A3_MWB-Foerderrechner_LBV.xlsm]Grunddaten'!$H$81"},50,33,45,"Grunddaten","$H$81",false,false,{"$f":"Grunddaten!H81","v":2}]
[null,"EK-Verzinsung auf darüber hinausgehende Eigenleistungen (Abstimmung mit MIL)",{"$f":"CELL(\"adresse\",Grunddaten!H82)","v":"'[A3_MWB-Foerderrechner_LBV.xlsm]Grunddaten'!$H$82"},50,33,45,"Grunddaten","$H$82",false,false,{"$f":"Grunddaten!H82","v":3}]
[null,"Anteil für erste Stufe EK-Verzinsung",{"$f":"CELL(\"adresse\",Grunddaten!E81)","v":"'[A3_MWB-Foerderrechner_LBV.xlsm]Grunddaten'!$E$81"},{"$f":"LEN(C110)","v":50},{"$f":"FIND(\"]\",C110)","v":33},{"$f":"FIND(\"!\",C110)","v":45},{"$f":"MID(C110,E110+1,F110-E110-2)","v":"Grunddaten"},{"$f":"MID(C110,FIND(\"!\",C110)+1,D110-F110)","v":"$E$81"},false,false,{"$f":"Grunddaten!E81","v":15}]
[null,"Pauschalaufwand für Besetzungsrechte",{"$f":"CELL(\"adresse\",Grunddaten!H84)","v":"'[A3_MWB-Foerderrechner_LBV.xlsm]Grunddaten'!$H$84"},50,33,45,"Grunddaten","$H$84",false,false,{"$f":"Grunddaten!H84","v":25}]
[null,"VWK pro Wohneinheit",{"$f":"CELL(\"adresse\",Grunddaten!H86)","v":"'[A3_MWB-Foerderrechner_LBV.xlsm]Grunddaten'!$H$86"},50,33,45,"Grunddaten","$H$86",false,false,{"$f":"Grunddaten!H86","v":343.69}]
[null,"VWK pro Garage / Carport",{"$f":"CELL(\"adresse\",Grunddaten!H87)","v":"'[A3_MWB-Foerderrechner_LBV.xlsm]Grunddaten'!$H$87"},50,33,45,"Grunddaten","$H$87",false,false,{"$f":"Grunddaten!H87","v":44.83}]
[null,"IHK pro m² Wohnfläche",{"$f":"CELL(\"adresse\",Grunddaten!H88)","v":"'[A3_MWB-Foerderrechner_LBV.xlsm]Grunddaten'!$H$88"},50,33,45,"Grunddaten","$H$88",false,false,{"$f":"Grunddaten!H88","v":10.61}]
[null,"IHK Zuschlag Aufzug pro m²",{"$f":"CELL(\"adresse\",Grunddaten!H89)","v":"'[A3_MWB-Foerderrechner_LBV.xlsm]Grunddaten'!$H$89"},{"$f":"LEN(C115)","v":50},{"$f":"FIND(\"]\",C115)","v":33},{"$f":"FIND(\"!\",C115)","v":45},{"$f":"MID(C115,E115+1,F115-E115-2)","v":"Grunddaten"},{"$f":"MID(C115,FIND(\"!\",C115)+1,D115-F115)","v":"$H$89"},false,false,{"$f":"Grunddaten!H89","v":1.5}]
[null,"IHK pro Garage / Carport",{"$f":"CELL(\"adresse\",Grunddaten!H90)","v":"'[A3_MWB-Foerderrechner_LBV.xlsm]Grunddaten'!$H$90"},50,33,45,"Grunddaten","$H$90",false,false,{"$f":"Grunddaten!H90","v":101.62}]
[null,"Mietausfallwagnis pro Jahr",{"$f":"CELL(\"adresse\",Grunddaten!H91)","v":"'[A3_MWB-Foerderrechner_LBV.xlsm]Grunddaten'!$H$91"},50,33,45,"Grunddaten","$H$91",false,false,{"$f":"Grunddaten!H91","v":2}]
[null,"Betriebskosten pro m² Leerstand pro Monat",{"$f":"CELL(\"adresse\",Grunddaten!H92)","v":"'[A3_MWB-Foerderrechner_LBV.xlsm]Grunddaten'!$H$92"},{"$f":"LEN(C118)","v":50},{"$f":"FIND(\"]\",C118)","v":33},{"$f":"FIND(\"!\",C118)","v":45},{"$f":"MID(C118,E118+1,F118-E118-2)","v":"Grunddaten"},{"$f":"MID(C118,FIND(\"!\",C118)+1,D118-F118)","v":"$H$92"},false,false,{"$f":"Grunddaten!H92","v":0}]
[null,"Pauschaler Ansatz für Anteil von Modernisierungskosten",{"$f":"CELL(\"adresse\",Grunddaten!H93)","v":"'[A3_MWB-Foerderrechner_LBV.xlsm]Grunddaten'!$H$93"},{"$f":"LEN(C119)","v":50},{"$f":"FIND(\"]\",C119)","v":33},{"$f":"FIND(\"!\",C119)","v":45},{"$f":"MID(C119,E119+1,F119-E119-2)","v":"Grunddaten"},{"$f":"MID(C119,FIND(\"!\",C119)+1,D119-F119)","v":"$H$93"},false,false,{"$f":"Grunddaten!H93","v":60}]
[null,"Anzahl maximaler Durchläufe (Iterationen) für die Zielwertberechnung",{"$f":"CELL(\"adresse\",Grunddaten!H95)","v":"'[A3_MWB-Foerderrechner_LBV.xlsm]Grunddaten'!$H$95"},50,33,45,"Grunddaten","$H$95",false,false,{"$f":"Grunddaten!H95","v":100}]
[null,"Anzahl der automatischen Erhöhungen der Durchläufe (Iterationen) für die Zielwertsuche",{"$f":"CELL(\"adresse\",Grunddaten!H96)","v":"'[A3_MWB-Foerderrechner_LBV.xlsm]Grunddaten'!$H$96"},50,33,45,"Grunddaten","$H$96",false,false,{"$f":"Grunddaten!H96","v":3}]
[null,"Berechnungsgenauigkeit der Zielwertberechnung",{"$f":"CELL(\"adresse\",Grunddaten!H97)","v":"'[A3_MWB-Foerderrechner_LBV.xlsm]Grunddaten'!$H$97"},50,33,45,"Grunddaten","$H$97",false,false,{"$f":"Grunddaten!H97","v":0.01}]